{"text_format":"1","workbook":"xlsx","n_sheets":4,"sheets":["BASE DE DONNÉES","DONNÉES OPÉRATIONS","ACHATS CARBURANT","VALIDATION CARBURANT"],"not_rendered":{"charts":0,"images":0,"macros":1,"external_links":0,"defined_names":3,"comments":0,"pivot_tables":0},"unopened":[],"bounds":{"document_bytes":16777216,"sheet_cells":100000,"rows_first":2000,"rows_last":500,"rows_between":2000,"halvings":0,"cell_chars":16384,"cell_head_chars":4096},"cells_cut":0,"cells_raw":0,"read":"whole","date_system":"1900"}

{"sheet":"BASE DE DONNÉES","index":0,"n_rows":17,"n_cols":17,"rows_kept":17,"cut":false,"hidden":false,"merged":[[0,11,0,16],[0,9,0,10]]}
["EMPLOYÉS",null,null,null,"MACHINERIE","VOITURES","CARBURANT",null,null,"RÉSERVOIRS",null,"CONTRATS"]
[]
["#","NOM","TAUX HORAIRE","% VAC",null,null,"TYPES","VILLE DE LIVRAISON","TAUX TAXE ROUTIERE","#","CAPACITÉ (L)","# PROJET","CLIENT","DESCRIPTION","SECTEUR","DATE DÉBUT","DATE FIN"]
[]
[null,"A",null,null,"JD",null,"Diesel",null,null,1,449,"P01-19"]
[null,"B",null,null,"CAT",null,"Essence",null,null,2,650,"P02-19"]
[null,"C",null,null,"KOM",null,null,null,null,3,650,"P03-19"]
[null,"D",null,null,null,null,null,null,null,4,590,"P04-19"]
[null,"E",null,null,null,null,null,null,null,5,590,"P05-19"]
[null,"F",null,null,null,null,null,null,null,6,449]
[null,null,null,null,null,null,null,null,null,8,590]
[null,null,null,null,null,null,null,null,null,9,590]
[null,null,null,null,null,null,null,null,null,10,790]
[null,null,null,null,null,null,null,null,null,12,4965]
[null,null,null,null,null,null,null,null,null,13,2985]
[null,null,null,null,null,null,null,null,null,14,2985]
[null,null,null,null,null,null,null,null,null,15,449]

{"sheet":"DONNÉES OPÉRATIONS","index":1,"n_rows":10,"n_cols":19,"rows_kept":10,"cut":false,"hidden":false,"merged":[[0,7,0,14],[0,4,0,5]]}
[null,null,null,null,"FUEL",null,null,"DÉTAIL DES HEURES"]
["DATE","OPÉRATEUR","CONTRAT","MACHINERIE","RÉSERVOIR","QUANTITÉ (L)","HRS BAVARD","OPÉRATION","ENTRETIEN","MÉCANIQUE","FARDIER","TRACTION","DÉPLACEMENT","FÉRIÉ","TOTAL","SALAIRE HORAIRE","TAUX CSST","REPAS","PENSION"]
[]
["2019-06-06","A","P01-19","JD",1,180,null,null,null,null,null,null,null,null,{"$f":"SUM(H4:N4)","v":0},{"$f":"VLOOKUP(B4,'BASE DE DONNÉES'!B4:C200,2,FALSE)","v":0}]
["2019-07-08","B","P01-19","CAT",2,200]
["2019-12-04","D","P01-19","JD",3,150]
["2019-05-04","B","P02-19","KO",2,130]
["2019-02-03","A","P03-19","JD",1,280]
["2019-11-14","D","P03-19","KO",3,175]
["2020-04-10",null,null,null,3,100]

{"sheet":"ACHATS CARBURANT","index":2,"n_rows":141,"n_cols":12,"rows_kept":141,"cut":false,"hidden":false,"merged":[[0,10,0,11],[0,3,0,9]]}
["RÉSERVOIR","VÉHICULE","CARBURANT","FACTURE",null,null,null,null,null,null,"PAIEMENT"]
["#",null,"TYPE","DATE","FOURNISSEUR","VILLE DE LIVRAISON","TAUX TX","#","QUANTITÉ (L)","MONTANT","DATE","MÉTHODE"]
[]
[1,null,"Diesel","2018-10-22","Z",null,0.20200000000000001,"786225",70.081999999999994,98.05]
[3,null,"Diesel","2019-01-30","X",null,0.20200000000000001,"B64504",2204.9,2735.35]
[2,null,"Diesel","2019-02-06","Y",null,0.192,"B64867",1363,1631.36]
[1,null,"Diesel","2019-02-15","W",null,0.20200000000000001,"B64959",3465.1,4187.18]
[3,null,"Diesel","2019-03-04","X",null,0.20200000000000001,"B64572",2031.8,2543.96]
[2,null,"Diesel","2019-02-05","Y",null,0.1638,"272591",550.07100000000003,709.04]
[1,null,"Diesel","2019-02-04","Z",null,{"$f":"ROUND(77.16/381.971,4)","v":0.20200000000000001},"1293801",703.72199999999998,907.1]
[3,null,null,"2020-04-10",null,null,null,null,100]
[]
[]
[]
[]
[]
[]
[]
[]
[]
[]
[]
[]
[]
[]
[]
[]
[]
[]
[]
[]
[]
[]
[]
[]
[]
[]
[]
[]
[]
[]
[]
[]
[]
[]
[]
[]
[]
[]
[]
[]
[]
[]
[]
[]
[]
[]
[]
[]
[]
[]
[]
[]
[]
[]
[]
[]
[]
[]
[]
[]
[]
[]
[]
[]
[]
[]
[]
[]
[]
[]
[]
[]
[]
[]
[]
[]
[]
[]
[]
[]
[]
[]
[]
[]
[]
[]
[]
[]
[]
[]
[]
[]
[]
[]
[]
[]
[]
[]
[]
[]
[]
[]
[]
[]
[]
[]
[]
[]
[]
[]
[null,null,null,null,null,null,null,null,null,null,null,"Visa #2012"]
[null,null,null,null,null,null,null,null,null,null,null,"Visa #2012"]
[]
[]
[]
[]
[]
[]
[]
[]
[]
[]
[]
[]
[null,null,null,null,null,null,null,null,null,null,null,"Visa #2012"]
[null,null,null,null,null,null,null,null,null,null,null,"Visa #2012"]
[null,null,null,null,null,null,null,null,null,null,null,"Visa #2012"]
[null,null,null,null,null,null,null,null,null,null,null,"Visa #2012"]
[null,null,null,null,null,null,null,null,null,null,null,"Visa #2012"]
[null,null,null,null,null,null,null,null,null,null,null,"Visa #2012"]

{"sheet":"VALIDATION CARBURANT","index":3,"n_rows":2000,"n_cols":60,"rows_kept":1125,"cut":true,"hidden":false,"merged":[],"bounds":{"rows_first":500,"rows_last":125,"rows_between":500,"halvings":2}}
["# RÉSERVOIR",1,"CAPACITÉ",{"$f":"VLOOKUP(B1,'BASE DE DONNÉES'!$J$4:$K$2000,2)","v":449},"# RÉSERVOIR",2,"CAPACITÉ",{"$f":"VLOOKUP(F1,'BASE DE DONNÉES'!$J$4:$K$2000,2)","v":650},"# RÉSERVOIR",3,"CAPACITÉ",{"$f":"VLOOKUP(J1,'BASE DE DONNÉES'!$J$4:$K$2000,2)","v":650},"# RÉSERVOIR",4,"CAPACITÉ",{"$f":"VLOOKUP(N1,'BASE DE DONNÉES'!$J$4:$K$2000,2)","v":590},"# RÉSERVOIR",5,"CAPACITÉ",{"$f":"VLOOKUP(R1,'BASE DE DONNÉES'!$J$4:$K$2000,2)","v":590},"# RÉSERVOIR",6,"CAPACITÉ",{"$f":"VLOOKUP(V1,'BASE DE DONNÉES'!$J$4:$K$2000,2)","v":449},"# RÉSERVOIR",8,"CAPACITÉ",{"$f":"VLOOKUP(Z1,'BASE DE DONNÉES'!$J$4:$K$2000,2)","v":590},"# RÉSERVOIR",9,"CAPACITÉ",{"$f":"VLOOKUP(AD1,'BASE DE DONNÉES'!$J$4:$K$2000,2)","v":590},"# RÉSERVOIR",10,"CAPACITÉ",{"$f":"VLOOKUP(AH1,'BASE DE DONNÉES'!$J$4:$K$2000,2)","v":790},"# RÉSERVOIR",12,"CAPACITÉ",{"$f":"VLOOKUP(AL1,'BASE DE DONNÉES'!$J$4:$K$2000,2)","v":4965},"# RÉSERVOIR",13,"CAPACITÉ",{"$f":"VLOOKUP(AP1,'BASE DE DONNÉES'!$J$4:$K$2000,2)","v":2985},"# RÉSERVOIR",14,"CAPACITÉ",{"$f":"VLOOKUP(AT1,'BASE DE DONNÉES'!$J$4:$K$2000,2)","v":2985},"# RÉSERVOIR",15,"CAPACITÉ",{"$f":"VLOOKUP(AX1,'BASE DE DONNÉES'!$J$4:$K$2000,2)","v":449},"# RÉSERVOIR",null,"CAPACITÉ",{"$f":"IF(BB1>0,VLOOKUP(BB1,'BASE DE DONNÉES'!$J$4:$K$2000,2),\"\")","v":""},"# RÉSERVOIR",null,"CAPACITÉ",{"$f":"IF(BF1>0,VLOOKUP(BF1,'BASE DE DONNÉES'!$J$4:$K$2000,2),\"\")","v":""}]
["TYPE CARBURANT","Diesel","STOCK DÉBUT",null,"TYPE CARBURANT","Diesel","STOCK DÉBUT",null,"TYPE CARBURANT","Diesel","STOCK DÉBUT",null,"TYPE CARBURANT","Diesel","STOCK DÉBUT",null,"TYPE CARBURANT","Diesel","STOCK DÉBUT",null,"TYPE CARBURANT","Diesel","STOCK DÉBUT",null,"TYPE CARBURANT","Diesel","STOCK DÉBUT",null,"TYPE CARBURANT","Diesel","STOCK DÉBUT",null,"TYPE CARBURANT","Diesel","STOCK DÉBUT",null,"TYPE CARBURANT","Diesel","STOCK DÉBUT",null,"TYPE CARBURANT","Diesel","STOCK DÉBUT",null,"TYPE CARBURANT","Diesel","STOCK DÉBUT",null,"TYPE CARBURANT","Diesel","STOCK DÉBUT",null,"TYPE CARBURANT","Diesel","STOCK DÉBUT",null,"TYPE CARBURANT","Diesel","STOCK DÉBUT"]
[]
["DATE","AJOUT (L)","RETRAIT (L)","STOCK COURANT (L)","DATE","AJOUT (L)","RETRAIT (L)","STOCK COURANT (L)","DATE","AJOUT (L)","RETRAIT (L)","STOCK COURANT (L)","DATE","AJOUT (L)","RETRAIT (L)","STOCK COURANT (L)","DATE","AJOUT (L)","RETRAIT (L)","STOCK COURANT (L)","DATE","AJOUT (L)","RETRAIT (L)","STOCK COURANT (L)","DATE","AJOUT (L)","RETRAIT (L)","STOCK COURANT (L)","DATE","AJOUT (L)","RETRAIT (L)","STOCK COURANT (L)","DATE","AJOUT (L)","RETRAIT (L)","STOCK COURANT (L)","DATE","AJOUT (L)","RETRAIT (L)","STOCK COURANT (L)","DATE","AJOUT (L)","RETRAIT (L)","STOCK COURANT (L)","DATE","AJOUT (L)","RETRAIT (L)","STOCK COURANT (L)","DATE","AJOUT (L)","RETRAIT (L)","STOCK COURANT (L)","DATE","AJOUT (L)","RETRAIT (L)","STOCK COURANT (L)","DATE","AJOUT (L)","RETRAIT (L)","STOCK COURANT (L)"]
[null,null,null,{"$f":"IF(B5-C5<>0,D1+B5-C5,0)","v":0},null,null,null,{"$f":"IF(F5-G5<>0,H1+F5-G5,0)","v":0},"2020-04-10",100,null,{"$f":"IF(J5-K5<>0,L1+J5-K5,0)","v":750},null,null,null,{"$f":"IF(N5-O5<>0,P1+N5-O5,0)","v":0},null,null,null,{"$f":"IF(R5-S5<>0,T1+R5-S5,0)","v":0},null,null,null,{"$f":"IF(V5-W5<>0,X1+V5-W5,0)","v":0},null,null,null,{"$f":"IF(Z5-AA5<>0,AB1+Z5-AA5,0)","v":0},null,null,null,{"$f":"IF(AD5-AE5<>0,AF1+AD5-AE5,0)","v":0},null,null,null,{"$f":"IF(AH5-AI5<>0,AJ1+AH5-AI5,0)","v":0},null,null,null,{"$f":"IF(AL5-AM5<>0,AN1+AL5-AM5,0)","v":0},null,null,null,{"$f":"IF(AP5-AQ5<>0,AR1+AP5-AQ5,0)","v":0},null,null,null,{"$f":"IF(AT5-AU5<>0,AV1+AT5-AU5,0)","v":0},null,null,null,{"$f":"IF(AX5-AY5<>0,AZ1+AX5-AY5,0)","v":0},null,null,null,{"$f":"IF(BB5-BC5<>0,BD1+BB5-BC5,0)","v":0},null,null,null,{"$f":"IF(BF5-BG5<>0,BH1+BF5-BG5,0)","v":0}]
[null,null,null,{"$f":"IF(B6-C6<>0,D5+B6-C6,0)","v":0},null,null,null,{"$f":"IF(F6-G6<>0,H5+F6-G6,0)","v":0},null,null,null,{"$f":"IF(J6-K6<>0,L5+J6-K6,0)","v":0},null,null,null,{"$f":"IF(N6-O6<>0,P5+N6-O6,0)","v":0},null,null,null,{"$f":"IF(R6-S6<>0,T5+R6-S6,0)","v":0},null,null,null,{"$f":"IF(V6-W6<>0,X5+V6-W6,0)","v":0},null,null,null,{"$f":"IF(Z6-AA6<>0,AB5+Z6-AA6,0)","v":0},null,null,null,{"$f":"IF(AD6-AE6<>0,AF5+AD6-AE6,0)","v":0},null,null,null,{"$f":"IF(AH6-AI6<>0,AJ5+AH6-AI6,0)","v":0},null,null,null,{"$f":"IF(AL6-AM6<>0,AN5+AL6-AM6,0)","v":0},null,null,null,{"$f":"IF(AP6-AQ6<>0,AR5+AP6-AQ6,0)","v":0},null,null,null,{"$f":"IF(AT6-AU6<>0,AV5+AT6-AU6,0)","v":0},null,null,null,{"$f":"IF(AX6-AY6<>0,AZ5+AX6-AY6,0)","v":0},null,null,null,{"$f":"IF(BB6-BC6<>0,BD5+BB6-BC6,0)","v":0},null,null,null,{"$f":"IF(BF6-BG6<>0,BH5+BF6-BG6,0)","v":0}]
[null,null,null,{"$f":"IF(B7-C7<>0,D6+B7-C7,0)","v":0},null,null,null,{"$f":"IF(F7-G7<>0,H6+F7-G7,0)","v":0},null,null,null,{"$f":"IF(J7-K7<>0,L6+J7-K7,0)","v":0},null,null,null,{"$f":"IF(N7-O7<>0,P6+N7-O7,0)","v":0},null,null,null,{"$f":"IF(R7-S7<>0,T6+R7-S7,0)","v":0},null,null,null,{"$f":"IF(V7-W7<>0,X6+V7-W7,0)","v":0},null,null,null,{"$f":"IF(Z7-AA7<>0,AB6+Z7-AA7,0)","v":0},null,null,null,{"$f":"IF(AD7-AE7<>0,AF6+AD7-AE7,0)","v":0},null,null,null,{"$f":"IF(AH7-AI7<>0,AJ6+AH7-AI7,0)","v":0},null,null,null,{"$f":"IF(AL7-AM7<>0,AN6+AL7-AM7,0)","v":0},null,null,null,{"$f":"IF(AP7-AQ7<>0,AR6+AP7-AQ7,0)","v":0},null,null,null,{"$f":"IF(AT7-AU7<>0,AV6+AT7-AU7,0)","v":0},null,null,null,{"$f":"IF(AX7-AY7<>0,AZ6+AX7-AY7,0)","v":0},null,null,null,{"$f":"IF(BB7-BC7<>0,BD6+BB7-BC7,0)","v":0},null,null,null,{"$f":"IF(BF7-BG7<>0,BH6+BF7-BG7,0)","v":0}]
[null,null,null,0,null,null,null,0,null,null,null,0,null,null,null,0,null,null,null,0,null,null,null,0,null,null,null,0,null,null,null,0,null,null,null,0,null,null,null,0,null,null,null,0,null,null,null,0,null,null,null,0,null,null,null,0,null,null,null,0]
[null,null,null,0,null,null,null,0,null,null,null,0,null,null,null,0,null,null,null,0,null,null,null,0,null,null,null,0,null,null,null,0,null,null,null,0,null,null,null,0,null,null,null,0,null,null,null,0,null,null,null,0,null,null,null,0,null,null,null,0]
[null,null,null,0,null,null,null,0,null,null,null,0,null,null,null,0,null,null,null,0,null,null,null,0,null,null,null,0,null,null,null,0,null,null,null,0,null,null,null,0,null,null,null,0,null,null,null,0,null,null,null,0,null,null,null,0,null,null,null,0]
[null,null,null,0,null,null,null,0,null,null,null,0,null,null,null,0,null,null,null,0,null,null,null,0,null,null,null,0,null,null,null,0,null,null,null,0,null,null,null,0,null,null,null,0,null,null,null,0,null,null,null,0,null,null,null,0,null,null,null,0]
[null,null,null,0,null,null,null,0,null,null,null,0,null,null,null,0,null,null,null,0,null,null,null,0,null,null,null,0,null,null,null,0,null,null,null,0,null,null,null,0,null,null,null,0,null,null,null,0,null,null,null,0,null,null,null,0,null,null,null,0]
[null,null,null,0,null,null,null,0,null,null,null,0,null,null,null,0,null,null,null,0,null,null,null,0,null,null,null,0,null,null,null,0,null,null,null,0,null,null,null,0,null,null,null,0,null,null,null,0,null,null,null,0,null,null,null,0,null,null,null,0]
[null,null,null,0,null,null,null,0,null,null,null,0,null,null,null,0,null,null,null,0,null,null,null,0,null,null,null,0,null,null,null,0,null,null,null,0,null,null,null,0,null,null,null,0,null,null,null,0,null,null,null,0,null,null,null,0,null,null,null,0]
[null,null,null,0,null,null,null,0,null,null,null,0,null,null,null,0,null,null,null,0,null,null,null,0,null,null,null,0,null,null,null,0,null,null,null,0,null,null,null,0,null,null,null,0,null,null,null,0,null,null,null,0,null,null,null,0,null,null,null,0]
[null,null,null,0,null,null,null,0,null,null,null,0,null,null,null,0,null,null,null,0,null,null,null,0,null,null,null,0,null,null,null,0,null,null,null,0,null,null,null,0,null,null,null,0,null,null,null,0,null,null,null,0,null,null,null,0,null,null,null,0]
[null,null,null,0,null,null,null,0,null,null,null,0,null,null,null,0,null,null,null,0,null,null,null,0,null,null,null,0,null,null,null,0,null,null,null,0,null,null,null,0,null,null,null,0,null,null,null,0,null,null,null,0,null,null,null,0,null,null,null,0]
[null,null,null,0,null,null,null,0,null,null,null,0,null,null,null,0,null,null,null,0,null,null,null,0,null,null,null,0,null,null,null,0,null,null,null,0,null,null,null,0,null,null,null,0,null,null,null,0,null,null,null,0,null,null,null,0,null,null,null,0]
[null,null,null,0,null,null,null,0,null,null,null,0,null,null,null,0,null,null,null,0,null,null,null,0,null,null,null,0,null,null,null,0,null,null,null,0,null,null,null,0,null,null,null,0,null,null,null,0,null,null,null,0,null,null,null,0,null,null,null,0]
[null,null,null,0,null,null,null,0,null,null,null,0,null,null,null,0,null,null,null,0,null,null,null,0,null,null,null,0,null,null,null,0,null,null,null,0,null,null,null,0,null,null,null,0,null,null,null,0,null,null,null,0,null,null,null,0,null,null,null,0]
[null,null,null,0,null,null,null,0,null,null,null,0,null,null,null,0,null,null,null,0,null,null,null,0,null,null,null,0,null,null,null,0,null,null,null,0,null,null,null,0,null,null,null,0,null,null,null,0,null,null,null,0,null,null,null,0,null,null,null,0]
[null,null,null,0,null,null,null,0,null,null,null,0,null,null,null,0,null,null,null,0,null,null,null,0,null,null,null,0,null,null,null,0,null,null,null,0,null,null,null,0,null,null,null,0,null,null,null,0,null,null,null,0,null,null,null,0,null,null,null,0]
[null,null,null,0,null,null,null,0,null,null,null,0,null,null,null,0,null,null,null,0,null,null,null,0,null,null,null,0,null,null,null,0,null,null,null,0,null,null,null,0,null,null,null,0,null,null,null,0,null,null,null,0,null,null,null,0,null,null,null,0]
[null,null,null,0,null,null,null,0,null,null,null,0,null,null,null,0,null,null,null,0,null,null,null,0,null,null,null,0,null,null,null,0,null,null,null,0,null,null,null,0,null,null,null,0,null,null,null,0,null,null,null,0,null,null,null,0,null,null,null,0]
[null,null,null,0,null,null,null,0,null,null,null,0,null,null,null,0,null,null,null,0,null,null,null,0,null,null,null,0,null,null,null,0,null,null,null,0,null,null,null,0,null,null,null,0,null,null,null,0,null,null,null,0,null,null,null,0,null,null,null,0]
[null,null,null,0,null,null,null,0,null,null,null,0,null,null,null,0,null,null,null,0,null,null,null,0,null,null,null,0,null,null,null,0,null,null,null,0,null,null,null,0,null,null,null,0,null,null,null,0,null,null,null,0,null,null,null,0,null,null,null,0]
[null,null,null,0,null,null,null,0,null,null,null,0,null,null,null,0,null,null,null,0,null,null,null,0,null,null,null,0,null,null,null,0,null,null,null,0,null,null,null,0,null,null,null,0,null,null,null,0,null,null,null,0,null,null,null,0,null,null,null,0]
[null,null,null,0,null,null,null,0,null,null,null,0,null,null,null,0,null,null,null,0,null,null,null,0,null,null,null,0,null,null,null,0,null,null,null,0,null,null,null,0,null,null,null,0,null,null,null,0,null,null,null,0,null,null,null,0,null,null,null,0]
[null,null,null,0,null,null,null,0,null,null,null,0,null,null,null,0,null,null,null,0,null,null,null,0,null,null,null,0,null,null,null,0,null,null,null,0,null,null,null,0,null,null,null,0,null,null,null,0,null,null,null,0,null,null,null,0,null,null,null,0]
[null,null,null,0,null,null,null,0,null,null,null,0,null,null,null,0,null,null,null,0,null,null,null,0,null,null,null,0,null,null,null,0,null,null,null,0,null,null,null,0,null,null,null,0,null,null,null,0,null,null,null,0,null,null,null,0,null,null,null,0]
[null,null,null,0,null,null,null,0,null,null,null,0,null,null,null,0,null,null,null,0,null,null,null,0,null,null,null,0,null,null,null,0,null,null,null,0,null,null,null,0,null,null,null,0,null,null,null,0,null,null,null,0,null,null,null,0,null,null,null,0]
[null,null,null,0,null,null,null,0,null,null,null,0,null,null,null,0,null,null,null,0,null,null,null,0,null,null,null,0,null,null,null,0,null,null,null,0,null,null,null,0,null,null,null,0,null,null,null,0,null,null,null,0,null,null,null,0,null,null,null,0]
[null,null,null,0,null,null,null,0,null,null,null,0,null,null,null,0,null,null,null,0,null,null,null,0,null,null,null,0,null,null,null,0,null,null,null,0,null,null,null,0,null,null,null,0,null,null,null,0,null,null,null,0,null,null,null,0,null,null,null,0]
[null,null,null,0,null,null,null,0,null,null,null,0,null,null,null,0,null,null,null,0,null,null,null,0,null,null,null,0,null,null,null,0,null,null,null,0,null,null,null,0,null,null,null,0,null,null,null,0,null,null,null,0,null,null,null,0,null,null,null,0]
[null,null,null,0,null,null,null,0,null,null,null,0,null,null,null,0,null,null,null,0,null,null,null,0,null,null,null,0,null,null,null,0,null,null,null,0,null,null,null,0,null,null,null,0,null,null,null,0,null,null,null,0,null,null,null,0,null,null,null,0]
[null,null,null,0,null,null,null,0,null,null,null,0,null,null,null,0,null,null,null,0,null,null,null,0,null,null,null,0,null,null,null,0,null,null,null,0,null,null,null,0,null,null,null,0,null,null,null,0,null,null,null,0,null,null,null,0,null,null,null,0]
[null,null,null,0,null,null,null,0,null,null,null,0,null,null,null,0,null,null,null,0,null,null,null,0,null,null,null,0,null,null,null,0,null,null,null,0,null,null,null,0,null,null,null,0,null,null,null,0,null,null,null,0,null,null,null,0,null,null,null,0]
[null,null,null,0,null,null,null,0,null,null,null,0,null,null,null,0,null,null,null,0,null,null,null,0,null,null,null,0,null,null,null,0,null,null,null,0,null,null,null,0,null,null,null,0,null,null,null,0,null,null,null,0,null,null,null,0,null,null,null,0]
[null,null,null,0,null,null,null,0,null,null,null,0,null,null,null,0,null,null,null,0,null,null,null,0,null,null,null,0,null,null,null,0,null,null,null,0,null,null,null,0,null,null,null,0,null,null,null,0,null,null,null,0,null,null,null,0,null,null,null,0]
[null,null,null,0,null,null,null,0,null,null,null,0,null,null,null,0,null,null,null,0,null,null,null,0,null,null,null,0,null,null,null,0,null,null,null,0,null,null,null,0,null,null,null,0,null,null,null,0,null,null,null,0,null,null,null,0,null,null,null,0]
[null,null,null,0,null,null,null,0,null,null,null,0,null,null,null,0,null,null,null,0,null,null,null,0,null,null,null,0,null,null,null,0,null,null,null,0,null,null,null,0,null,null,null,0,null,null,null,0,null,null,null,0,null,null,null,0,null,null,null,0]
[null,null,null,0,null,null,null,0,null,null,null,0,null,null,null,0,null,null,null,0,null,null,null,0,null,null,null,0,null,null,null,0,null,null,null,0,null,null,null,0,null,null,null,0,null,null,null,0,null,null,null,0,null,null,null,0,null,null,null,0]
[null,null,null,0,null,null,null,0,null,null,null,0,null,null,null,0,null,null,null,0,null,null,null,0,null,null,null,0,null,null,null,0,null,null,null,0,null,null,null,0,null,null,null,0,null,null,null,0,null,null,null,0,null,null,null,0,null,null,null,0]
[null,null,null,0,null,null,null,0,null,null,null,0,null,null,null,0,null,null,null,0,null,null,null,0,null,null,null,0,null,null,null,0,null,null,null,0,null,null,null,0,null,null,null,0,null,null,null,0,null,null,null,0,null,null,null,0,null,null,null,0]
[null,null,null,0,null,null,null,0,null,null,null,0,null,null,null,0,null,null,null,0,null,null,null,0,null,null,null,0,null,null,null,0,null,null,null,0,null,null,null,0,null,null,null,0,null,null,null,0,null,null,null,0,null,null,null,0,null,null,null,0]
[null,null,null,0,null,null,null,0,null,null,null,0,null,null,null,0,null,null,null,0,null,null,null,0,null,null,null,0,null,null,null,0,null,null,null,0,null,null,null,0,null,null,null,0,null,null,null,0,null,null,null,0,null,null,null,0,null,null,null,0]
[null,null,null,0,null,null,null,0,null,null,null,0,null,null,null,0,null,null,null,0,null,null,null,0,null,null,null,0,null,null,null,0,null,null,null,0,null,null,null,0,null,null,null,0,null,null,null,0,null,null,null,0,null,null,null,0,null,null,null,0]
[null,null,null,0,null,null,null,0,null,null,null,0,null,null,null,0,null,null,null,0,null,null,null,0,null,null,null,0,null,null,null,0,null,null,null,0,null,null,null,0,null,null,null,0,null,null,null,0,null,null,null,0,null,null,null,0,null,null,null,0]
[null,null,null,0,null,null,null,0,null,null,null,0,null,null,null,0,null,null,null,0,null,null,null,0,null,null,null,0,null,null,null,0,null,null,null,0,null,null,null,0,null,null,null,0,null,null,null,0,null,null,null,0,null,null,null,0,null,null,null,0]
[null,null,null,0,null,null,null,0,null,null,null,0,null,null,null,0,null,null,null,0,null,null,null,0,null,null,null,0,null,null,null,0,null,null,null,0,null,null,null,0,null,null,null,0,null,null,null,0,null,null,null,0,null,null,null,0,null,null,null,0]
[null,null,null,0,null,null,null,0,null,null,null,0,null,null,null,0,null,null,null,0,null,null,null,0,null,null,null,0,null,null,null,0,null,null,null,0,null,null,null,0,null,null,null,0,null,null,null,0,null,null,null,0,null,null,null,0,null,null,null,0]
[null,null,null,0,null,null,null,0,null,null,null,0,null,null,null,0,null,null,null,0,null,null,null,0,null,null,null,0,null,null,null,0,null,null,null,0,null,null,null,0,null,null,null,0,null,null,null,0,null,null,null,0,null,null,null,0,null,null,null,0]
[null,null,null,0,null,null,null,0,null,null,null,0,null,null,null,0,null,null,null,0,null,null,null,0,null,null,null,0,null,null,null,0,null,null,null,0,null,null,null,0,null,null,null,0,null,null,null,0,null,null,null,0,null,null,null,0,null,null,null,0]
[null,null,null,0,null,null,null,0,null,null,null,0,null,null,null,0,null,null,null,0,null,null,null,0,null,null,null,0,null,null,null,0,null,null,null,0,null,null,null,0,null,null,null,0,null,null,null,0,null,null,null,0,null,null,null,0,null,null,null,0]
[null,null,null,0,null,null,null,0,null,null,null,0,null,null,null,0,null,null,null,0,null,null,null,0,null,null,null,0,null,null,null,0,null,null,null,0,null,null,null,0,null,null,null,0,null,null,null,0,null,null,null,0,null,null,null,0,null,null,null,0]
[null,null,null,0,null,null,null,0,null,null,null,0,null,null,null,0,null,null,null,0,null,null,null,0,null,null,null,0,null,null,null,0,null,null,null,0,null,null,null,0,null,null,null,0,null,null,null,0,null,null,null,0,null,null,null,0,null,null,null,0]
[null,null,null,0,null,null,null,0,null,null,null,0,null,null,null,0,null,null,null,0,null,null,null,0,null,null,null,0,null,null,null,0,null,null,null,0,null,null,null,0,null,null,null,0,null,null,null,0,null,null,null,0,null,null,null,0,null,null,null,0]
[null,null,null,0,null,null,null,0,null,null,null,0,null,null,null,0,null,null,null,0,null,null,null,0,null,null,null,0,null,null,null,0,null,null,null,0,null,null,null,0,null,null,null,0,null,null,null,0,null,null,null,0,null,null,null,0,null,null,null,0]
[null,null,null,0,null,null,null,0,null,null,null,0,null,null,null,0,null,null,null,0,null,null,null,0,null,null,null,0,null,null,null,0,null,null,null,0,null,null,null,0,null,null,null,0,null,null,null,0,null,null,null,0,null,null,null,0,null,null,null,0]
[null,null,null,0,null,null,null,0,null,null,null,0,null,null,null,0,null,null,null,0,null,null,null,0,null,null,null,0,null,null,null,0,null,null,null,0,null,null,null,0,null,null,null,0,null,null,null,0,null,null,null,0,null,null,null,0,null,null,null,0]
[null,null,null,0,null,null,null,0,null,null,null,0,null,null,null,0,null,null,null,0,null,null,null,0,null,null,null,0,null,null,null,0,null,null,null,0,null,null,null,0,null,null,null,0,null,null,null,0,null,null,null,0,null,null,null,0,null,null,null,0]
[null,null,null,0,null,null,null,0,null,null,null,0,null,null,null,0,null,null,null,0,null,null,null,0,null,null,null,0,null,null,null,0,null,null,null,0,null,null,null,0,null,null,null,0,null,null,null,0,null,null,null,0,null,null,null,0,null,null,null,0]
[null,null,null,0,null,null,null,0,null,null,null,0,null,null,null,0,null,null,null,0,null,null,null,0,null,null,null,0,null,null,null,0,null,null,null,0,null,null,null,0,null,null,null,0,null,null,null,0,null,null,null,0,null,null,null,0,null,null,null,0]
[null,null,null,0,null,null,null,0,null,null,null,0,null,null,null,0,null,null,null,0,null,null,null,0,null,null,null,0,null,null,null,0,null,null,null,0,null,null,null,0,null,null,null,0,null,null,null,0,null,null,null,0,null,null,null,0,null,null,null,0]
[null,null,null,0,null,null,null,0,null,null,null,0,null,null,null,0,null,null,null,0,null,null,null,0,null,null,null,0,null,null,null,0,null,null,null,0,null,null,null,0,null,null,null,0,null,null,null,0,null,null,null,0,null,null,null,0,null,null,null,0]
[null,null,null,0,null,null,null,0,null,null,null,0,null,null,null,0,null,null,null,0,null,null,null,0,null,null,null,0,null,null,null,0,null,null,null,0,null,null,null,0,null,null,null,0,null,null,null,0,null,null,null,0,null,null,null,0,null,null,null,0]
[null,null,null,0,null,null,null,0,null,null,null,0,null,null,null,0,null,null,null,0,null,null,null,0,null,null,null,0,null,null,null,0,null,null,null,0,null,null,null,0,null,null,null,0,null,null,null,0,null,null,null,0,null,null,null,0,null,null,null,0]
[null,null,null,0,null,null,null,0,null,null,null,0,null,null,null,0,null,null,null,0,null,null,null,0,null,null,null,0,null,null,null,0,null,null,null,0,null,null,null,0,null,null,null,0,null,null,null,0,null,null,null,0,null,null,null,0,null,null,null,0]
[null,null,null,0,null,null,null,0,null,null,null,0,null,null,null,0,null,null,null,0,null,null,null,0,null,null,null,0,null,null,null,0,null,null,null,0,null,null,null,0,null,null,null,0,null,null,null,0,null,null,null,0,null,null,null,0,null,null,null,0]
[null,null,null,0,null,null,null,0,null,null,null,0,null,null,null,0,null,null,null,0,null,null,null,0,null,null,null,0,null,null,null,0,null,null,null,0,null,null,null,0,null,null,null,0,null,null,null,0,null,null,null,0,null,null,null,0,null,null,null,0]
[null,null,null,{"$f":"IF(B71-C71<>0,D70+B71-C71,0)","v":0},null,null,null,{"$f":"IF(F71-G71<>0,H70+F71-G71,0)","v":0},null,null,null,{"$f":"IF(J71-K71<>0,L70+J71-K71,0)","v":0},null,null,null,{"$f":"IF(N71-O71<>0,P70+N71-O71,0)","v":0},null,null,null,{"$f":"IF(R71-S71<>0,T70+R71-S71,0)","v":0},null,null,null,{"$f":"IF(V71-W71<>0,X70+V71-W71,0)","v":0},null,null,null,{"$f":"IF(Z71-AA71<>0,AB70+Z71-AA71,0)","v":0},null,null,null,{"$f":"IF(AD71-AE71<>0,AF70+AD71-AE71,0)","v":0},null,null,null,{"$f":"IF(AH71-AI71<>0,AJ70+AH71-AI71,0)","v":0},null,null,null,{"$f":"IF(AL71-AM71<>0,AN70+AL71-AM71,0)","v":0},null,null,null,{"$f":"IF(AP71-AQ71<>0,AR70+AP71-AQ71,0)","v":0},null,null,null,{"$f":"IF(AT71-AU71<>0,AV70+AT71-AU71,0)","v":0},null,null,null,{"$f":"IF(AX71-AY71<>0,AZ70+AX71-AY71,0)","v":0},null,null,null,{"$f":"IF(BB71-BC71<>0,BD70+BB71-BC71,0)","v":0},null,null,null,{"$f":"IF(BF71-BG71<>0,BH70+BF71-BG71,0)","v":0}]
[null,null,null,0,null,null,null,0,null,null,null,0,null,null,null,0,null,null,null,0,null,null,null,0,null,null,null,0,null,null,null,0,null,null,null,0,null,null,null,0,null,null,null,0,null,null,null,0,null,null,null,0,null,null,null,0,null,null,null,0]
[null,null,null,0,null,null,null,0,null,null,null,0,null,null,null,0,null,null,null,0,null,null,null,0,null,null,null,0,null,null,null,0,null,null,null,0,null,null,null,0,null,null,null,0,null,null,null,0,null,null,null,0,null,null,null,0,null,null,null,0]
[null,null,null,0,null,null,null,0,null,null,null,0,null,null,null,0,null,null,null,0,null,null,null,0,null,null,null,0,null,null,null,0,null,null,null,0,null,null,null,0,null,null,null,0,null,null,null,0,null,null,null,0,null,null,null,0,null,null,null,0]
[null,null,null,0,null,null,null,0,null,null,null,0,null,null,null,0,null,null,null,0,null,null,null,0,null,null,null,0,null,null,null,0,null,null,null,0,null,null,null,0,null,null,null,0,null,null,null,0,null,null,null,0,null,null,null,0,null,null,null,0]
[null,null,null,0,null,null,null,0,null,null,null,0,null,null,null,0,null,null,null,0,null,null,null,0,null,null,null,0,null,null,null,0,null,null,null,0,null,null,null,0,null,null,null,0,null,null,null,0,null,null,null,0,null,null,null,0,null,null,null,0]
[null,null,null,0,null,null,null,0,null,null,null,0,null,null,null,0,null,null,null,0,null,null,null,0,null,null,null,0,null,null,null,0,null,null,null,0,null,null,null,0,null,null,null,0,null,null,null,0,null,null,null,0,null,null,null,0,null,null,null,0]
[null,null,null,0,null,null,null,0,null,null,null,0,null,null,null,0,null,null,null,0,null,null,null,0,null,null,null,0,null,null,null,0,null,null,null,0,null,null,null,0,null,null,null,0,null,null,null,0,null,null,null,0,null,null,null,0,null,null,null,0]
[null,null,null,0,null,null,null,0,null,null,null,0,null,null,null,0,null,null,null,0,null,null,null,0,null,null,null,0,null,null,null,0,null,null,null,0,null,null,null,0,null,null,null,0,null,null,null,0,null,null,null,0,null,null,null,0,null,null,null,0]
[null,null,null,0,null,null,null,0,null,null,null,0,null,null,null,0,null,null,null,0,null,null,null,0,null,null,null,0,null,null,null,0,null,null,null,0,null,null,null,0,null,null,null,0,null,null,null,0,null,null,null,0,null,null,null,0,null,null,null,0]
[null,null,null,0,null,null,null,0,null,null,null,0,null,null,null,0,null,null,null,0,null,null,null,0,null,null,null,0,null,null,null,0,null,null,null,0,null,null,null,0,null,null,null,0,null,null,null,0,null,null,null,0,null,null,null,0,null,null,null,0]
[null,null,null,0,null,null,null,0,null,null,null,0,null,null,null,0,null,null,null,0,null,null,null,0,null,null,null,0,null,null,null,0,null,null,null,0,null,null,null,0,null,null,null,0,null,null,null,0,null,null,null,0,null,null,null,0,null,null,null,0]
[null,null,null,0,null,null,null,0,null,null,null,0,null,null,null,0,null,null,null,0,null,null,null,0,null,null,null,0,null,null,null,0,null,null,null,0,null,null,null,0,null,null,null,0,null,null,null,0,null,null,null,0,null,null,null,0,null,null,null,0]
[null,null,null,0,null,null,null,0,null,null,null,0,null,null,null,0,null,null,null,0,null,null,null,0,null,null,null,0,null,null,null,0,null,null,null,0,null,null,null,0,null,null,null,0,null,null,null,0,null,null,null,0,null,null,null,0,null,null,null,0]
[null,null,null,0,null,null,null,0,null,null,null,0,null,null,null,0,null,null,null,0,null,null,null,0,null,null,null,0,null,null,null,0,null,null,null,0,null,null,null,0,null,null,null,0,null,null,null,0,null,null,null,0,null,null,null,0,null,null,null,0]
[null,null,null,0,null,null,null,0,null,null,null,0,null,null,null,0,null,null,null,0,null,null,null,0,null,null,null,0,null,null,null,0,null,null,null,0,null,null,null,0,null,null,null,0,null,null,null,0,null,null,null,0,null,null,null,0,null,null,null,0]
[null,null,null,0,null,null,null,0,null,null,null,0,null,null,null,0,null,null,null,0,null,null,null,0,null,null,null,0,null,null,null,0,null,null,null,0,null,null,null,0,null,null,null,0,null,null,null,0,null,null,null,0,null,null,null,0,null,null,null,0]
[null,null,null,0,null,null,null,0,null,null,null,0,null,null,null,0,null,null,null,0,null,null,null,0,null,null,null,0,null,null,null,0,null,null,null,0,null,null,null,0,null,null,null,0,null,null,null,0,null,null,null,0,null,null,null,0,null,null,null,0]
[null,null,null,0,null,null,null,0,null,null,null,0,null,null,null,0,null,null,null,0,null,null,null,0,null,null,null,0,null,null,null,0,null,null,null,0,null,null,null,0,null,null,null,0,null,null,null,0,null,null,null,0,null,null,null,0,null,null,null,0]
[null,null,null,0,null,null,null,0,null,null,null,0,null,null,null,0,null,null,null,0,null,null,null,0,null,null,null,0,null,null,null,0,null,null,null,0,null,null,null,0,null,null,null,0,null,null,null,0,null,null,null,0,null,null,null,0,null,null,null,0]
[null,null,null,0,null,null,null,0,null,null,null,0,null,null,null,0,null,null,null,0,null,null,null,0,null,null,null,0,null,null,null,0,null,null,null,0,null,null,null,0,null,null,null,0,null,null,null,0,null,null,null,0,null,null,null,0,null,null,null,0]
[null,null,null,0,null,null,null,0,null,null,null,0,null,null,null,0,null,null,null,0,null,null,null,0,null,null,null,0,null,null,null,0,null,null,null,0,null,null,null,0,null,null,null,0,null,null,null,0,null,null,null,0,null,null,null,0,null,null,null,0]
[null,null,null,0,null,null,null,0,null,null,null,0,null,null,null,0,null,null,null,0,null,null,null,0,null,null,null,0,null,null,null,0,null,null,null,0,null,null,null,0,null,null,null,0,null,null,null,0,null,null,null,0,null,null,null,0,null,null,null,0]
[null,null,null,0,null,null,null,0,null,null,null,0,null,null,null,0,null,null,null,0,null,null,null,0,null,null,null,0,null,null,null,0,null,null,null,0,null,null,null,0,null,null,null,0,null,null,null,0,null,null,null,0,null,null,null,0,null,null,null,0]
[null,null,null,0,null,null,null,0,null,null,null,0,null,null,null,0,null,null,null,0,null,null,null,0,null,null,null,0,null,null,null,0,null,null,null,0,null,null,null,0,null,null,null,0,null,null,null,0,null,null,null,0,null,null,null,0,null,null,null,0]
[null,null,null,0,null,null,null,0,null,null,null,0,null,null,null,0,null,null,null,0,null,null,null,0,null,null,null,0,null,null,null,0,null,null,null,0,null,null,null,0,null,null,null,0,null,null,null,0,null,null,null,0,null,null,null,0,null,null,null,0]
[null,null,null,0,null,null,null,0,null,null,null,0,null,null,null,0,null,null,null,0,null,null,null,0,null,null,null,0,null,null,null,0,null,null,null,0,null,null,null,0,null,null,null,0,null,null,null,0,null,null,null,0,null,null,null,0,null,null,null,0]
[null,null,null,0,null,null,null,0,null,null,null,0,null,null,null,0,null,null,null,0,null,null,null,0,null,null,null,0,null,null,null,0,null,null,null,0,null,null,null,0,null,null,null,0,null,null,null,0,null,null,null,0,null,null,null,0,null,null,null,0]
[null,null,null,0,null,null,null,0,null,null,null,0,null,null,null,0,null,null,null,0,null,null,null,0,null,null,null,0,null,null,null,0,null,null,null,0,null,null,null,0,null,null,null,0,null,null,null,0,null,null,null,0,null,null,null,0,null,null,null,0]
[null,null,null,0,null,null,null,0,null,null,null,0,null,null,null,0,null,null,null,0,null,null,null,0,null,null,null,0,null,null,null,0,null,null,null,0,null,null,null,0,null,null,null,0,null,null,null,0,null,null,null,0,null,null,null,0,null,null,null,0]
[null,null,null,0,null,null,null,0,null,null,null,0,null,null,null,0,null,null,null,0,null,null,null,0,null,null,null,0,null,null,null,0,null,null,null,0,null,null,null,0,null,null,null,0,null,null,null,0,null,null,null,0,null,null,null,0,null,null,null,0]
[null,null,null,0,null,null,null,0,null,null,null,0,null,null,null,0,null,null,null,0,null,null,null,0,null,null,null,0,null,null,null,0,null,null,null,0,null,null,null,0,null,null,null,0,null,null,null,0,null,null,null,0,null,null,null,0,null,null,null,0]
[null,null,null,0,null,null,null,0,null,null,null,0,null,null,null,0,null,null,null,0,null,null,null,0,null,null,null,0,null,null,null,0,null,null,null,0,null,null,null,0,null,null,null,0,null,null,null,0,null,null,null,0,null,null,null,0,null,null,null,0]
[null,null,null,0,null,null,null,0,null,null,null,0,null,null,null,0,null,null,null,0,null,null,null,0,null,null,null,0,null,null,null,0,null,null,null,0,null,null,null,0,null,null,null,0,null,null,null,0,null,null,null,0,null,null,null,0,null,null,null,0]
[null,null,null,0,null,null,null,0,null,null,null,0,null,null,null,0,null,null,null,0,null,null,null,0,null,null,null,0,null,null,null,0,null,null,null,0,null,null,null,0,null,null,null,0,null,null,null,0,null,null,null,0,null,null,null,0,null,null,null,0]
[null,null,null,0,null,null,null,0,null,null,null,0,null,null,null,0,null,null,null,0,null,null,null,0,null,null,null,0,null,null,null,0,null,null,null,0,null,null,null,0,null,null,null,0,null,null,null,0,null,null,null,0,null,null,null,0,null,null,null,0]
[null,null,null,0,null,null,null,0,null,null,null,0,null,null,null,0,null,null,null,0,null,null,null,0,null,null,null,0,null,null,null,0,null,null,null,0,null,null,null,0,null,null,null,0,null,null,null,0,null,null,null,0,null,null,null,0,null,null,null,0]
[null,null,null,0,null,null,null,0,null,null,null,0,null,null,null,0,null,null,null,0,null,null,null,0,null,null,null,0,null,null,null,0,null,null,null,0,null,null,null,0,null,null,null,0,null,null,null,0,null,null,null,0,null,null,null,0,null,null,null,0]
[null,null,null,0,null,null,null,0,null,null,null,0,null,null,null,0,null,null,null,0,null,null,null,0,null,null,null,0,null,null,null,0,null,null,null,0,null,null,null,0,null,null,null,0,null,null,null,0,null,null,null,0,null,null,null,0,null,null,null,0]
[null,null,null,0,null,null,null,0,null,null,null,0,null,null,null,0,null,null,null,0,null,null,null,0,null,null,null,0,null,null,null,0,null,null,null,0,null,null,null,0,null,null,null,0,null,null,null,0,null,null,null,0,null,null,null,0,null,null,null,0]
[null,null,null,0,null,null,null,0,null,null,null,0,null,null,null,0,null,null,null,0,null,null,null,0,null,null,null,0,null,null,null,0,null,null,null,0,null,null,null,0,null,null,null,0,null,null,null,0,null,null,null,0,null,null,null,0,null,null,null,0]
[null,null,null,0,null,null,null,0,null,null,null,0,null,null,null,0,null,null,null,0,null,null,null,0,null,null,null,0,null,null,null,0,null,null,null,0,null,null,null,0,null,null,null,0,null,null,null,0,null,null,null,0,null,null,null,0,null,null,null,0]
[null,null,null,0,null,null,null,0,null,null,null,0,null,null,null,0,null,null,null,0,null,null,null,0,null,null,null,0,null,null,null,0,null,null,null,0,null,null,null,0,null,null,null,0,null,null,null,0,null,null,null,0,null,null,null,0,null,null,null,0]
[null,null,null,0,null,null,null,0,null,null,null,0,null,null,null,0,null,null,null,0,null,null,null,0,null,null,null,0,null,null,null,0,null,null,null,0,null,null,null,0,null,null,null,0,null,null,null,0,null,null,null,0,null,null,null,0,null,null,null,0]
[null,null,null,0,null,null,null,0,null,null,null,0,null,null,null,0,null,null,null,0,null,null,null,0,null,null,null,0,null,null,null,0,null,null,null,0,null,null,null,0,null,null,null,0,null,null,null,0,null,null,null,0,null,null,null,0,null,null,null,0]
[null,null,null,0,null,null,null,0,null,null,null,0,null,null,null,0,null,null,null,0,null,null,null,0,null,null,null,0,null,null,null,0,null,null,null,0,null,null,null,0,null,null,null,0,null,null,null,0,null,null,null,0,null,null,null,0,null,null,null,0]
[null,null,null,0,null,null,null,0,null,null,null,0,null,null,null,0,null,null,null,0,null,null,null,0,null,null,null,0,null,null,null,0,null,null,null,0,null,null,null,0,null,null,null,0,null,null,null,0,null,null,null,0,null,null,null,0,null,null,null,0]
[null,null,null,0,null,null,null,0,null,null,null,0,null,null,null,0,null,null,null,0,null,null,null,0,null,null,null,0,null,null,null,0,null,null,null,0,null,null,null,0,null,null,null,0,null,null,null,0,null,null,null,0,null,null,null,0,null,null,null,0]
[null,null,null,0,null,null,null,0,null,null,null,0,null,null,null,0,null,null,null,0,null,null,null,0,null,null,null,0,null,null,null,0,null,null,null,0,null,null,null,0,null,null,null,0,null,null,null,0,null,null,null,0,null,null,null,0,null,null,null,0]
[null,null,null,0,null,null,null,0,null,null,null,0,null,null,null,0,null,null,null,0,null,null,null,0,null,null,null,0,null,null,null,0,null,null,null,0,null,null,null,0,null,null,null,0,null,null,null,0,null,null,null,0,null,null,null,0,null,null,null,0]
[null,null,null,0,null,null,null,0,null,null,null,0,null,null,null,0,null,null,null,0,null,null,null,0,null,null,null,0,null,null,null,0,null,null,null,0,null,null,null,0,null,null,null,0,null,null,null,0,null,null,null,0,null,null,null,0,null,null,null,0]
[null,null,null,0,null,null,null,0,null,null,null,0,null,null,null,0,null,null,null,0,null,null,null,0,null,null,null,0,null,null,null,0,null,null,null,0,null,null,null,0,null,null,null,0,null,null,null,0,null,null,null,0,null,null,null,0,null,null,null,0]
[null,null,null,0,null,null,null,0,null,null,null,0,null,null,null,0,null,null,null,0,null,null,null,0,null,null,null,0,null,null,null,0,null,null,null,0,null,null,null,0,null,null,null,0,null,null,null,0,null,null,null,0,null,null,null,0,null,null,null,0]
[null,null,null,0,null,null,null,0,null,null,null,0,null,null,null,0,null,null,null,0,null,null,null,0,null,null,null,0,null,null,null,0,null,null,null,0,null,null,null,0,null,null,null,0,null,null,null,0,null,null,null,0,null,null,null,0,null,null,null,0]
[null,null,null,0,null,null,null,0,null,null,null,0,null,null,null,0,null,null,null,0,null,null,null,0,null,null,null,0,null,null,null,0,null,null,null,0,null,null,null,0,null,null,null,0,null,null,null,0,null,null,null,0,null,null,null,0,null,null,null,0]
[null,null,null,0,null,null,null,0,null,null,null,0,null,null,null,0,null,null,null,0,null,null,null,0,null,null,null,0,null,null,null,0,null,null,null,0,null,null,null,0,null,null,null,0,null,null,null,0,null,null,null,0,null,null,null,0,null,null,null,0]
[null,null,null,0,null,null,null,0,null,null,null,0,null,null,null,0,null,null,null,0,null,null,null,0,null,null,null,0,null,null,null,0,null,null,null,0,null,null,null,0,null,null,null,0,null,null,null,0,null,null,null,0,null,null,null,0,null,null,null,0]
[null,null,null,0,null,null,null,0,null,null,null,0,null,null,null,0,null,null,null,0,null,null,null,0,null,null,null,0,null,null,null,0,null,null,null,0,null,null,null,0,null,null,null,0,null,null,null,0,null,null,null,0,null,null,null,0,null,null,null,0]
[null,null,null,0,null,null,null,0,null,null,null,0,null,null,null,0,null,null,null,0,null,null,null,0,null,null,null,0,null,null,null,0,null,null,null,0,null,null,null,0,null,null,null,0,null,null,null,0,null,null,null,0,null,null,null,0,null,null,null,0]
[null,null,null,0,null,null,null,0,null,null,null,0,null,null,null,0,null,null,null,0,null,null,null,0,null,null,null,0,null,null,null,0,null,null,null,0,null,null,null,0,null,null,null,0,null,null,null,0,null,null,null,0,null,null,null,0,null,null,null,0]
[null,null,null,0,null,null,null,0,null,null,null,0,null,null,null,0,null,null,null,0,null,null,null,0,null,null,null,0,null,null,null,0,null,null,null,0,null,null,null,0,null,null,null,0,null,null,null,0,null,null,null,0,null,null,null,0,null,null,null,0]
[null,null,null,0,null,null,null,0,null,null,null,0,null,null,null,0,null,null,null,0,null,null,null,0,null,null,null,0,null,null,null,0,null,null,null,0,null,null,null,0,null,null,null,0,null,null,null,0,null,null,null,0,null,null,null,0,null,null,null,0]
[null,null,null,0,null,null,null,0,null,null,null,0,null,null,null,0,null,null,null,0,null,null,null,0,null,null,null,0,null,null,null,0,null,null,null,0,null,null,null,0,null,null,null,0,null,null,null,0,null,null,null,0,null,null,null,0,null,null,null,0]
[null,null,null,0,null,null,null,0,null,null,null,0,null,null,null,0,null,null,null,0,null,null,null,0,null,null,null,0,null,null,null,0,null,null,null,0,null,null,null,0,null,null,null,0,null,null,null,0,null,null,null,0,null,null,null,0,null,null,null,0]
[null,null,null,{"$f":"IF(B135-C135<>0,D134+B135-C135,0)","v":0},null,null,null,{"$f":"IF(F135-G135<>0,H134+F135-G135,0)","v":0},null,null,null,{"$f":"IF(J135-K135<>0,L134+J135-K135,0)","v":0},null,null,null,{"$f":"IF(N135-O135<>0,P134+N135-O135,0)","v":0},null,null,null,{"$f":"IF(R135-S135<>0,T134+R135-S135,0)","v":0},null,null,null,{"$f":"IF(V135-W135<>0,X134+V135-W135,0)","v":0},null,null,null,{"$f":"IF(Z135-AA135<>0,AB134+Z135-AA135,0)","v":0},null,null,null,{"$f":"IF(AD135-AE135<>0,AF134+AD135-AE135,0)","v":0},null,null,null,{"$f":"IF(AH135-AI135<>0,AJ134+AH135-AI135,0)","v":0},null,null,null,{"$f":"IF(AL135-AM135<>0,AN134+AL135-AM135,0)","v":0},null,null,null,{"$f":"IF(AP135-AQ135<>0,AR134+AP135-AQ135,0)","v":0},null,null,null,{"$f":"IF(AT135-AU135<>0,AV134+AT135-AU135,0)","v":0},null,null,null,{"$f":"IF(AX135-AY135<>0,AZ134+AX135-AY135,0)","v":0},null,null,null,{"$f":"IF(BB135-BC135<>0,BD134+BB135-BC135,0)","v":0},null,null,null,{"$f":"IF(BF135-BG135<>0,BH134+BF135-BG135,0)","v":0}]
[null,null,null,0,null,null,null,0,null,null,null,0,null,null,null,0,null,null,null,0,null,null,null,0,null,null,null,0,null,null,null,0,null,null,null,0,null,null,null,0,null,null,null,0,null,null,null,0,null,null,null,0,null,null,null,0,null,null,null,0]
[null,null,null,0,null,null,null,0,null,null,null,0,null,null,null,0,null,null,null,0,null,null,null,0,null,null,null,0,null,null,null,0,null,null,null,0,null,null,null,0,null,null,null,0,null,null,null,0,null,null,null,0,null,null,null,0,null,null,null,0]
[null,null,null,0,null,null,null,0,null,null,null,0,null,null,null,0,null,null,null,0,null,null,null,0,null,null,null,0,null,null,null,0,null,null,null,0,null,null,null,0,null,null,null,0,null,null,null,0,null,null,null,0,null,null,null,0,null,null,null,0]
[null,null,null,0,null,null,null,0,null,null,null,0,null,null,null,0,null,null,null,0,null,null,null,0,null,null,null,0,null,null,null,0,null,null,null,0,null,null,null,0,null,null,null,0,null,null,null,0,null,null,null,0,null,null,null,0,null,null,null,0]
[null,null,null,0,null,null,null,0,null,null,null,0,null,null,null,0,null,null,null,0,null,null,null,0,null,null,null,0,null,null,null,0,null,null,null,0,null,null,null,0,null,null,null,0,null,null,null,0,null,null,null,0,null,null,null,0,null,null,null,0]
[null,null,null,0,null,null,null,0,null,null,null,0,null,null,null,0,null,null,null,0,null,null,null,0,null,null,null,0,null,null,null,0,null,null,null,0,null,null,null,0,null,null,null,0,null,null,null,0,null,null,null,0,null,null,null,0,null,null,null,0]
[null,null,null,0,null,null,null,0,null,null,null,0,null,null,null,0,null,null,null,0,null,null,null,0,null,null,null,0,null,null,null,0,null,null,null,0,null,null,null,0,null,null,null,0,null,null,null,0,null,null,null,0,null,null,null,0,null,null,null,0]
[null,null,null,0,null,null,null,0,null,null,null,0,null,null,null,0,null,null,null,0,null,null,null,0,null,null,null,0,null,null,null,0,null,null,null,0,null,null,null,0,null,null,null,0,null,null,null,0,null,null,null,0,null,null,null,0,null,null,null,0]
[null,null,null,0,null,null,null,0,null,null,null,0,null,null,null,0,null,null,null,0,null,null,null,0,null,null,null,0,null,null,null,0,null,null,null,0,null,null,null,0,null,null,null,0,null,null,null,0,null,null,null,0,null,null,null,0,null,null,null,0]
[null,null,null,0,null,null,null,0,null,null,null,0,null,null,null,0,null,null,null,0,null,null,null,0,null,null,null,0,null,null,null,0,null,null,null,0,null,null,null,0,null,null,null,0,null,null,null,0,null,null,null,0,null,null,null,0,null,null,null,0]
[null,null,null,0,null,null,null,0,null,null,null,0,null,null,null,0,null,null,null,0,null,null,null,0,null,null,null,0,null,null,null,0,null,null,null,0,null,null,null,0,null,null,null,0,null,null,null,0,null,null,null,0,null,null,null,0,null,null,null,0]
[null,null,null,0,null,null,null,0,null,null,null,0,null,null,null,0,null,null,null,0,null,null,null,0,null,null,null,0,null,null,null,0,null,null,null,0,null,null,null,0,null,null,null,0,null,null,null,0,null,null,null,0,null,null,null,0,null,null,null,0]
[null,null,null,0,null,null,null,0,null,null,null,0,null,null,null,0,null,null,null,0,null,null,null,0,null,null,null,0,null,null,null,0,null,null,null,0,null,null,null,0,null,null,null,0,null,null,null,0,null,null,null,0,null,null,null,0,null,null,null,0]
[null,null,null,0,null,null,null,0,null,null,null,0,null,null,null,0,null,null,null,0,null,null,null,0,null,null,null,0,null,null,null,0,null,null,null,0,null,null,null,0,null,null,null,0,null,null,null,0,null,null,null,0,null,null,null,0,null,null,null,0]
[null,null,null,0,null,null,null,0,null,null,null,0,null,null,null,0,null,null,null,0,null,null,null,0,null,null,null,0,null,null,null,0,null,null,null,0,null,null,null,0,null,null,null,0,null,null,null,0,null,null,null,0,null,null,null,0,null,null,null,0]
[null,null,null,0,null,null,null,0,null,null,null,0,null,null,null,0,null,null,null,0,null,null,null,0,null,null,null,0,null,null,null,0,null,null,null,0,null,null,null,0,null,null,null,0,null,null,null,0,null,null,null,0,null,null,null,0,null,null,null,0]
[null,null,null,0,null,null,null,0,null,null,null,0,null,null,null,0,null,null,null,0,null,null,null,0,null,null,null,0,null,null,null,0,null,null,null,0,null,null,null,0,null,null,null,0,null,null,null,0,null,null,null,0,null,null,null,0,null,null,null,0]
[null,null,null,0,null,null,null,0,null,null,null,0,null,null,null,0,null,null,null,0,null,null,null,0,null,null,null,0,null,null,null,0,null,null,null,0,null,null,null,0,null,null,null,0,null,null,null,0,null,null,null,0,null,null,null,0,null,null,null,0]
[null,null,null,0,null,null,null,0,null,null,null,0,null,null,null,0,null,null,null,0,null,null,null,0,null,null,null,0,null,null,null,0,null,null,null,0,null,null,null,0,null,null,null,0,null,null,null,0,null,null,null,0,null,null,null,0,null,null,null,0]
[null,null,null,0,null,null,null,0,null,null,null,0,null,null,null,0,null,null,null,0,null,null,null,0,null,null,null,0,null,null,null,0,null,null,null,0,null,null,null,0,null,null,null,0,null,null,null,0,null,null,null,0,null,null,null,0,null,null,null,0]
[null,null,null,0,null,null,null,0,null,null,null,0,null,null,null,0,null,null,null,0,null,null,null,0,null,null,null,0,null,null,null,0,null,null,null,0,null,null,null,0,null,null,null,0,null,null,null,0,null,null,null,0,null,null,null,0,null,null,null,0]
[null,null,null,0,null,null,null,0,null,null,null,0,null,null,null,0,null,null,null,0,null,null,null,0,null,null,null,0,null,null,null,0,null,null,null,0,null,null,null,0,null,null,null,0,null,null,null,0,null,null,null,0,null,null,null,0,null,null,null,0]
[null,null,null,0,null,null,null,0,null,null,null,0,null,null,null,0,null,null,null,0,null,null,null,0,null,null,null,0,null,null,null,0,null,null,null,0,null,null,null,0,null,null,null,0,null,null,null,0,null,null,null,0,null,null,null,0,null,null,null,0]
[null,null,null,0,null,null,null,0,null,null,null,0,null,null,null,0,null,null,null,0,null,null,null,0,null,null,null,0,null,null,null,0,null,null,null,0,null,null,null,0,null,null,null,0,null,null,null,0,null,null,null,0,null,null,null,0,null,null,null,0]
[null,null,null,0,null,null,null,0,null,null,null,0,null,null,null,0,null,null,null,0,null,null,null,0,null,null,null,0,null,null,null,0,null,null,null,0,null,null,null,0,null,null,null,0,null,null,null,0,null,null,null,0,null,null,null,0,null,null,null,0]
[null,null,null,0,null,null,null,0,null,null,null,0,null,null,null,0,null,null,null,0,null,null,null,0,null,null,null,0,null,null,null,0,null,null,null,0,null,null,null,0,null,null,null,0,null,null,null,0,null,null,null,0,null,null,null,0,null,null,null,0]
[null,null,null,0,null,null,null,0,null,null,null,0,null,null,null,0,null,null,null,0,null,null,null,0,null,null,null,0,null,null,null,0,null,null,null,0,null,null,null,0,null,null,null,0,null,null,null,0,null,null,null,0,null,null,null,0,null,null,null,0]
[null,null,null,0,null,null,null,0,null,null,null,0,null,null,null,0,null,null,null,0,null,null,null,0,null,null,null,0,null,null,null,0,null,null,null,0,null,null,null,0,null,null,null,0,null,null,null,0,null,null,null,0,null,null,null,0,null,null,null,0]
[null,null,null,0,null,null,null,0,null,null,null,0,null,null,null,0,null,null,null,0,null,null,null,0,null,null,null,0,null,null,null,0,null,null,null,0,null,null,null,0,null,null,null,0,null,null,null,0,null,null,null,0,null,null,null,0,null,null,null,0]
[null,null,null,0,null,null,null,0,null,null,null,0,null,null,null,0,null,null,null,0,null,null,null,0,null,null,null,0,null,null,null,0,null,null,null,0,null,null,null,0,null,null,null,0,null,null,null,0,null,null,null,0,null,null,null,0,null,null,null,0]
[null,null,null,0,null,null,null,0,null,null,null,0,null,null,null,0,null,null,null,0,null,null,null,0,null,null,null,0,null,null,null,0,null,null,null,0,null,null,null,0,null,null,null,0,null,null,null,0,null,null,null,0,null,null,null,0,null,null,null,0]
[null,null,null,0,null,null,null,0,null,null,null,0,null,null,null,0,null,null,null,0,null,null,null,0,null,null,null,0,null,null,null,0,null,null,null,0,null,null,null,0,null,null,null,0,null,null,null,0,null,null,null,0,null,null,null,0,null,null,null,0]
[null,null,null,0,null,null,null,0,null,null,null,0,null,null,null,0,null,null,null,0,null,null,null,0,null,null,null,0,null,null,null,0,null,null,null,0,null,null,null,0,null,null,null,0,null,null,null,0,null,null,null,0,null,null,null,0,null,null,null,0]
[null,null,null,0,null,null,null,0,null,null,null,0,null,null,null,0,null,null,null,0,null,null,null,0,null,null,null,0,null,null,null,0,null,null,null,0,null,null,null,0,null,null,null,0,null,null,null,0,null,null,null,0,null,null,null,0,null,null,null,0]
[null,null,null,0,null,null,null,0,null,null,null,0,null,null,null,0,null,null,null,0,null,null,null,0,null,null,null,0,null,null,null,0,null,null,null,0,null,null,null,0,null,null,null,0,null,null,null,0,null,null,null,0,null,null,null,0,null,null,null,0]
[null,null,null,0,null,null,null,0,null,null,null,0,null,null,null,0,null,null,null,0,null,null,null,0,null,null,null,0,null,null,null,0,null,null,null,0,null,null,null,0,null,null,null,0,null,null,null,0,null,null,null,0,null,null,null,0,null,null,null,0]
[null,null,null,0,null,null,null,0,null,null,null,0,null,null,null,0,null,null,null,0,null,null,null,0,null,null,null,0,null,null,null,0,null,null,null,0,null,null,null,0,null,null,null,0,null,null,null,0,null,null,null,0,null,null,null,0,null,null,null,0]
[null,null,null,0,null,null,null,0,null,null,null,0,null,null,null,0,null,null,null,0,null,null,null,0,null,null,null,0,null,null,null,0,null,null,null,0,null,null,null,0,null,null,null,0,null,null,null,0,null,null,null,0,null,null,null,0,null,null,null,0]
[null,null,null,0,null,null,null,0,null,null,null,0,null,null,null,0,null,null,null,0,null,null,null,0,null,null,null,0,null,null,null,0,null,null,null,0,null,null,null,0,null,null,null,0,null,null,null,0,null,null,null,0,null,null,null,0,null,null,null,0]
[null,null,null,0,null,null,null,0,null,null,null,0,null,null,null,0,null,null,null,0,null,null,null,0,null,null,null,0,null,null,null,0,null,null,null,0,null,null,null,0,null,null,null,0,null,null,null,0,null,null,null,0,null,null,null,0,null,null,null,0]
[null,null,null,0,null,null,null,0,null,null,null,0,null,null,null,0,null,null,null,0,null,null,null,0,null,null,null,0,null,null,null,0,null,null,null,0,null,null,null,0,null,null,null,0,null,null,null,0,null,null,null,0,null,null,null,0,null,null,null,0]
[null,null,null,0,null,null,null,0,null,null,null,0,null,null,null,0,null,null,null,0,null,null,null,0,null,null,null,0,null,null,null,0,null,null,null,0,null,null,null,0,null,null,null,0,null,null,null,0,null,null,null,0,null,null,null,0,null,null,null,0]
[null,null,null,0,null,null,null,0,null,null,null,0,null,null,null,0,null,null,null,0,null,null,null,0,null,null,null,0,null,null,null,0,null,null,null,0,null,null,null,0,null,null,null,0,null,null,null,0,null,null,null,0,null,null,null,0,null,null,null,0]
[null,null,null,0,null,null,null,0,null,null,null,0,null,null,null,0,null,null,null,0,null,null,null,0,null,null,null,0,null,null,null,0,null,null,null,0,null,null,null,0,null,null,null,0,null,null,null,0,null,null,null,0,null,null,null,0,null,null,null,0]
[null,null,null,0,null,null,null,0,null,null,null,0,null,null,null,0,null,null,null,0,null,null,null,0,null,null,null,0,null,null,null,0,null,null,null,0,null,null,null,0,null,null,null,0,null,null,null,0,null,null,null,0,null,null,null,0,null,null,null,0]
[null,null,null,0,null,null,null,0,null,null,null,0,null,null,null,0,null,null,null,0,null,null,null,0,null,null,null,0,null,null,null,0,null,null,null,0,null,null,null,0,null,null,null,0,null,null,null,0,null,null,null,0,null,null,null,0,null,null,null,0]
[null,null,null,0,null,null,null,0,null,null,null,0,null,null,null,0,null,null,null,0,null,null,null,0,null,null,null,0,null,null,null,0,null,null,null,0,null,null,null,0,null,null,null,0,null,null,null,0,null,null,null,0,null,null,null,0,null,null,null,0]
[null,null,null,0,null,null,null,0,null,null,null,0,null,null,null,0,null,null,null,0,null,null,null,0,null,null,null,0,null,null,null,0,null,null,null,0,null,null,null,0,null,null,null,0,null,null,null,0,null,null,null,0,null,null,null,0,null,null,null,0]
[null,null,null,0,null,null,null,0,null,null,null,0,null,null,null,0,null,null,null,0,null,null,null,0,null,null,null,0,null,null,null,0,null,null,null,0,null,null,null,0,null,null,null,0,null,null,null,0,null,null,null,0,null,null,null,0,null,null,null,0]
[null,null,null,0,null,null,null,0,null,null,null,0,null,null,null,0,null,null,null,0,null,null,null,0,null,null,null,0,null,null,null,0,null,null,null,0,null,null,null,0,null,null,null,0,null,null,null,0,null,null,null,0,null,null,null,0,null,null,null,0]
[null,null,null,0,null,null,null,0,null,null,null,0,null,null,null,0,null,null,null,0,null,null,null,0,null,null,null,0,null,null,null,0,null,null,null,0,null,null,null,0,null,null,null,0,null,null,null,0,null,null,null,0,null,null,null,0,null,null,null,0]
[null,null,null,0,null,null,null,0,null,null,null,0,null,null,null,0,null,null,null,0,null,null,null,0,null,null,null,0,null,null,null,0,null,null,null,0,null,null,null,0,null,null,null,0,null,null,null,0,null,null,null,0,null,null,null,0,null,null,null,0]
[null,null,null,0,null,null,null,0,null,null,null,0,null,null,null,0,null,null,null,0,null,null,null,0,null,null,null,0,null,null,null,0,null,null,null,0,null,null,null,0,null,null,null,0,null,null,null,0,null,null,null,0,null,null,null,0,null,null,null,0]
[null,null,null,0,null,null,null,0,null,null,null,0,null,null,null,0,null,null,null,0,null,null,null,0,null,null,null,0,null,null,null,0,null,null,null,0,null,null,null,0,null,null,null,0,null,null,null,0,null,null,null,0,null,null,null,0,null,null,null,0]
[null,null,null,0,null,null,null,0,null,null,null,0,null,null,null,0,null,null,null,0,null,null,null,0,null,null,null,0,null,null,null,0,null,null,null,0,null,null,null,0,null,null,null,0,null,null,null,0,null,null,null,0,null,null,null,0,null,null,null,0]
[null,null,null,0,null,null,null,0,null,null,null,0,null,null,null,0,null,null,null,0,null,null,null,0,null,null,null,0,null,null,null,0,null,null,null,0,null,null,null,0,null,null,null,0,null,null,null,0,null,null,null,0,null,null,null,0,null,null,null,0]
[null,null,null,0,null,null,null,0,null,null,null,0,null,null,null,0,null,null,null,0,null,null,null,0,null,null,null,0,null,null,null,0,null,null,null,0,null,null,null,0,null,null,null,0,null,null,null,0,null,null,null,0,null,null,null,0,null,null,null,0]
[null,null,null,0,null,null,null,0,null,null,null,0,null,null,null,0,null,null,null,0,null,null,null,0,null,null,null,0,null,null,null,0,null,null,null,0,null,null,null,0,null,null,null,0,null,null,null,0,null,null,null,0,null,null,null,0,null,null,null,0]
[null,null,null,0,null,null,null,0,null,null,null,0,null,null,null,0,null,null,null,0,null,null,null,0,null,null,null,0,null,null,null,0,null,null,null,0,null,null,null,0,null,null,null,0,null,null,null,0,null,null,null,0,null,null,null,0,null,null,null,0]
[null,null,null,0,null,null,null,0,null,null,null,0,null,null,null,0,null,null,null,0,null,null,null,0,null,null,null,0,null,null,null,0,null,null,null,0,null,null,null,0,null,null,null,0,null,null,null,0,null,null,null,0,null,null,null,0,null,null,null,0]
[null,null,null,0,null,null,null,0,null,null,null,0,null,null,null,0,null,null,null,0,null,null,null,0,null,null,null,0,null,null,null,0,null,null,null,0,null,null,null,0,null,null,null,0,null,null,null,0,null,null,null,0,null,null,null,0,null,null,null,0]
[null,null,null,0,null,null,null,0,null,null,null,0,null,null,null,0,null,null,null,0,null,null,null,0,null,null,null,0,null,null,null,0,null,null,null,0,null,null,null,0,null,null,null,0,null,null,null,0,null,null,null,0,null,null,null,0,null,null,null,0]
[null,null,null,0,null,null,null,0,null,null,null,0,null,null,null,0,null,null,null,0,null,null,null,0,null,null,null,0,null,null,null,0,null,null,null,0,null,null,null,0,null,null,null,0,null,null,null,0,null,null,null,0,null,null,null,0,null,null,null,0]
[null,null,null,{"$f":"IF(B199-C199<>0,D198+B199-C199,0)","v":0},null,null,null,{"$f":"IF(F199-G199<>0,H198+F199-G199,0)","v":0},null,null,null,{"$f":"IF(J199-K199<>0,L198+J199-K199,0)","v":0},null,null,null,{"$f":"IF(N199-O199<>0,P198+N199-O199,0)","v":0},null,null,null,{"$f":"IF(R199-S199<>0,T198+R199-S199,0)","v":0},null,null,null,{"$f":"IF(V199-W199<>0,X198+V199-W199,0)","v":0},null,null,null,{"$f":"IF(Z199-AA199<>0,AB198+Z199-AA199,0)","v":0},null,null,null,{"$f":"IF(AD199-AE199<>0,AF198+AD199-AE199,0)","v":0},null,null,null,{"$f":"IF(AH199-AI199<>0,AJ198+AH199-AI199,0)","v":0},null,null,null,{"$f":"IF(AL199-AM199<>0,AN198+AL199-AM199,0)","v":0},null,null,null,{"$f":"IF(AP199-AQ199<>0,AR198+AP199-AQ199,0)","v":0},null,null,null,{"$f":"IF(AT199-AU199<>0,AV198+AT199-AU199,0)","v":0},null,null,null,{"$f":"IF(AX199-AY199<>0,AZ198+AX199-AY199,0)","v":0},null,null,null,{"$f":"IF(BB199-BC199<>0,BD198+BB199-BC199,0)","v":0},null,null,null,{"$f":"IF(BF199-BG199<>0,BH198+BF199-BG199,0)","v":0}]
[null,null,null,0,null,null,null,0,null,null,null,0,null,null,null,0,null,null,null,0,null,null,null,0,null,null,null,0,null,null,null,0,null,null,null,0,null,null,null,0,null,null,null,0,null,null,null,0,null,null,null,0,null,null,null,0,null,null,null,0]
[null,null,null,0,null,null,null,0,null,null,null,0,null,null,null,0,null,null,null,0,null,null,null,0,null,null,null,0,null,null,null,0,null,null,null,0,null,null,null,0,null,null,null,0,null,null,null,0,null,null,null,0,null,null,null,0,null,null,null,0]
[null,null,null,0,null,null,null,0,null,null,null,0,null,null,null,0,null,null,null,0,null,null,null,0,null,null,null,0,null,null,null,0,null,null,null,0,null,null,null,0,null,null,null,0,null,null,null,0,null,null,null,0,null,null,null,0,null,null,null,0]
[null,null,null,0,null,null,null,0,null,null,null,0,null,null,null,0,null,null,null,0,null,null,null,0,null,null,null,0,null,null,null,0,null,null,null,0,null,null,null,0,null,null,null,0,null,null,null,0,null,null,null,0,null,null,null,0,null,null,null,0]
[null,null,null,0,null,null,null,0,null,null,null,0,null,null,null,0,null,null,null,0,null,null,null,0,null,null,null,0,null,null,null,0,null,null,null,0,null,null,null,0,null,null,null,0,null,null,null,0,null,null,null,0,null,null,null,0,null,null,null,0]
[null,null,null,0,null,null,null,0,null,null,null,0,null,null,null,0,null,null,null,0,null,null,null,0,null,null,null,0,null,null,null,0,null,null,null,0,null,null,null,0,null,null,null,0,null,null,null,0,null,null,null,0,null,null,null,0,null,null,null,0]
[null,null,null,0,null,null,null,0,null,null,null,0,null,null,null,0,null,null,null,0,null,null,null,0,null,null,null,0,null,null,null,0,null,null,null,0,null,null,null,0,null,null,null,0,null,null,null,0,null,null,null,0,null,null,null,0,null,null,null,0]
[null,null,null,0,null,null,null,0,null,null,null,0,null,null,null,0,null,null,null,0,null,null,null,0,null,null,null,0,null,null,null,0,null,null,null,0,null,null,null,0,null,null,null,0,null,null,null,0,null,null,null,0,null,null,null,0,null,null,null,0]
[null,null,null,0,null,null,null,0,null,null,null,0,null,null,null,0,null,null,null,0,null,null,null,0,null,null,null,0,null,null,null,0,null,null,null,0,null,null,null,0,null,null,null,0,null,null,null,0,null,null,null,0,null,null,null,0,null,null,null,0]
[null,null,null,0,null,null,null,0,null,null,null,0,null,null,null,0,null,null,null,0,null,null,null,0,null,null,null,0,null,null,null,0,null,null,null,0,null,null,null,0,null,null,null,0,null,null,null,0,null,null,null,0,null,null,null,0,null,null,null,0]
[null,null,null,0,null,null,null,0,null,null,null,0,null,null,null,0,null,null,null,0,null,null,null,0,null,null,null,0,null,null,null,0,null,null,null,0,null,null,null,0,null,null,null,0,null,null,null,0,null,null,null,0,null,null,null,0,null,null,null,0]
[null,null,null,0,null,null,null,0,null,null,null,0,null,null,null,0,null,null,null,0,null,null,null,0,null,null,null,0,null,null,null,0,null,null,null,0,null,null,null,0,null,null,null,0,null,null,null,0,null,null,null,0,null,null,null,0,null,null,null,0]
[null,null,null,0,null,null,null,0,null,null,null,0,null,null,null,0,null,null,null,0,null,null,null,0,null,null,null,0,null,null,null,0,null,null,null,0,null,null,null,0,null,null,null,0,null,null,null,0,null,null,null,0,null,null,null,0,null,null,null,0]
[null,null,null,0,null,null,null,0,null,null,null,0,null,null,null,0,null,null,null,0,null,null,null,0,null,null,null,0,null,null,null,0,null,null,null,0,null,null,null,0,null,null,null,0,null,null,null,0,null,null,null,0,null,null,null,0,null,null,null,0]
[null,null,null,0,null,null,null,0,null,null,null,0,null,null,null,0,null,null,null,0,null,null,null,0,null,null,null,0,null,null,null,0,null,null,null,0,null,null,null,0,null,null,null,0,null,null,null,0,null,null,null,0,null,null,null,0,null,null,null,0]
[null,null,null,0,null,null,null,0,null,null,null,0,null,null,null,0,null,null,null,0,null,null,null,0,null,null,null,0,null,null,null,0,null,null,null,0,null,null,null,0,null,null,null,0,null,null,null,0,null,null,null,0,null,null,null,0,null,null,null,0]
[null,null,null,0,null,null,null,0,null,null,null,0,null,null,null,0,null,null,null,0,null,null,null,0,null,null,null,0,null,null,null,0,null,null,null,0,null,null,null,0,null,null,null,0,null,null,null,0,null,null,null,0,null,null,null,0,null,null,null,0]
[null,null,null,0,null,null,null,0,null,null,null,0,null,null,null,0,null,null,null,0,null,null,null,0,null,null,null,0,null,null,null,0,null,null,null,0,null,null,null,0,null,null,null,0,null,null,null,0,null,null,null,0,null,null,null,0,null,null,null,0]
[null,null,null,0,null,null,null,0,null,null,null,0,null,null,null,0,null,null,null,0,null,null,null,0,null,null,null,0,null,null,null,0,null,null,null,0,null,null,null,0,null,null,null,0,null,null,null,0,null,null,null,0,null,null,null,0,null,null,null,0]
[null,null,null,0,null,null,null,0,null,null,null,0,null,null,null,0,null,null,null,0,null,null,null,0,null,null,null,0,null,null,null,0,null,null,null,0,null,null,null,0,null,null,null,0,null,null,null,0,null,null,null,0,null,null,null,0,null,null,null,0]
[null,null,null,0,null,null,null,0,null,null,null,0,null,null,null,0,null,null,null,0,null,null,null,0,null,null,null,0,null,null,null,0,null,null,null,0,null,null,null,0,null,null,null,0,null,null,null,0,null,null,null,0,null,null,null,0,null,null,null,0]
[null,null,null,0,null,null,null,0,null,null,null,0,null,null,null,0,null,null,null,0,null,null,null,0,null,null,null,0,null,null,null,0,null,null,null,0,null,null,null,0,null,null,null,0,null,null,null,0,null,null,null,0,null,null,null,0,null,null,null,0]
[null,null,null,0,null,null,null,0,null,null,null,0,null,null,null,0,null,null,null,0,null,null,null,0,null,null,null,0,null,null,null,0,null,null,null,0,null,null,null,0,null,null,null,0,null,null,null,0,null,null,null,0,null,null,null,0,null,null,null,0]
[null,null,null,0,null,null,null,0,null,null,null,0,null,null,null,0,null,null,null,0,null,null,null,0,null,null,null,0,null,null,null,0,null,null,null,0,null,null,null,0,null,null,null,0,null,null,null,0,null,null,null,0,null,null,null,0,null,null,null,0]
[null,null,null,0,null,null,null,0,null,null,null,0,null,null,null,0,null,null,null,0,null,null,null,0,null,null,null,0,null,null,null,0,null,null,null,0,null,null,null,0,null,null,null,0,null,null,null,0,null,null,null,0,null,null,null,0,null,null,null,0]
[null,null,null,0,null,null,null,0,null,null,null,0,null,null,null,0,null,null,null,0,null,null,null,0,null,null,null,0,null,null,null,0,null,null,null,0,null,null,null,0,null,null,null,0,null,null,null,0,null,null,null,0,null,null,null,0,null,null,null,0]
[null,null,null,0,null,null,null,0,null,null,null,0,null,null,null,0,null,null,null,0,null,null,null,0,null,null,null,0,null,null,null,0,null,null,null,0,null,null,null,0,null,null,null,0,null,null,null,0,null,null,null,0,null,null,null,0,null,null,null,0]
[null,null,null,0,null,null,null,0,null,null,null,0,null,null,null,0,null,null,null,0,null,null,null,0,null,null,null,0,null,null,null,0,null,null,null,0,null,null,null,0,null,null,null,0,null,null,null,0,null,null,null,0,null,null,null,0,null,null,null,0]
[null,null,null,0,null,null,null,0,null,null,null,0,null,null,null,0,null,null,null,0,null,null,null,0,null,null,null,0,null,null,null,0,null,null,null,0,null,null,null,0,null,null,null,0,null,null,null,0,null,null,null,0,null,null,null,0,null,null,null,0]
[null,null,null,0,null,null,null,0,null,null,null,0,null,null,null,0,null,null,null,0,null,null,null,0,null,null,null,0,null,null,null,0,null,null,null,0,null,null,null,0,null,null,null,0,null,null,null,0,null,null,null,0,null,null,null,0,null,null,null,0]
[null,null,null,0,null,null,null,0,null,null,null,0,null,null,null,0,null,null,null,0,null,null,null,0,null,null,null,0,null,null,null,0,null,null,null,0,null,null,null,0,null,null,null,0,null,null,null,0,null,null,null,0,null,null,null,0,null,null,null,0]
[null,null,null,0,null,null,null,0,null,null,null,0,null,null,null,0,null,null,null,0,null,null,null,0,null,null,null,0,null,null,null,0,null,null,null,0,null,null,null,0,null,null,null,0,null,null,null,0,null,null,null,0,null,null,null,0,null,null,null,0]
[null,null,null,0,null,null,null,0,null,null,null,0,null,null,null,0,null,null,null,0,null,null,null,0,null,null,null,0,null,null,null,0,null,null,null,0,null,null,null,0,null,null,null,0,null,null,null,0,null,null,null,0,null,null,null,0,null,null,null,0]
[null,null,null,0,null,null,null,0,null,null,null,0,null,null,null,0,null,null,null,0,null,null,null,0,null,null,null,0,null,null,null,0,null,null,null,0,null,null,null,0,null,null,null,0,null,null,null,0,null,null,null,0,null,null,null,0,null,null,null,0]
[null,null,null,0,null,null,null,0,null,null,null,0,null,null,null,0,null,null,null,0,null,null,null,0,null,null,null,0,null,null,null,0,null,null,null,0,null,null,null,0,null,null,null,0,null,null,null,0,null,null,null,0,null,null,null,0,null,null,null,0]
[null,null,null,0,null,null,null,0,null,null,null,0,null,null,null,0,null,null,null,0,null,null,null,0,null,null,null,0,null,null,null,0,null,null,null,0,null,null,null,0,null,null,null,0,null,null,null,0,null,null,null,0,null,null,null,0,null,null,null,0]
[null,null,null,0,null,null,null,0,null,null,null,0,null,null,null,0,null,null,null,0,null,null,null,0,null,null,null,0,null,null,null,0,null,null,null,0,null,null,null,0,null,null,null,0,null,null,null,0,null,null,null,0,null,null,null,0,null,null,null,0]
[null,null,null,0,null,null,null,0,null,null,null,0,null,null,null,0,null,null,null,0,null,null,null,0,null,null,null,0,null,null,null,0,null,null,null,0,null,null,null,0,null,null,null,0,null,null,null,0,null,null,null,0,null,null,null,0,null,null,null,0]
[null,null,null,0,null,null,null,0,null,null,null,0,null,null,null,0,null,null,null,0,null,null,null,0,null,null,null,0,null,null,null,0,null,null,null,0,null,null,null,0,null,null,null,0,null,null,null,0,null,null,null,0,null,null,null,0,null,null,null,0]
[null,null,null,0,null,null,null,0,null,null,null,0,null,null,null,0,null,null,null,0,null,null,null,0,null,null,null,0,null,null,null,0,null,null,null,0,null,null,null,0,null,null,null,0,null,null,null,0,null,null,null,0,null,null,null,0,null,null,null,0]
[null,null,null,0,null,null,null,0,null,null,null,0,null,null,null,0,null,null,null,0,null,null,null,0,null,null,null,0,null,null,null,0,null,null,null,0,null,null,null,0,null,null,null,0,null,null,null,0,null,null,null,0,null,null,null,0,null,null,null,0]
[null,null,null,0,null,null,null,0,null,null,null,0,null,null,null,0,null,null,null,0,null,null,null,0,null,null,null,0,null,null,null,0,null,null,null,0,null,null,null,0,null,null,null,0,null,null,null,0,null,null,null,0,null,null,null,0,null,null,null,0]
[null,null,null,0,null,null,null,0,null,null,null,0,null,null,null,0,null,null,null,0,null,null,null,0,null,null,null,0,null,null,null,0,null,null,null,0,null,null,null,0,null,null,null,0,null,null,null,0,null,null,null,0,null,null,null,0,null,null,null,0]
[null,null,null,0,null,null,null,0,null,null,null,0,null,null,null,0,null,null,null,0,null,null,null,0,null,null,null,0,null,null,null,0,null,null,null,0,null,null,null,0,null,null,null,0,null,null,null,0,null,null,null,0,null,null,null,0,null,null,null,0]
[null,null,null,0,null,null,null,0,null,null,null,0,null,null,null,0,null,null,null,0,null,null,null,0,null,null,null,0,null,null,null,0,null,null,null,0,null,null,null,0,null,null,null,0,null,null,null,0,null,null,null,0,null,null,null,0,null,null,null,0]
[null,null,null,0,null,null,null,0,null,null,null,0,null,null,null,0,null,null,null,0,null,null,null,0,null,null,null,0,null,null,null,0,null,null,null,0,null,null,null,0,null,null,null,0,null,null,null,0,null,null,null,0,null,null,null,0,null,null,null,0]
[null,null,null,0,null,null,null,0,null,null,null,0,null,null,null,0,null,null,null,0,null,null,null,0,null,null,null,0,null,null,null,0,null,null,null,0,null,null,null,0,null,null,null,0,null,null,null,0,null,null,null,0,null,null,null,0,null,null,null,0]
[null,null,null,0,null,null,null,0,null,null,null,0,null,null,null,0,null,null,null,0,null,null,null,0,null,null,null,0,null,null,null,0,null,null,null,0,null,null,null,0,null,null,null,0,null,null,null,0,null,null,null,0,null,null,null,0,null,null,null,0]
[null,null,null,0,null,null,null,0,null,null,null,0,null,null,null,0,null,null,null,0,null,null,null,0,null,null,null,0,null,null,null,0,null,null,null,0,null,null,null,0,null,null,null,0,null,null,null,0,null,null,null,0,null,null,null,0,null,null,null,0]
[null,null,null,0,null,null,null,0,null,null,null,0,null,null,null,0,null,null,null,0,null,null,null,0,null,null,null,0,null,null,null,0,null,null,null,0,null,null,null,0,null,null,null,0,null,null,null,0,null,null,null,0,null,null,null,0,null,null,null,0]
[null,null,null,0,null,null,null,0,null,null,null,0,null,null,null,0,null,null,null,0,null,null,null,0,null,null,null,0,null,null,null,0,null,null,null,0,null,null,null,0,null,null,null,0,null,null,null,0,null,null,null,0,null,null,null,0,null,null,null,0]
[null,null,null,0,null,null,null,0,null,null,null,0,null,null,null,0,null,null,null,0,null,null,null,0,null,null,null,0,null,null,null,0,null,null,null,0,null,null,null,0,null,null,null,0,null,null,null,0,null,null,null,0,null,null,null,0,null,null,null,0]
[null,null,null,0,null,null,null,0,null,null,null,0,null,null,null,0,null,null,null,0,null,null,null,0,null,null,null,0,null,null,null,0,null,null,null,0,null,null,null,0,null,null,null,0,null,null,null,0,null,null,null,0,null,null,null,0,null,null,null,0]
[null,null,null,0,null,null,null,0,null,null,null,0,null,null,null,0,null,null,null,0,null,null,null,0,null,null,null,0,null,null,null,0,null,null,null,0,null,null,null,0,null,null,null,0,null,null,null,0,null,null,null,0,null,null,null,0,null,null,null,0]
[null,null,null,0,null,null,null,0,null,null,null,0,null,null,null,0,null,null,null,0,null,null,null,0,null,null,null,0,null,null,null,0,null,null,null,0,null,null,null,0,null,null,null,0,null,null,null,0,null,null,null,0,null,null,null,0,null,null,null,0]
[null,null,null,0,null,null,null,0,null,null,null,0,null,null,null,0,null,null,null,0,null,null,null,0,null,null,null,0,null,null,null,0,null,null,null,0,null,null,null,0,null,null,null,0,null,null,null,0,null,null,null,0,null,null,null,0,null,null,null,0]
[null,null,null,0,null,null,null,0,null,null,null,0,null,null,null,0,null,null,null,0,null,null,null,0,null,null,null,0,null,null,null,0,null,null,null,0,null,null,null,0,null,null,null,0,null,null,null,0,null,null,null,0,null,null,null,0,null,null,null,0]
[null,null,null,0,null,null,null,0,null,null,null,0,null,null,null,0,null,null,null,0,null,null,null,0,null,null,null,0,null,null,null,0,null,null,null,0,null,null,null,0,null,null,null,0,null,null,null,0,null,null,null,0,null,null,null,0,null,null,null,0]
[null,null,null,0,null,null,null,0,null,null,null,0,null,null,null,0,null,null,null,0,null,null,null,0,null,null,null,0,null,null,null,0,null,null,null,0,null,null,null,0,null,null,null,0,null,null,null,0,null,null,null,0,null,null,null,0,null,null,null,0]
[null,null,null,0,null,null,null,0,null,null,null,0,null,null,null,0,null,null,null,0,null,null,null,0,null,null,null,0,null,null,null,0,null,null,null,0,null,null,null,0,null,null,null,0,null,null,null,0,null,null,null,0,null,null,null,0,null,null,null,0]
[null,null,null,0,null,null,null,0,null,null,null,0,null,null,null,0,null,null,null,0,null,null,null,0,null,null,null,0,null,null,null,0,null,null,null,0,null,null,null,0,null,null,null,0,null,null,null,0,null,null,null,0,null,null,null,0,null,null,null,0]
[null,null,null,0,null,null,null,0,null,null,null,0,null,null,null,0,null,null,null,0,null,null,null,0,null,null,null,0,null,null,null,0,null,null,null,0,null,null,null,0,null,null,null,0,null,null,null,0,null,null,null,0,null,null,null,0,null,null,null,0]
[null,null,null,0,null,null,null,0,null,null,null,0,null,null,null,0,null,null,null,0,null,null,null,0,null,null,null,0,null,null,null,0,null,null,null,0,null,null,null,0,null,null,null,0,null,null,null,0,null,null,null,0,null,null,null,0,null,null,null,0]
[null,null,null,{"$f":"IF(B263-C263<>0,D262+B263-C263,0)","v":0},null,null,null,{"$f":"IF(F263-G263<>0,H262+F263-G263,0)","v":0},null,null,null,{"$f":"IF(J263-K263<>0,L262+J263-K263,0)","v":0},null,null,null,{"$f":"IF(N263-O263<>0,P262+N263-O263,0)","v":0},null,null,null,{"$f":"IF(R263-S263<>0,T262+R263-S263,0)","v":0},null,null,null,{"$f":"IF(V263-W263<>0,X262+V263-W263,0)","v":0},null,null,null,{"$f":"IF(Z263-AA263<>0,AB262+Z263-AA263,0)","v":0},null,null,null,{"$f":"IF(AD263-AE263<>0,AF262+AD263-AE263,0)","v":0},null,null,null,{"$f":"IF(AH263-AI263<>0,AJ262+AH263-AI263,0)","v":0},null,null,null,{"$f":"IF(AL263-AM263<>0,AN262+AL263-AM263,0)","v":0},null,null,null,{"$f":"IF(AP263-AQ263<>0,AR262+AP263-AQ263,0)","v":0},null,null,null,{"$f":"IF(AT263-AU263<>0,AV262+AT263-AU263,0)","v":0},null,null,null,{"$f":"IF(AX263-AY263<>0,AZ262+AX263-AY263,0)","v":0},null,null,null,{"$f":"IF(BB263-BC263<>0,BD262+BB263-BC263,0)","v":0},null,null,null,{"$f":"IF(BF263-BG263<>0,BH262+BF263-BG263,0)","v":0}]
[null,null,null,0,null,null,null,0,null,null,null,0,null,null,null,0,null,null,null,0,null,null,null,0,null,null,null,0,null,null,null,0,null,null,null,0,null,null,null,0,null,null,null,0,null,null,null,0,null,null,null,0,null,null,null,0,null,null,null,0]
[null,null,null,0,null,null,null,0,null,null,null,0,null,null,null,0,null,null,null,0,null,null,null,0,null,null,null,0,null,null,null,0,null,null,null,0,null,null,null,0,null,null,null,0,null,null,null,0,null,null,null,0,null,null,null,0,null,null,null,0]
[null,null,null,0,null,null,null,0,null,null,null,0,null,null,null,0,null,null,null,0,null,null,null,0,null,null,null,0,null,null,null,0,null,null,null,0,null,null,null,0,null,null,null,0,null,null,null,0,null,null,null,0,null,null,null,0,null,null,null,0]
[null,null,null,0,null,null,null,0,null,null,null,0,null,null,null,0,null,null,null,0,null,null,null,0,null,null,null,0,null,null,null,0,null,null,null,0,null,null,null,0,null,null,null,0,null,null,null,0,null,null,null,0,null,null,null,0,null,null,null,0]
[null,null,null,0,null,null,null,0,null,null,null,0,null,null,null,0,null,null,null,0,null,null,null,0,null,null,null,0,null,null,null,0,null,null,null,0,null,null,null,0,null,null,null,0,null,null,null,0,null,null,null,0,null,null,null,0,null,null,null,0]
[null,null,null,0,null,null,null,0,null,null,null,0,null,null,null,0,null,null,null,0,null,null,null,0,null,null,null,0,null,null,null,0,null,null,null,0,null,null,null,0,null,null,null,0,null,null,null,0,null,null,null,0,null,null,null,0,null,null,null,0]
[null,null,null,0,null,null,null,0,null,null,null,0,null,null,null,0,null,null,null,0,null,null,null,0,null,null,null,0,null,null,null,0,null,null,null,0,null,null,null,0,null,null,null,0,null,null,null,0,null,null,null,0,null,null,null,0,null,null,null,0]
[null,null,null,0,null,null,null,0,null,null,null,0,null,null,null,0,null,null,null,0,null,null,null,0,null,null,null,0,null,null,null,0,null,null,null,0,null,null,null,0,null,null,null,0,null,null,null,0,null,null,null,0,null,null,null,0,null,null,null,0]
[null,null,null,0,null,null,null,0,null,null,null,0,null,null,null,0,null,null,null,0,null,null,null,0,null,null,null,0,null,null,null,0,null,null,null,0,null,null,null,0,null,null,null,0,null,null,null,0,null,null,null,0,null,null,null,0,null,null,null,0]
[null,null,null,0,null,null,null,0,null,null,null,0,null,null,null,0,null,null,null,0,null,null,null,0,null,null,null,0,null,null,null,0,null,null,null,0,null,null,null,0,null,null,null,0,null,null,null,0,null,null,null,0,null,null,null,0,null,null,null,0]
[null,null,null,0,null,null,null,0,null,null,null,0,null,null,null,0,null,null,null,0,null,null,null,0,null,null,null,0,null,null,null,0,null,null,null,0,null,null,null,0,null,null,null,0,null,null,null,0,null,null,null,0,null,null,null,0,null,null,null,0]
[null,null,null,0,null,null,null,0,null,null,null,0,null,null,null,0,null,null,null,0,null,null,null,0,null,null,null,0,null,null,null,0,null,null,null,0,null,null,null,0,null,null,null,0,null,null,null,0,null,null,null,0,null,null,null,0,null,null,null,0]
[null,null,null,0,null,null,null,0,null,null,null,0,null,null,null,0,null,null,null,0,null,null,null,0,null,null,null,0,null,null,null,0,null,null,null,0,null,null,null,0,null,null,null,0,null,null,null,0,null,null,null,0,null,null,null,0,null,null,null,0]
[null,null,null,0,null,null,null,0,null,null,null,0,null,null,null,0,null,null,null,0,null,null,null,0,null,null,null,0,null,null,null,0,null,null,null,0,null,null,null,0,null,null,null,0,null,null,null,0,null,null,null,0,null,null,null,0,null,null,null,0]
[null,null,null,0,null,null,null,0,null,null,null,0,null,null,null,0,null,null,null,0,null,null,null,0,null,null,null,0,null,null,null,0,null,null,null,0,null,null,null,0,null,null,null,0,null,null,null,0,null,null,null,0,null,null,null,0,null,null,null,0]
[null,null,null,0,null,null,null,0,null,null,null,0,null,null,null,0,null,null,null,0,null,null,null,0,null,null,null,0,null,null,null,0,null,null,null,0,null,null,null,0,null,null,null,0,null,null,null,0,null,null,null,0,null,null,null,0,null,null,null,0]
[null,null,null,0,null,null,null,0,null,null,null,0,null,null,null,0,null,null,null,0,null,null,null,0,null,null,null,0,null,null,null,0,null,null,null,0,null,null,null,0,null,null,null,0,null,null,null,0,null,null,null,0,null,null,null,0,null,null,null,0]
[null,null,null,0,null,null,null,0,null,null,null,0,null,null,null,0,null,null,null,0,null,null,null,0,null,null,null,0,null,null,null,0,null,null,null,0,null,null,null,0,null,null,null,0,null,null,null,0,null,null,null,0,null,null,null,0,null,null,null,0]
[null,null,null,0,null,null,null,0,null,null,null,0,null,null,null,0,null,null,null,0,null,null,null,0,null,null,null,0,null,null,null,0,null,null,null,0,null,null,null,0,null,null,null,0,null,null,null,0,null,null,null,0,null,null,null,0,null,null,null,0]
[null,null,null,0,null,null,null,0,null,null,null,0,null,null,null,0,null,null,null,0,null,null,null,0,null,null,null,0,null,null,null,0,null,null,null,0,null,null,null,0,null,null,null,0,null,null,null,0,null,null,null,0,null,null,null,0,null,null,null,0]
[null,null,null,0,null,null,null,0,null,null,null,0,null,null,null,0,null,null,null,0,null,null,null,0,null,null,null,0,null,null,null,0,null,null,null,0,null,null,null,0,null,null,null,0,null,null,null,0,null,null,null,0,null,null,null,0,null,null,null,0]
[null,null,null,0,null,null,null,0,null,null,null,0,null,null,null,0,null,null,null,0,null,null,null,0,null,null,null,0,null,null,null,0,null,null,null,0,null,null,null,0,null,null,null,0,null,null,null,0,null,null,null,0,null,null,null,0,null,null,null,0]
[null,null,null,0,null,null,null,0,null,null,null,0,null,null,null,0,null,null,null,0,null,null,null,0,null,null,null,0,null,null,null,0,null,null,null,0,null,null,null,0,null,null,null,0,null,null,null,0,null,null,null,0,null,null,null,0,null,null,null,0]
[null,null,null,0,null,null,null,0,null,null,null,0,null,null,null,0,null,null,null,0,null,null,null,0,null,null,null,0,null,null,null,0,null,null,null,0,null,null,null,0,null,null,null,0,null,null,null,0,null,null,null,0,null,null,null,0,null,null,null,0]
[null,null,null,0,null,null,null,0,null,null,null,0,null,null,null,0,null,null,null,0,null,null,null,0,null,null,null,0,null,null,null,0,null,null,null,0,null,null,null,0,null,null,null,0,null,null,null,0,null,null,null,0,null,null,null,0,null,null,null,0]
[null,null,null,0,null,null,null,0,null,null,null,0,null,null,null,0,null,null,null,0,null,null,null,0,null,null,null,0,null,null,null,0,null,null,null,0,null,null,null,0,null,null,null,0,null,null,null,0,null,null,null,0,null,null,null,0,null,null,null,0]
[null,null,null,0,null,null,null,0,null,null,null,0,null,null,null,0,null,null,null,0,null,null,null,0,null,null,null,0,null,null,null,0,null,null,null,0,null,null,null,0,null,null,null,0,null,null,null,0,null,null,null,0,null,null,null,0,null,null,null,0]
[null,null,null,0,null,null,null,0,null,null,null,0,null,null,null,0,null,null,null,0,null,null,null,0,null,null,null,0,null,null,null,0,null,null,null,0,null,null,null,0,null,null,null,0,null,null,null,0,null,null,null,0,null,null,null,0,null,null,null,0]
[null,null,null,0,null,null,null,0,null,null,null,0,null,null,null,0,null,null,null,0,null,null,null,0,null,null,null,0,null,null,null,0,null,null,null,0,null,null,null,0,null,null,null,0,null,null,null,0,null,null,null,0,null,null,null,0,null,null,null,0]
[null,null,null,0,null,null,null,0,null,null,null,0,null,null,null,0,null,null,null,0,null,null,null,0,null,null,null,0,null,null,null,0,null,null,null,0,null,null,null,0,null,null,null,0,null,null,null,0,null,null,null,0,null,null,null,0,null,null,null,0]
[null,null,null,0,null,null,null,0,null,null,null,0,null,null,null,0,null,null,null,0,null,null,null,0,null,null,null,0,null,null,null,0,null,null,null,0,null,null,null,0,null,null,null,0,null,null,null,0,null,null,null,0,null,null,null,0,null,null,null,0]
[null,null,null,0,null,null,null,0,null,null,null,0,null,null,null,0,null,null,null,0,null,null,null,0,null,null,null,0,null,null,null,0,null,null,null,0,null,null,null,0,null,null,null,0,null,null,null,0,null,null,null,0,null,null,null,0,null,null,null,0]
[null,null,null,0,null,null,null,0,null,null,null,0,null,null,null,0,null,null,null,0,null,null,null,0,null,null,null,0,null,null,null,0,null,null,null,0,null,null,null,0,null,null,null,0,null,null,null,0,null,null,null,0,null,null,null,0,null,null,null,0]
[null,null,null,0,null,null,null,0,null,null,null,0,null,null,null,0,null,null,null,0,null,null,null,0,null,null,null,0,null,null,null,0,null,null,null,0,null,null,null,0,null,null,null,0,null,null,null,0,null,null,null,0,null,null,null,0,null,null,null,0]
[null,null,null,0,null,null,null,0,null,null,null,0,null,null,null,0,null,null,null,0,null,null,null,0,null,null,null,0,null,null,null,0,null,null,null,0,null,null,null,0,null,null,null,0,null,null,null,0,null,null,null,0,null,null,null,0,null,null,null,0]
[null,null,null,0,null,null,null,0,null,null,null,0,null,null,null,0,null,null,null,0,null,null,null,0,null,null,null,0,null,null,null,0,null,null,null,0,null,null,null,0,null,null,null,0,null,null,null,0,null,null,null,0,null,null,null,0,null,null,null,0]
[null,null,null,0,null,null,null,0,null,null,null,0,null,null,null,0,null,null,null,0,null,null,null,0,null,null,null,0,null,null,null,0,null,null,null,0,null,null,null,0,null,null,null,0,null,null,null,0,null,null,null,0,null,null,null,0,null,null,null,0]
[null,null,null,0,null,null,null,0,null,null,null,0,null,null,null,0,null,null,null,0,null,null,null,0,null,null,null,0,null,null,null,0,null,null,null,0,null,null,null,0,null,null,null,0,null,null,null,0,null,null,null,0,null,null,null,0,null,null,null,0]
[null,null,null,0,null,null,null,0,null,null,null,0,null,null,null,0,null,null,null,0,null,null,null,0,null,null,null,0,null,null,null,0,null,null,null,0,null,null,null,0,null,null,null,0,null,null,null,0,null,null,null,0,null,null,null,0,null,null,null,0]
[null,null,null,0,null,null,null,0,null,null,null,0,null,null,null,0,null,null,null,0,null,null,null,0,null,null,null,0,null,null,null,0,null,null,null,0,null,null,null,0,null,null,null,0,null,null,null,0,null,null,null,0,null,null,null,0,null,null,null,0]
[null,null,null,0,null,null,null,0,null,null,null,0,null,null,null,0,null,null,null,0,null,null,null,0,null,null,null,0,null,null,null,0,null,null,null,0,null,null,null,0,null,null,null,0,null,null,null,0,null,null,null,0,null,null,null,0,null,null,null,0]
[null,null,null,0,null,null,null,0,null,null,null,0,null,null,null,0,null,null,null,0,null,null,null,0,null,null,null,0,null,null,null,0,null,null,null,0,null,null,null,0,null,null,null,0,null,null,null,0,null,null,null,0,null,null,null,0,null,null,null,0]
[null,null,null,0,null,null,null,0,null,null,null,0,null,null,null,0,null,null,null,0,null,null,null,0,null,null,null,0,null,null,null,0,null,null,null,0,null,null,null,0,null,null,null,0,null,null,null,0,null,null,null,0,null,null,null,0,null,null,null,0]
[null,null,null,0,null,null,null,0,null,null,null,0,null,null,null,0,null,null,null,0,null,null,null,0,null,null,null,0,null,null,null,0,null,null,null,0,null,null,null,0,null,null,null,0,null,null,null,0,null,null,null,0,null,null,null,0,null,null,null,0]
[null,null,null,0,null,null,null,0,null,null,null,0,null,null,null,0,null,null,null,0,null,null,null,0,null,null,null,0,null,null,null,0,null,null,null,0,null,null,null,0,null,null,null,0,null,null,null,0,null,null,null,0,null,null,null,0,null,null,null,0]
[null,null,null,0,null,null,null,0,null,null,null,0,null,null,null,0,null,null,null,0,null,null,null,0,null,null,null,0,null,null,null,0,null,null,null,0,null,null,null,0,null,null,null,0,null,null,null,0,null,null,null,0,null,null,null,0,null,null,null,0]
[null,null,null,0,null,null,null,0,null,null,null,0,null,null,null,0,null,null,null,0,null,null,null,0,null,null,null,0,null,null,null,0,null,null,null,0,null,null,null,0,null,null,null,0,null,null,null,0,null,null,null,0,null,null,null,0,null,null,null,0]
[null,null,null,0,null,null,null,0,null,null,null,0,null,null,null,0,null,null,null,0,null,null,null,0,null,null,null,0,null,null,null,0,null,null,null,0,null,null,null,0,null,null,null,0,null,null,null,0,null,null,null,0,null,null,null,0,null,null,null,0]
[null,null,null,0,null,null,null,0,null,null,null,0,null,null,null,0,null,null,null,0,null,null,null,0,null,null,null,0,null,null,null,0,null,null,null,0,null,null,null,0,null,null,null,0,null,null,null,0,null,null,null,0,null,null,null,0,null,null,null,0]
[null,null,null,0,null,null,null,0,null,null,null,0,null,null,null,0,null,null,null,0,null,null,null,0,null,null,null,0,null,null,null,0,null,null,null,0,null,null,null,0,null,null,null,0,null,null,null,0,null,null,null,0,null,null,null,0,null,null,null,0]
[null,null,null,0,null,null,null,0,null,null,null,0,null,null,null,0,null,null,null,0,null,null,null,0,null,null,null,0,null,null,null,0,null,null,null,0,null,null,null,0,null,null,null,0,null,null,null,0,null,null,null,0,null,null,null,0,null,null,null,0]
[null,null,null,0,null,null,null,0,null,null,null,0,null,null,null,0,null,null,null,0,null,null,null,0,null,null,null,0,null,null,null,0,null,null,null,0,null,null,null,0,null,null,null,0,null,null,null,0,null,null,null,0,null,null,null,0,null,null,null,0]
[null,null,null,0,null,null,null,0,null,null,null,0,null,null,null,0,null,null,null,0,null,null,null,0,null,null,null,0,null,null,null,0,null,null,null,0,null,null,null,0,null,null,null,0,null,null,null,0,null,null,null,0,null,null,null,0,null,null,null,0]
[null,null,null,0,null,null,null,0,null,null,null,0,null,null,null,0,null,null,null,0,null,null,null,0,null,null,null,0,null,null,null,0,null,null,null,0,null,null,null,0,null,null,null,0,null,null,null,0,null,null,null,0,null,null,null,0,null,null,null,0]
[null,null,null,0,null,null,null,0,null,null,null,0,null,null,null,0,null,null,null,0,null,null,null,0,null,null,null,0,null,null,null,0,null,null,null,0,null,null,null,0,null,null,null,0,null,null,null,0,null,null,null,0,null,null,null,0,null,null,null,0]
[null,null,null,0,null,null,null,0,null,null,null,0,null,null,null,0,null,null,null,0,null,null,null,0,null,null,null,0,null,null,null,0,null,null,null,0,null,null,null,0,null,null,null,0,null,null,null,0,null,null,null,0,null,null,null,0,null,null,null,0]
[null,null,null,0,null,null,null,0,null,null,null,0,null,null,null,0,null,null,null,0,null,null,null,0,null,null,null,0,null,null,null,0,null,null,null,0,null,null,null,0,null,null,null,0,null,null,null,0,null,null,null,0,null,null,null,0,null,null,null,0]
[null,null,null,0,null,null,null,0,null,null,null,0,null,null,null,0,null,null,null,0,null,null,null,0,null,null,null,0,null,null,null,0,null,null,null,0,null,null,null,0,null,null,null,0,null,null,null,0,null,null,null,0,null,null,null,0,null,null,null,0]
[null,null,null,0,null,null,null,0,null,null,null,0,null,null,null,0,null,null,null,0,null,null,null,0,null,null,null,0,null,null,null,0,null,null,null,0,null,null,null,0,null,null,null,0,null,null,null,0,null,null,null,0,null,null,null,0,null,null,null,0]
[null,null,null,0,null,null,null,0,null,null,null,0,null,null,null,0,null,null,null,0,null,null,null,0,null,null,null,0,null,null,null,0,null,null,null,0,null,null,null,0,null,null,null,0,null,null,null,0,null,null,null,0,null,null,null,0,null,null,null,0]
[null,null,null,0,null,null,null,0,null,null,null,0,null,null,null,0,null,null,null,0,null,null,null,0,null,null,null,0,null,null,null,0,null,null,null,0,null,null,null,0,null,null,null,0,null,null,null,0,null,null,null,0,null,null,null,0,null,null,null,0]
[null,null,null,0,null,null,null,0,null,null,null,0,null,null,null,0,null,null,null,0,null,null,null,0,null,null,null,0,null,null,null,0,null,null,null,0,null,null,null,0,null,null,null,0,null,null,null,0,null,null,null,0,null,null,null,0,null,null,null,0]
[null,null,null,0,null,null,null,0,null,null,null,0,null,null,null,0,null,null,null,0,null,null,null,0,null,null,null,0,null,null,null,0,null,null,null,0,null,null,null,0,null,null,null,0,null,null,null,0,null,null,null,0,null,null,null,0,null,null,null,0]
[null,null,null,{"$f":"IF(B327-C327<>0,D326+B327-C327,0)","v":0},null,null,null,{"$f":"IF(F327-G327<>0,H326+F327-G327,0)","v":0},null,null,null,{"$f":"IF(J327-K327<>0,L326+J327-K327,0)","v":0},null,null,null,{"$f":"IF(N327-O327<>0,P326+N327-O327,0)","v":0},null,null,null,{"$f":"IF(R327-S327<>0,T326+R327-S327,0)","v":0},null,null,null,{"$f":"IF(V327-W327<>0,X326+V327-W327,0)","v":0},null,null,null,{"$f":"IF(Z327-AA327<>0,AB326+Z327-AA327,0)","v":0},null,null,null,{"$f":"IF(AD327-AE327<>0,AF326+AD327-AE327,0)","v":0},null,null,null,{"$f":"IF(AH327-AI327<>0,AJ326+AH327-AI327,0)","v":0},null,null,null,{"$f":"IF(AL327-AM327<>0,AN326+AL327-AM327,0)","v":0},null,null,null,{"$f":"IF(AP327-AQ327<>0,AR326+AP327-AQ327,0)","v":0},null,null,null,{"$f":"IF(AT327-AU327<>0,AV326+AT327-AU327,0)","v":0},null,null,null,{"$f":"IF(AX327-AY327<>0,AZ326+AX327-AY327,0)","v":0},null,null,null,{"$f":"IF(BB327-BC327<>0,BD326+BB327-BC327,0)","v":0},null,null,null,{"$f":"IF(BF327-BG327<>0,BH326+BF327-BG327,0)","v":0}]
[null,null,null,0,null,null,null,0,null,null,null,0,null,null,null,0,null,null,null,0,null,null,null,0,null,null,null,0,null,null,null,0,null,null,null,0,null,null,null,0,null,null,null,0,null,null,null,0,null,null,null,0,null,null,null,0,null,null,null,0]
[null,null,null,0,null,null,null,0,null,null,null,0,null,null,null,0,null,null,null,0,null,null,null,0,null,null,null,0,null,null,null,0,null,null,null,0,null,null,null,0,null,null,null,0,null,null,null,0,null,null,null,0,null,null,null,0,null,null,null,0]
[null,null,null,0,null,null,null,0,null,null,null,0,null,null,null,0,null,null,null,0,null,null,null,0,null,null,null,0,null,null,null,0,null,null,null,0,null,null,null,0,null,null,null,0,null,null,null,0,null,null,null,0,null,null,null,0,null,null,null,0]
[null,null,null,0,null,null,null,0,null,null,null,0,null,null,null,0,null,null,null,0,null,null,null,0,null,null,null,0,null,null,null,0,null,null,null,0,null,null,null,0,null,null,null,0,null,null,null,0,null,null,null,0,null,null,null,0,null,null,null,0]
[null,null,null,0,null,null,null,0,null,null,null,0,null,null,null,0,null,null,null,0,null,null,null,0,null,null,null,0,null,null,null,0,null,null,null,0,null,null,null,0,null,null,null,0,null,null,null,0,null,null,null,0,null,null,null,0,null,null,null,0]
[null,null,null,0,null,null,null,0,null,null,null,0,null,null,null,0,null,null,null,0,null,null,null,0,null,null,null,0,null,null,null,0,null,null,null,0,null,null,null,0,null,null,null,0,null,null,null,0,null,null,null,0,null,null,null,0,null,null,null,0]
[null,null,null,0,null,null,null,0,null,null,null,0,null,null,null,0,null,null,null,0,null,null,null,0,null,null,null,0,null,null,null,0,null,null,null,0,null,null,null,0,null,null,null,0,null,null,null,0,null,null,null,0,null,null,null,0,null,null,null,0]
[null,null,null,0,null,null,null,0,null,null,null,0,null,null,null,0,null,null,null,0,null,null,null,0,null,null,null,0,null,null,null,0,null,null,null,0,null,null,null,0,null,null,null,0,null,null,null,0,null,null,null,0,null,null,null,0,null,null,null,0]
[null,null,null,0,null,null,null,0,null,null,null,0,null,null,null,0,null,null,null,0,null,null,null,0,null,null,null,0,null,null,null,0,null,null,null,0,null,null,null,0,null,null,null,0,null,null,null,0,null,null,null,0,null,null,null,0,null,null,null,0]
[null,null,null,0,null,null,null,0,null,null,null,0,null,null,null,0,null,null,null,0,null,null,null,0,null,null,null,0,null,null,null,0,null,null,null,0,null,null,null,0,null,null,null,0,null,null,null,0,null,null,null,0,null,null,null,0,null,null,null,0]
[null,null,null,0,null,null,null,0,null,null,null,0,null,null,null,0,null,null,null,0,null,null,null,0,null,null,null,0,null,null,null,0,null,null,null,0,null,null,null,0,null,null,null,0,null,null,null,0,null,null,null,0,null,null,null,0,null,null,null,0]
[null,null,null,0,null,null,null,0,null,null,null,0,null,null,null,0,null,null,null,0,null,null,null,0,null,null,null,0,null,null,null,0,null,null,null,0,null,null,null,0,null,null,null,0,null,null,null,0,null,null,null,0,null,null,null,0,null,null,null,0]
[null,null,null,0,null,null,null,0,null,null,null,0,null,null,null,0,null,null,null,0,null,null,null,0,null,null,null,0,null,null,null,0,null,null,null,0,null,null,null,0,null,null,null,0,null,null,null,0,null,null,null,0,null,null,null,0,null,null,null,0]
[null,null,null,0,null,null,null,0,null,null,null,0,null,null,null,0,null,null,null,0,null,null,null,0,null,null,null,0,null,null,null,0,null,null,null,0,null,null,null,0,null,null,null,0,null,null,null,0,null,null,null,0,null,null,null,0,null,null,null,0]
[null,null,null,0,null,null,null,0,null,null,null,0,null,null,null,0,null,null,null,0,null,null,null,0,null,null,null,0,null,null,null,0,null,null,null,0,null,null,null,0,null,null,null,0,null,null,null,0,null,null,null,0,null,null,null,0,null,null,null,0]
[null,null,null,0,null,null,null,0,null,null,null,0,null,null,null,0,null,null,null,0,null,null,null,0,null,null,null,0,null,null,null,0,null,null,null,0,null,null,null,0,null,null,null,0,null,null,null,0,null,null,null,0,null,null,null,0,null,null,null,0]
[null,null,null,0,null,null,null,0,null,null,null,0,null,null,null,0,null,null,null,0,null,null,null,0,null,null,null,0,null,null,null,0,null,null,null,0,null,null,null,0,null,null,null,0,null,null,null,0,null,null,null,0,null,null,null,0,null,null,null,0]
[null,null,null,0,null,null,null,0,null,null,null,0,null,null,null,0,null,null,null,0,null,null,null,0,null,null,null,0,null,null,null,0,null,null,null,0,null,null,null,0,null,null,null,0,null,null,null,0,null,null,null,0,null,null,null,0,null,null,null,0]
[null,null,null,0,null,null,null,0,null,null,null,0,null,null,null,0,null,null,null,0,null,null,null,0,null,null,null,0,null,null,null,0,null,null,null,0,null,null,null,0,null,null,null,0,null,null,null,0,null,null,null,0,null,null,null,0,null,null,null,0]
[null,null,null,0,null,null,null,0,null,null,null,0,null,null,null,0,null,null,null,0,null,null,null,0,null,null,null,0,null,null,null,0,null,null,null,0,null,null,null,0,null,null,null,0,null,null,null,0,null,null,null,0,null,null,null,0,null,null,null,0]
[null,null,null,0,null,null,null,0,null,null,null,0,null,null,null,0,null,null,null,0,null,null,null,0,null,null,null,0,null,null,null,0,null,null,null,0,null,null,null,0,null,null,null,0,null,null,null,0,null,null,null,0,null,null,null,0,null,null,null,0]
[null,null,null,0,null,null,null,0,null,null,null,0,null,null,null,0,null,null,null,0,null,null,null,0,null,null,null,0,null,null,null,0,null,null,null,0,null,null,null,0,null,null,null,0,null,null,null,0,null,null,null,0,null,null,null,0,null,null,null,0]
[null,null,null,0,null,null,null,0,null,null,null,0,null,null,null,0,null,null,null,0,null,null,null,0,null,null,null,0,null,null,null,0,null,null,null,0,null,null,null,0,null,null,null,0,null,null,null,0,null,null,null,0,null,null,null,0,null,null,null,0]
[null,null,null,0,null,null,null,0,null,null,null,0,null,null,null,0,null,null,null,0,null,null,null,0,null,null,null,0,null,null,null,0,null,null,null,0,null,null,null,0,null,null,null,0,null,null,null,0,null,null,null,0,null,null,null,0,null,null,null,0]
[null,null,null,0,null,null,null,0,null,null,null,0,null,null,null,0,null,null,null,0,null,null,null,0,null,null,null,0,null,null,null,0,null,null,null,0,null,null,null,0,null,null,null,0,null,null,null,0,null,null,null,0,null,null,null,0,null,null,null,0]
[null,null,null,0,null,null,null,0,null,null,null,0,null,null,null,0,null,null,null,0,null,null,null,0,null,null,null,0,null,null,null,0,null,null,null,0,null,null,null,0,null,null,null,0,null,null,null,0,null,null,null,0,null,null,null,0,null,null,null,0]
[null,null,null,0,null,null,null,0,null,null,null,0,null,null,null,0,null,null,null,0,null,null,null,0,null,null,null,0,null,null,null,0,null,null,null,0,null,null,null,0,null,null,null,0,null,null,null,0,null,null,null,0,null,null,null,0,null,null,null,0]
[null,null,null,0,null,null,null,0,null,null,null,0,null,null,null,0,null,null,null,0,null,null,null,0,null,null,null,0,null,null,null,0,null,null,null,0,null,null,null,0,null,null,null,0,null,null,null,0,null,null,null,0,null,null,null,0,null,null,null,0]
[null,null,null,0,null,null,null,0,null,null,null,0,null,null,null,0,null,null,null,0,null,null,null,0,null,null,null,0,null,null,null,0,null,null,null,0,null,null,null,0,null,null,null,0,null,null,null,0,null,null,null,0,null,null,null,0,null,null,null,0]
[null,null,null,0,null,null,null,0,null,null,null,0,null,null,null,0,null,null,null,0,null,null,null,0,null,null,null,0,null,null,null,0,null,null,null,0,null,null,null,0,null,null,null,0,null,null,null,0,null,null,null,0,null,null,null,0,null,null,null,0]
[null,null,null,0,null,null,null,0,null,null,null,0,null,null,null,0,null,null,null,0,null,null,null,0,null,null,null,0,null,null,null,0,null,null,null,0,null,null,null,0,null,null,null,0,null,null,null,0,null,null,null,0,null,null,null,0,null,null,null,0]
[null,null,null,0,null,null,null,0,null,null,null,0,null,null,null,0,null,null,null,0,null,null,null,0,null,null,null,0,null,null,null,0,null,null,null,0,null,null,null,0,null,null,null,0,null,null,null,0,null,null,null,0,null,null,null,0,null,null,null,0]
[null,null,null,0,null,null,null,0,null,null,null,0,null,null,null,0,null,null,null,0,null,null,null,0,null,null,null,0,null,null,null,0,null,null,null,0,null,null,null,0,null,null,null,0,null,null,null,0,null,null,null,0,null,null,null,0,null,null,null,0]
[null,null,null,0,null,null,null,0,null,null,null,0,null,null,null,0,null,null,null,0,null,null,null,0,null,null,null,0,null,null,null,0,null,null,null,0,null,null,null,0,null,null,null,0,null,null,null,0,null,null,null,0,null,null,null,0,null,null,null,0]
[null,null,null,0,null,null,null,0,null,null,null,0,null,null,null,0,null,null,null,0,null,null,null,0,null,null,null,0,null,null,null,0,null,null,null,0,null,null,null,0,null,null,null,0,null,null,null,0,null,null,null,0,null,null,null,0,null,null,null,0]
[null,null,null,0,null,null,null,0,null,null,null,0,null,null,null,0,null,null,null,0,null,null,null,0,null,null,null,0,null,null,null,0,null,null,null,0,null,null,null,0,null,null,null,0,null,null,null,0,null,null,null,0,null,null,null,0,null,null,null,0]
[null,null,null,0,null,null,null,0,null,null,null,0,null,null,null,0,null,null,null,0,null,null,null,0,null,null,null,0,null,null,null,0,null,null,null,0,null,null,null,0,null,null,null,0,null,null,null,0,null,null,null,0,null,null,null,0,null,null,null,0]
[null,null,null,0,null,null,null,0,null,null,null,0,null,null,null,0,null,null,null,0,null,null,null,0,null,null,null,0,null,null,null,0,null,null,null,0,null,null,null,0,null,null,null,0,null,null,null,0,null,null,null,0,null,null,null,0,null,null,null,0]
[null,null,null,0,null,null,null,0,null,null,null,0,null,null,null,0,null,null,null,0,null,null,null,0,null,null,null,0,null,null,null,0,null,null,null,0,null,null,null,0,null,null,null,0,null,null,null,0,null,null,null,0,null,null,null,0,null,null,null,0]
[null,null,null,0,null,null,null,0,null,null,null,0,null,null,null,0,null,null,null,0,null,null,null,0,null,null,null,0,null,null,null,0,null,null,null,0,null,null,null,0,null,null,null,0,null,null,null,0,null,null,null,0,null,null,null,0,null,null,null,0]
[null,null,null,0,null,null,null,0,null,null,null,0,null,null,null,0,null,null,null,0,null,null,null,0,null,null,null,0,null,null,null,0,null,null,null,0,null,null,null,0,null,null,null,0,null,null,null,0,null,null,null,0,null,null,null,0,null,null,null,0]
[null,null,null,0,null,null,null,0,null,null,null,0,null,null,null,0,null,null,null,0,null,null,null,0,null,null,null,0,null,null,null,0,null,null,null,0,null,null,null,0,null,null,null,0,null,null,null,0,null,null,null,0,null,null,null,0,null,null,null,0]
[null,null,null,0,null,null,null,0,null,null,null,0,null,null,null,0,null,null,null,0,null,null,null,0,null,null,null,0,null,null,null,0,null,null,null,0,null,null,null,0,null,null,null,0,null,null,null,0,null,null,null,0,null,null,null,0,null,null,null,0]
[null,null,null,0,null,null,null,0,null,null,null,0,null,null,null,0,null,null,null,0,null,null,null,0,null,null,null,0,null,null,null,0,null,null,null,0,null,null,null,0,null,null,null,0,null,null,null,0,null,null,null,0,null,null,null,0,null,null,null,0]
[null,null,null,0,null,null,null,0,null,null,null,0,null,null,null,0,null,null,null,0,null,null,null,0,null,null,null,0,null,null,null,0,null,null,null,0,null,null,null,0,null,null,null,0,null,null,null,0,null,null,null,0,null,null,null,0,null,null,null,0]
[null,null,null,0,null,null,null,0,null,null,null,0,null,null,null,0,null,null,null,0,null,null,null,0,null,null,null,0,null,null,null,0,null,null,null,0,null,null,null,0,null,null,null,0,null,null,null,0,null,null,null,0,null,null,null,0,null,null,null,0]
[null,null,null,0,null,null,null,0,null,null,null,0,null,null,null,0,null,null,null,0,null,null,null,0,null,null,null,0,null,null,null,0,null,null,null,0,null,null,null,0,null,null,null,0,null,null,null,0,null,null,null,0,null,null,null,0,null,null,null,0]
[null,null,null,0,null,null,null,0,null,null,null,0,null,null,null,0,null,null,null,0,null,null,null,0,null,null,null,0,null,null,null,0,null,null,null,0,null,null,null,0,null,null,null,0,null,null,null,0,null,null,null,0,null,null,null,0,null,null,null,0]
[null,null,null,0,null,null,null,0,null,null,null,0,null,null,null,0,null,null,null,0,null,null,null,0,null,null,null,0,null,null,null,0,null,null,null,0,null,null,null,0,null,null,null,0,null,null,null,0,null,null,null,0,null,null,null,0,null,null,null,0]
[null,null,null,0,null,null,null,0,null,null,null,0,null,null,null,0,null,null,null,0,null,null,null,0,null,null,null,0,null,null,null,0,null,null,null,0,null,null,null,0,null,null,null,0,null,null,null,0,null,null,null,0,null,null,null,0,null,null,null,0]
[null,null,null,0,null,null,null,0,null,null,null,0,null,null,null,0,null,null,null,0,null,null,null,0,null,null,null,0,null,null,null,0,null,null,null,0,null,null,null,0,null,null,null,0,null,null,null,0,null,null,null,0,null,null,null,0,null,null,null,0]
[null,null,null,0,null,null,null,0,null,null,null,0,null,null,null,0,null,null,null,0,null,null,null,0,null,null,null,0,null,null,null,0,null,null,null,0,null,null,null,0,null,null,null,0,null,null,null,0,null,null,null,0,null,null,null,0,null,null,null,0]
[null,null,null,0,null,null,null,0,null,null,null,0,null,null,null,0,null,null,null,0,null,null,null,0,null,null,null,0,null,null,null,0,null,null,null,0,null,null,null,0,null,null,null,0,null,null,null,0,null,null,null,0,null,null,null,0,null,null,null,0]
[null,null,null,0,null,null,null,0,null,null,null,0,null,null,null,0,null,null,null,0,null,null,null,0,null,null,null,0,null,null,null,0,null,null,null,0,null,null,null,0,null,null,null,0,null,null,null,0,null,null,null,0,null,null,null,0,null,null,null,0]
[null,null,null,0,null,null,null,0,null,null,null,0,null,null,null,0,null,null,null,0,null,null,null,0,null,null,null,0,null,null,null,0,null,null,null,0,null,null,null,0,null,null,null,0,null,null,null,0,null,null,null,0,null,null,null,0,null,null,null,0]
[null,null,null,0,null,null,null,0,null,null,null,0,null,null,null,0,null,null,null,0,null,null,null,0,null,null,null,0,null,null,null,0,null,null,null,0,null,null,null,0,null,null,null,0,null,null,null,0,null,null,null,0,null,null,null,0,null,null,null,0]
[null,null,null,0,null,null,null,0,null,null,null,0,null,null,null,0,null,null,null,0,null,null,null,0,null,null,null,0,null,null,null,0,null,null,null,0,null,null,null,0,null,null,null,0,null,null,null,0,null,null,null,0,null,null,null,0,null,null,null,0]
[null,null,null,0,null,null,null,0,null,null,null,0,null,null,null,0,null,null,null,0,null,null,null,0,null,null,null,0,null,null,null,0,null,null,null,0,null,null,null,0,null,null,null,0,null,null,null,0,null,null,null,0,null,null,null,0,null,null,null,0]
[null,null,null,0,null,null,null,0,null,null,null,0,null,null,null,0,null,null,null,0,null,null,null,0,null,null,null,0,null,null,null,0,null,null,null,0,null,null,null,0,null,null,null,0,null,null,null,0,null,null,null,0,null,null,null,0,null,null,null,0]
[null,null,null,0,null,null,null,0,null,null,null,0,null,null,null,0,null,null,null,0,null,null,null,0,null,null,null,0,null,null,null,0,null,null,null,0,null,null,null,0,null,null,null,0,null,null,null,0,null,null,null,0,null,null,null,0,null,null,null,0]
[null,null,null,0,null,null,null,0,null,null,null,0,null,null,null,0,null,null,null,0,null,null,null,0,null,null,null,0,null,null,null,0,null,null,null,0,null,null,null,0,null,null,null,0,null,null,null,0,null,null,null,0,null,null,null,0,null,null,null,0]
[null,null,null,0,null,null,null,0,null,null,null,0,null,null,null,0,null,null,null,0,null,null,null,0,null,null,null,0,null,null,null,0,null,null,null,0,null,null,null,0,null,null,null,0,null,null,null,0,null,null,null,0,null,null,null,0,null,null,null,0]
[null,null,null,0,null,null,null,0,null,null,null,0,null,null,null,0,null,null,null,0,null,null,null,0,null,null,null,0,null,null,null,0,null,null,null,0,null,null,null,0,null,null,null,0,null,null,null,0,null,null,null,0,null,null,null,0,null,null,null,0]
[null,null,null,{"$f":"IF(B391-C391<>0,D390+B391-C391,0)","v":0},null,null,null,{"$f":"IF(F391-G391<>0,H390+F391-G391,0)","v":0},null,null,null,{"$f":"IF(J391-K391<>0,L390+J391-K391,0)","v":0},null,null,null,{"$f":"IF(N391-O391<>0,P390+N391-O391,0)","v":0},null,null,null,{"$f":"IF(R391-S391<>0,T390+R391-S391,0)","v":0},null,null,null,{"$f":"IF(V391-W391<>0,X390+V391-W391,0)","v":0},null,null,null,{"$f":"IF(Z391-AA391<>0,AB390+Z391-AA391,0)","v":0},null,null,null,{"$f":"IF(AD391-AE391<>0,AF390+AD391-AE391,0)","v":0},null,null,null,{"$f":"IF(AH391-AI391<>0,AJ390+AH391-AI391,0)","v":0},null,null,null,{"$f":"IF(AL391-AM391<>0,AN390+AL391-AM391,0)","v":0},null,null,null,{"$f":"IF(AP391-AQ391<>0,AR390+AP391-AQ391,0)","v":0},null,null,null,{"$f":"IF(AT391-AU391<>0,AV390+AT391-AU391,0)","v":0},null,null,null,{"$f":"IF(AX391-AY391<>0,AZ390+AX391-AY391,0)","v":0},null,null,null,{"$f":"IF(BB391-BC391<>0,BD390+BB391-BC391,0)","v":0},null,null,null,{"$f":"IF(BF391-BG391<>0,BH390+BF391-BG391,0)","v":0}]
[null,null,null,0,null,null,null,0,null,null,null,0,null,null,null,0,null,null,null,0,null,null,null,0,null,null,null,0,null,null,null,0,null,null,null,0,null,null,null,0,null,null,null,0,null,null,null,0,null,null,null,0,null,null,null,0,null,null,null,0]
[null,null,null,0,null,null,null,0,null,null,null,0,null,null,null,0,null,null,null,0,null,null,null,0,null,null,null,0,null,null,null,0,null,null,null,0,null,null,null,0,null,null,null,0,null,null,null,0,null,null,null,0,null,null,null,0,null,null,null,0]
[null,null,null,0,null,null,null,0,null,null,null,0,null,null,null,0,null,null,null,0,null,null,null,0,null,null,null,0,null,null,null,0,null,null,null,0,null,null,null,0,null,null,null,0,null,null,null,0,null,null,null,0,null,null,null,0,null,null,null,0]
[null,null,null,0,null,null,null,0,null,null,null,0,null,null,null,0,null,null,null,0,null,null,null,0,null,null,null,0,null,null,null,0,null,null,null,0,null,null,null,0,null,null,null,0,null,null,null,0,null,null,null,0,null,null,null,0,null,null,null,0]
[null,null,null,0,null,null,null,0,null,null,null,0,null,null,null,0,null,null,null,0,null,null,null,0,null,null,null,0,null,null,null,0,null,null,null,0,null,null,null,0,null,null,null,0,null,null,null,0,null,null,null,0,null,null,null,0,null,null,null,0]
[null,null,null,0,null,null,null,0,null,null,null,0,null,null,null,0,null,null,null,0,null,null,null,0,null,null,null,0,null,null,null,0,null,null,null,0,null,null,null,0,null,null,null,0,null,null,null,0,null,null,null,0,null,null,null,0,null,null,null,0]
[null,null,null,0,null,null,null,0,null,null,null,0,null,null,null,0,null,null,null,0,null,null,null,0,null,null,null,0,null,null,null,0,null,null,null,0,null,null,null,0,null,null,null,0,null,null,null,0,null,null,null,0,null,null,null,0,null,null,null,0]
[null,null,null,0,null,null,null,0,null,null,null,0,null,null,null,0,null,null,null,0,null,null,null,0,null,null,null,0,null,null,null,0,null,null,null,0,null,null,null,0,null,null,null,0,null,null,null,0,null,null,null,0,null,null,null,0,null,null,null,0]
[null,null,null,0,null,null,null,0,null,null,null,0,null,null,null,0,null,null,null,0,null,null,null,0,null,null,null,0,null,null,null,0,null,null,null,0,null,null,null,0,null,null,null,0,null,null,null,0,null,null,null,0,null,null,null,0,null,null,null,0]
[null,null,null,0,null,null,null,0,null,null,null,0,null,null,null,0,null,null,null,0,null,null,null,0,null,null,null,0,null,null,null,0,null,null,null,0,null,null,null,0,null,null,null,0,null,null,null,0,null,null,null,0,null,null,null,0,null,null,null,0]
[null,null,null,0,null,null,null,0,null,null,null,0,null,null,null,0,null,null,null,0,null,null,null,0,null,null,null,0,null,null,null,0,null,null,null,0,null,null,null,0,null,null,null,0,null,null,null,0,null,null,null,0,null,null,null,0,null,null,null,0]
[null,null,null,0,null,null,null,0,null,null,null,0,null,null,null,0,null,null,null,0,null,null,null,0,null,null,null,0,null,null,null,0,null,null,null,0,null,null,null,0,null,null,null,0,null,null,null,0,null,null,null,0,null,null,null,0,null,null,null,0]
[null,null,null,0,null,null,null,0,null,null,null,0,null,null,null,0,null,null,null,0,null,null,null,0,null,null,null,0,null,null,null,0,null,null,null,0,null,null,null,0,null,null,null,0,null,null,null,0,null,null,null,0,null,null,null,0,null,null,null,0]
[null,null,null,0,null,null,null,0,null,null,null,0,null,null,null,0,null,null,null,0,null,null,null,0,null,null,null,0,null,null,null,0,null,null,null,0,null,null,null,0,null,null,null,0,null,null,null,0,null,null,null,0,null,null,null,0,null,null,null,0]
[null,null,null,0,null,null,null,0,null,null,null,0,null,null,null,0,null,null,null,0,null,null,null,0,null,null,null,0,null,null,null,0,null,null,null,0,null,null,null,0,null,null,null,0,null,null,null,0,null,null,null,0,null,null,null,0,null,null,null,0]
[null,null,null,0,null,null,null,0,null,null,null,0,null,null,null,0,null,null,null,0,null,null,null,0,null,null,null,0,null,null,null,0,null,null,null,0,null,null,null,0,null,null,null,0,null,null,null,0,null,null,null,0,null,null,null,0,null,null,null,0]
[null,null,null,0,null,null,null,0,null,null,null,0,null,null,null,0,null,null,null,0,null,null,null,0,null,null,null,0,null,null,null,0,null,null,null,0,null,null,null,0,null,null,null,0,null,null,null,0,null,null,null,0,null,null,null,0,null,null,null,0]
[null,null,null,0,null,null,null,0,null,null,null,0,null,null,null,0,null,null,null,0,null,null,null,0,null,null,null,0,null,null,null,0,null,null,null,0,null,null,null,0,null,null,null,0,null,null,null,0,null,null,null,0,null,null,null,0,null,null,null,0]
[null,null,null,0,null,null,null,0,null,null,null,0,null,null,null,0,null,null,null,0,null,null,null,0,null,null,null,0,null,null,null,0,null,null,null,0,null,null,null,0,null,null,null,0,null,null,null,0,null,null,null,0,null,null,null,0,null,null,null,0]
[null,null,null,0,null,null,null,0,null,null,null,0,null,null,null,0,null,null,null,0,null,null,null,0,null,null,null,0,null,null,null,0,null,null,null,0,null,null,null,0,null,null,null,0,null,null,null,0,null,null,null,0,null,null,null,0,null,null,null,0]
[null,null,null,0,null,null,null,0,null,null,null,0,null,null,null,0,null,null,null,0,null,null,null,0,null,null,null,0,null,null,null,0,null,null,null,0,null,null,null,0,null,null,null,0,null,null,null,0,null,null,null,0,null,null,null,0,null,null,null,0]
[null,null,null,0,null,null,null,0,null,null,null,0,null,null,null,0,null,null,null,0,null,null,null,0,null,null,null,0,null,null,null,0,null,null,null,0,null,null,null,0,null,null,null,0,null,null,null,0,null,null,null,0,null,null,null,0,null,null,null,0]
[null,null,null,0,null,null,null,0,null,null,null,0,null,null,null,0,null,null,null,0,null,null,null,0,null,null,null,0,null,null,null,0,null,null,null,0,null,null,null,0,null,null,null,0,null,null,null,0,null,null,null,0,null,null,null,0,null,null,null,0]
[null,null,null,0,null,null,null,0,null,null,null,0,null,null,null,0,null,null,null,0,null,null,null,0,null,null,null,0,null,null,null,0,null,null,null,0,null,null,null,0,null,null,null,0,null,null,null,0,null,null,null,0,null,null,null,0,null,null,null,0]
[null,null,null,0,null,null,null,0,null,null,null,0,null,null,null,0,null,null,null,0,null,null,null,0,null,null,null,0,null,null,null,0,null,null,null,0,null,null,null,0,null,null,null,0,null,null,null,0,null,null,null,0,null,null,null,0,null,null,null,0]
[null,null,null,0,null,null,null,0,null,null,null,0,null,null,null,0,null,null,null,0,null,null,null,0,null,null,null,0,null,null,null,0,null,null,null,0,null,null,null,0,null,null,null,0,null,null,null,0,null,null,null,0,null,null,null,0,null,null,null,0]
[null,null,null,0,null,null,null,0,null,null,null,0,null,null,null,0,null,null,null,0,null,null,null,0,null,null,null,0,null,null,null,0,null,null,null,0,null,null,null,0,null,null,null,0,null,null,null,0,null,null,null,0,null,null,null,0,null,null,null,0]
[null,null,null,0,null,null,null,0,null,null,null,0,null,null,null,0,null,null,null,0,null,null,null,0,null,null,null,0,null,null,null,0,null,null,null,0,null,null,null,0,null,null,null,0,null,null,null,0,null,null,null,0,null,null,null,0,null,null,null,0]
[null,null,null,0,null,null,null,0,null,null,null,0,null,null,null,0,null,null,null,0,null,null,null,0,null,null,null,0,null,null,null,0,null,null,null,0,null,null,null,0,null,null,null,0,null,null,null,0,null,null,null,0,null,null,null,0,null,null,null,0]
[null,null,null,0,null,null,null,0,null,null,null,0,null,null,null,0,null,null,null,0,null,null,null,0,null,null,null,0,null,null,null,0,null,null,null,0,null,null,null,0,null,null,null,0,null,null,null,0,null,null,null,0,null,null,null,0,null,null,null,0]
[null,null,null,0,null,null,null,0,null,null,null,0,null,null,null,0,null,null,null,0,null,null,null,0,null,null,null,0,null,null,null,0,null,null,null,0,null,null,null,0,null,null,null,0,null,null,null,0,null,null,null,0,null,null,null,0,null,null,null,0]
[null,null,null,0,null,null,null,0,null,null,null,0,null,null,null,0,null,null,null,0,null,null,null,0,null,null,null,0,null,null,null,0,null,null,null,0,null,null,null,0,null,null,null,0,null,null,null,0,null,null,null,0,null,null,null,0,null,null,null,0]
[null,null,null,0,null,null,null,0,null,null,null,0,null,null,null,0,null,null,null,0,null,null,null,0,null,null,null,0,null,null,null,0,null,null,null,0,null,null,null,0,null,null,null,0,null,null,null,0,null,null,null,0,null,null,null,0,null,null,null,0]
[null,null,null,0,null,null,null,0,null,null,null,0,null,null,null,0,null,null,null,0,null,null,null,0,null,null,null,0,null,null,null,0,null,null,null,0,null,null,null,0,null,null,null,0,null,null,null,0,null,null,null,0,null,null,null,0,null,null,null,0]
[null,null,null,0,null,null,null,0,null,null,null,0,null,null,null,0,null,null,null,0,null,null,null,0,null,null,null,0,null,null,null,0,null,null,null,0,null,null,null,0,null,null,null,0,null,null,null,0,null,null,null,0,null,null,null,0,null,null,null,0]
[null,null,null,0,null,null,null,0,null,null,null,0,null,null,null,0,null,null,null,0,null,null,null,0,null,null,null,0,null,null,null,0,null,null,null,0,null,null,null,0,null,null,null,0,null,null,null,0,null,null,null,0,null,null,null,0,null,null,null,0]
[null,null,null,0,null,null,null,0,null,null,null,0,null,null,null,0,null,null,null,0,null,null,null,0,null,null,null,0,null,null,null,0,null,null,null,0,null,null,null,0,null,null,null,0,null,null,null,0,null,null,null,0,null,null,null,0,null,null,null,0]
[null,null,null,0,null,null,null,0,null,null,null,0,null,null,null,0,null,null,null,0,null,null,null,0,null,null,null,0,null,null,null,0,null,null,null,0,null,null,null,0,null,null,null,0,null,null,null,0,null,null,null,0,null,null,null,0,null,null,null,0]
[null,null,null,0,null,null,null,0,null,null,null,0,null,null,null,0,null,null,null,0,null,null,null,0,null,null,null,0,null,null,null,0,null,null,null,0,null,null,null,0,null,null,null,0,null,null,null,0,null,null,null,0,null,null,null,0,null,null,null,0]
[null,null,null,0,null,null,null,0,null,null,null,0,null,null,null,0,null,null,null,0,null,null,null,0,null,null,null,0,null,null,null,0,null,null,null,0,null,null,null,0,null,null,null,0,null,null,null,0,null,null,null,0,null,null,null,0,null,null,null,0]
[null,null,null,0,null,null,null,0,null,null,null,0,null,null,null,0,null,null,null,0,null,null,null,0,null,null,null,0,null,null,null,0,null,null,null,0,null,null,null,0,null,null,null,0,null,null,null,0,null,null,null,0,null,null,null,0,null,null,null,0]
[null,null,null,0,null,null,null,0,null,null,null,0,null,null,null,0,null,null,null,0,null,null,null,0,null,null,null,0,null,null,null,0,null,null,null,0,null,null,null,0,null,null,null,0,null,null,null,0,null,null,null,0,null,null,null,0,null,null,null,0]
[null,null,null,0,null,null,null,0,null,null,null,0,null,null,null,0,null,null,null,0,null,null,null,0,null,null,null,0,null,null,null,0,null,null,null,0,null,null,null,0,null,null,null,0,null,null,null,0,null,null,null,0,null,null,null,0,null,null,null,0]
[null,null,null,0,null,null,null,0,null,null,null,0,null,null,null,0,null,null,null,0,null,null,null,0,null,null,null,0,null,null,null,0,null,null,null,0,null,null,null,0,null,null,null,0,null,null,null,0,null,null,null,0,null,null,null,0,null,null,null,0]
[null,null,null,0,null,null,null,0,null,null,null,0,null,null,null,0,null,null,null,0,null,null,null,0,null,null,null,0,null,null,null,0,null,null,null,0,null,null,null,0,null,null,null,0,null,null,null,0,null,null,null,0,null,null,null,0,null,null,null,0]
[null,null,null,0,null,null,null,0,null,null,null,0,null,null,null,0,null,null,null,0,null,null,null,0,null,null,null,0,null,null,null,0,null,null,null,0,null,null,null,0,null,null,null,0,null,null,null,0,null,null,null,0,null,null,null,0,null,null,null,0]
[null,null,null,0,null,null,null,0,null,null,null,0,null,null,null,0,null,null,null,0,null,null,null,0,null,null,null,0,null,null,null,0,null,null,null,0,null,null,null,0,null,null,null,0,null,null,null,0,null,null,null,0,null,null,null,0,null,null,null,0]
[null,null,null,0,null,null,null,0,null,null,null,0,null,null,null,0,null,null,null,0,null,null,null,0,null,null,null,0,null,null,null,0,null,null,null,0,null,null,null,0,null,null,null,0,null,null,null,0,null,null,null,0,null,null,null,0,null,null,null,0]
[null,null,null,0,null,null,null,0,null,null,null,0,null,null,null,0,null,null,null,0,null,null,null,0,null,null,null,0,null,null,null,0,null,null,null,0,null,null,null,0,null,null,null,0,null,null,null,0,null,null,null,0,null,null,null,0,null,null,null,0]
[null,null,null,0,null,null,null,0,null,null,null,0,null,null,null,0,null,null,null,0,null,null,null,0,null,null,null,0,null,null,null,0,null,null,null,0,null,null,null,0,null,null,null,0,null,null,null,0,null,null,null,0,null,null,null,0,null,null,null,0]
[null,null,null,0,null,null,null,0,null,null,null,0,null,null,null,0,null,null,null,0,null,null,null,0,null,null,null,0,null,null,null,0,null,null,null,0,null,null,null,0,null,null,null,0,null,null,null,0,null,null,null,0,null,null,null,0,null,null,null,0]
[null,null,null,0,null,null,null,0,null,null,null,0,null,null,null,0,null,null,null,0,null,null,null,0,null,null,null,0,null,null,null,0,null,null,null,0,null,null,null,0,null,null,null,0,null,null,null,0,null,null,null,0,null,null,null,0,null,null,null,0]
[null,null,null,0,null,null,null,0,null,null,null,0,null,null,null,0,null,null,null,0,null,null,null,0,null,null,null,0,null,null,null,0,null,null,null,0,null,null,null,0,null,null,null,0,null,null,null,0,null,null,null,0,null,null,null,0,null,null,null,0]
[null,null,null,0,null,null,null,0,null,null,null,0,null,null,null,0,null,null,null,0,null,null,null,0,null,null,null,0,null,null,null,0,null,null,null,0,null,null,null,0,null,null,null,0,null,null,null,0,null,null,null,0,null,null,null,0,null,null,null,0]
[null,null,null,0,null,null,null,0,null,null,null,0,null,null,null,0,null,null,null,0,null,null,null,0,null,null,null,0,null,null,null,0,null,null,null,0,null,null,null,0,null,null,null,0,null,null,null,0,null,null,null,0,null,null,null,0,null,null,null,0]
[null,null,null,0,null,null,null,0,null,null,null,0,null,null,null,0,null,null,null,0,null,null,null,0,null,null,null,0,null,null,null,0,null,null,null,0,null,null,null,0,null,null,null,0,null,null,null,0,null,null,null,0,null,null,null,0,null,null,null,0]
[null,null,null,0,null,null,null,0,null,null,null,0,null,null,null,0,null,null,null,0,null,null,null,0,null,null,null,0,null,null,null,0,null,null,null,0,null,null,null,0,null,null,null,0,null,null,null,0,null,null,null,0,null,null,null,0,null,null,null,0]
[null,null,null,0,null,null,null,0,null,null,null,0,null,null,null,0,null,null,null,0,null,null,null,0,null,null,null,0,null,null,null,0,null,null,null,0,null,null,null,0,null,null,null,0,null,null,null,0,null,null,null,0,null,null,null,0,null,null,null,0]
[null,null,null,0,null,null,null,0,null,null,null,0,null,null,null,0,null,null,null,0,null,null,null,0,null,null,null,0,null,null,null,0,null,null,null,0,null,null,null,0,null,null,null,0,null,null,null,0,null,null,null,0,null,null,null,0,null,null,null,0]
[null,null,null,0,null,null,null,0,null,null,null,0,null,null,null,0,null,null,null,0,null,null,null,0,null,null,null,0,null,null,null,0,null,null,null,0,null,null,null,0,null,null,null,0,null,null,null,0,null,null,null,0,null,null,null,0,null,null,null,0]
[null,null,null,0,null,null,null,0,null,null,null,0,null,null,null,0,null,null,null,0,null,null,null,0,null,null,null,0,null,null,null,0,null,null,null,0,null,null,null,0,null,null,null,0,null,null,null,0,null,null,null,0,null,null,null,0,null,null,null,0]
[null,null,null,0,null,null,null,0,null,null,null,0,null,null,null,0,null,null,null,0,null,null,null,0,null,null,null,0,null,null,null,0,null,null,null,0,null,null,null,0,null,null,null,0,null,null,null,0,null,null,null,0,null,null,null,0,null,null,null,0]
[null,null,null,0,null,null,null,0,null,null,null,0,null,null,null,0,null,null,null,0,null,null,null,0,null,null,null,0,null,null,null,0,null,null,null,0,null,null,null,0,null,null,null,0,null,null,null,0,null,null,null,0,null,null,null,0,null,null,null,0]
[null,null,null,{"$f":"IF(B455-C455<>0,D454+B455-C455,0)","v":0},null,null,null,{"$f":"IF(F455-G455<>0,H454+F455-G455,0)","v":0},null,null,null,{"$f":"IF(J455-K455<>0,L454+J455-K455,0)","v":0},null,null,null,{"$f":"IF(N455-O455<>0,P454+N455-O455,0)","v":0},null,null,null,{"$f":"IF(R455-S455<>0,T454+R455-S455,0)","v":0},null,null,null,{"$f":"IF(V455-W455<>0,X454+V455-W455,0)","v":0},null,null,null,{"$f":"IF(Z455-AA455<>0,AB454+Z455-AA455,0)","v":0},null,null,null,{"$f":"IF(AD455-AE455<>0,AF454+AD455-AE455,0)","v":0},null,null,null,{"$f":"IF(AH455-AI455<>0,AJ454+AH455-AI455,0)","v":0},null,null,null,{"$f":"IF(AL455-AM455<>0,AN454+AL455-AM455,0)","v":0},null,null,null,{"$f":"IF(AP455-AQ455<>0,AR454+AP455-AQ455,0)","v":0},null,null,null,{"$f":"IF(AT455-AU455<>0,AV454+AT455-AU455,0)","v":0},null,null,null,{"$f":"IF(AX455-AY455<>0,AZ454+AX455-AY455,0)","v":0},null,null,null,{"$f":"IF(BB455-BC455<>0,BD454+BB455-BC455,0)","v":0},null,null,null,{"$f":"IF(BF455-BG455<>0,BH454+BF455-BG455,0)","v":0}]
[null,null,null,0,null,null,null,0,null,null,null,0,null,null,null,0,null,null,null,0,null,null,null,0,null,null,null,0,null,null,null,0,null,null,null,0,null,null,null,0,null,null,null,0,null,null,null,0,null,null,null,0,null,null,null,0,null,null,null,0]
[null,null,null,0,null,null,null,0,null,null,null,0,null,null,null,0,null,null,null,0,null,null,null,0,null,null,null,0,null,null,null,0,null,null,null,0,null,null,null,0,null,null,null,0,null,null,null,0,null,null,null,0,null,null,null,0,null,null,null,0]
[null,null,null,0,null,null,null,0,null,null,null,0,null,null,null,0,null,null,null,0,null,null,null,0,null,null,null,0,null,null,null,0,null,null,null,0,null,null,null,0,null,null,null,0,null,null,null,0,null,null,null,0,null,null,null,0,null,null,null,0]
[null,null,null,0,null,null,null,0,null,null,null,0,null,null,null,0,null,null,null,0,null,null,null,0,null,null,null,0,null,null,null,0,null,null,null,0,null,null,null,0,null,null,null,0,null,null,null,0,null,null,null,0,null,null,null,0,null,null,null,0]
[null,null,null,0,null,null,null,0,null,null,null,0,null,null,null,0,null,null,null,0,null,null,null,0,null,null,null,0,null,null,null,0,null,null,null,0,null,null,null,0,null,null,null,0,null,null,null,0,null,null,null,0,null,null,null,0,null,null,null,0]
[null,null,null,0,null,null,null,0,null,null,null,0,null,null,null,0,null,null,null,0,null,null,null,0,null,null,null,0,null,null,null,0,null,null,null,0,null,null,null,0,null,null,null,0,null,null,null,0,null,null,null,0,null,null,null,0,null,null,null,0]
[null,null,null,0,null,null,null,0,null,null,null,0,null,null,null,0,null,null,null,0,null,null,null,0,null,null,null,0,null,null,null,0,null,null,null,0,null,null,null,0,null,null,null,0,null,null,null,0,null,null,null,0,null,null,null,0,null,null,null,0]
[null,null,null,0,null,null,null,0,null,null,null,0,null,null,null,0,null,null,null,0,null,null,null,0,null,null,null,0,null,null,null,0,null,null,null,0,null,null,null,0,null,null,null,0,null,null,null,0,null,null,null,0,null,null,null,0,null,null,null,0]
[null,null,null,0,null,null,null,0,null,null,null,0,null,null,null,0,null,null,null,0,null,null,null,0,null,null,null,0,null,null,null,0,null,null,null,0,null,null,null,0,null,null,null,0,null,null,null,0,null,null,null,0,null,null,null,0,null,null,null,0]
[null,null,null,0,null,null,null,0,null,null,null,0,null,null,null,0,null,null,null,0,null,null,null,0,null,null,null,0,null,null,null,0,null,null,null,0,null,null,null,0,null,null,null,0,null,null,null,0,null,null,null,0,null,null,null,0,null,null,null,0]
[null,null,null,0,null,null,null,0,null,null,null,0,null,null,null,0,null,null,null,0,null,null,null,0,null,null,null,0,null,null,null,0,null,null,null,0,null,null,null,0,null,null,null,0,null,null,null,0,null,null,null,0,null,null,null,0,null,null,null,0]
[null,null,null,0,null,null,null,0,null,null,null,0,null,null,null,0,null,null,null,0,null,null,null,0,null,null,null,0,null,null,null,0,null,null,null,0,null,null,null,0,null,null,null,0,null,null,null,0,null,null,null,0,null,null,null,0,null,null,null,0]
[null,null,null,0,null,null,null,0,null,null,null,0,null,null,null,0,null,null,null,0,null,null,null,0,null,null,null,0,null,null,null,0,null,null,null,0,null,null,null,0,null,null,null,0,null,null,null,0,null,null,null,0,null,null,null,0,null,null,null,0]
[null,null,null,0,null,null,null,0,null,null,null,0,null,null,null,0,null,null,null,0,null,null,null,0,null,null,null,0,null,null,null,0,null,null,null,0,null,null,null,0,null,null,null,0,null,null,null,0,null,null,null,0,null,null,null,0,null,null,null,0]
[null,null,null,0,null,null,null,0,null,null,null,0,null,null,null,0,null,null,null,0,null,null,null,0,null,null,null,0,null,null,null,0,null,null,null,0,null,null,null,0,null,null,null,0,null,null,null,0,null,null,null,0,null,null,null,0,null,null,null,0]
[null,null,null,0,null,null,null,0,null,null,null,0,null,null,null,0,null,null,null,0,null,null,null,0,null,null,null,0,null,null,null,0,null,null,null,0,null,null,null,0,null,null,null,0,null,null,null,0,null,null,null,0,null,null,null,0,null,null,null,0]
[null,null,null,0,null,null,null,0,null,null,null,0,null,null,null,0,null,null,null,0,null,null,null,0,null,null,null,0,null,null,null,0,null,null,null,0,null,null,null,0,null,null,null,0,null,null,null,0,null,null,null,0,null,null,null,0,null,null,null,0]
[null,null,null,0,null,null,null,0,null,null,null,0,null,null,null,0,null,null,null,0,null,null,null,0,null,null,null,0,null,null,null,0,null,null,null,0,null,null,null,0,null,null,null,0,null,null,null,0,null,null,null,0,null,null,null,0,null,null,null,0]
[null,null,null,0,null,null,null,0,null,null,null,0,null,null,null,0,null,null,null,0,null,null,null,0,null,null,null,0,null,null,null,0,null,null,null,0,null,null,null,0,null,null,null,0,null,null,null,0,null,null,null,0,null,null,null,0,null,null,null,0]
[null,null,null,0,null,null,null,0,null,null,null,0,null,null,null,0,null,null,null,0,null,null,null,0,null,null,null,0,null,null,null,0,null,null,null,0,null,null,null,0,null,null,null,0,null,null,null,0,null,null,null,0,null,null,null,0,null,null,null,0]
[null,null,null,0,null,null,null,0,null,null,null,0,null,null,null,0,null,null,null,0,null,null,null,0,null,null,null,0,null,null,null,0,null,null,null,0,null,null,null,0,null,null,null,0,null,null,null,0,null,null,null,0,null,null,null,0,null,null,null,0]
[null,null,null,0,null,null,null,0,null,null,null,0,null,null,null,0,null,null,null,0,null,null,null,0,null,null,null,0,null,null,null,0,null,null,null,0,null,null,null,0,null,null,null,0,null,null,null,0,null,null,null,0,null,null,null,0,null,null,null,0]
[null,null,null,0,null,null,null,0,null,null,null,0,null,null,null,0,null,null,null,0,null,null,null,0,null,null,null,0,null,null,null,0,null,null,null,0,null,null,null,0,null,null,null,0,null,null,null,0,null,null,null,0,null,null,null,0,null,null,null,0]
[null,null,null,0,null,null,null,0,null,null,null,0,null,null,null,0,null,null,null,0,null,null,null,0,null,null,null,0,null,null,null,0,null,null,null,0,null,null,null,0,null,null,null,0,null,null,null,0,null,null,null,0,null,null,null,0,null,null,null,0]
[null,null,null,0,null,null,null,0,null,null,null,0,null,null,null,0,null,null,null,0,null,null,null,0,null,null,null,0,null,null,null,0,null,null,null,0,null,null,null,0,null,null,null,0,null,null,null,0,null,null,null,0,null,null,null,0,null,null,null,0]
[null,null,null,0,null,null,null,0,null,null,null,0,null,null,null,0,null,null,null,0,null,null,null,0,null,null,null,0,null,null,null,0,null,null,null,0,null,null,null,0,null,null,null,0,null,null,null,0,null,null,null,0,null,null,null,0,null,null,null,0]
[null,null,null,0,null,null,null,0,null,null,null,0,null,null,null,0,null,null,null,0,null,null,null,0,null,null,null,0,null,null,null,0,null,null,null,0,null,null,null,0,null,null,null,0,null,null,null,0,null,null,null,0,null,null,null,0,null,null,null,0]
[null,null,null,0,null,null,null,0,null,null,null,0,null,null,null,0,null,null,null,0,null,null,null,0,null,null,null,0,null,null,null,0,null,null,null,0,null,null,null,0,null,null,null,0,null,null,null,0,null,null,null,0,null,null,null,0,null,null,null,0]
[null,null,null,0,null,null,null,0,null,null,null,0,null,null,null,0,null,null,null,0,null,null,null,0,null,null,null,0,null,null,null,0,null,null,null,0,null,null,null,0,null,null,null,0,null,null,null,0,null,null,null,0,null,null,null,0,null,null,null,0]
[null,null,null,0,null,null,null,0,null,null,null,0,null,null,null,0,null,null,null,0,null,null,null,0,null,null,null,0,null,null,null,0,null,null,null,0,null,null,null,0,null,null,null,0,null,null,null,0,null,null,null,0,null,null,null,0,null,null,null,0]
[null,null,null,0,null,null,null,0,null,null,null,0,null,null,null,0,null,null,null,0,null,null,null,0,null,null,null,0,null,null,null,0,null,null,null,0,null,null,null,0,null,null,null,0,null,null,null,0,null,null,null,0,null,null,null,0,null,null,null,0]
[null,null,null,0,null,null,null,0,null,null,null,0,null,null,null,0,null,null,null,0,null,null,null,0,null,null,null,0,null,null,null,0,null,null,null,0,null,null,null,0,null,null,null,0,null,null,null,0,null,null,null,0,null,null,null,0,null,null,null,0]
[null,null,null,0,null,null,null,0,null,null,null,0,null,null,null,0,null,null,null,0,null,null,null,0,null,null,null,0,null,null,null,0,null,null,null,0,null,null,null,0,null,null,null,0,null,null,null,0,null,null,null,0,null,null,null,0,null,null,null,0]
[null,null,null,0,null,null,null,0,null,null,null,0,null,null,null,0,null,null,null,0,null,null,null,0,null,null,null,0,null,null,null,0,null,null,null,0,null,null,null,0,null,null,null,0,null,null,null,0,null,null,null,0,null,null,null,0,null,null,null,0]
[null,null,null,0,null,null,null,0,null,null,null,0,null,null,null,0,null,null,null,0,null,null,null,0,null,null,null,0,null,null,null,0,null,null,null,0,null,null,null,0,null,null,null,0,null,null,null,0,null,null,null,0,null,null,null,0,null,null,null,0]
[null,null,null,0,null,null,null,0,null,null,null,0,null,null,null,0,null,null,null,0,null,null,null,0,null,null,null,0,null,null,null,0,null,null,null,0,null,null,null,0,null,null,null,0,null,null,null,0,null,null,null,0,null,null,null,0,null,null,null,0]
[null,null,null,0,null,null,null,0,null,null,null,0,null,null,null,0,null,null,null,0,null,null,null,0,null,null,null,0,null,null,null,0,null,null,null,0,null,null,null,0,null,null,null,0,null,null,null,0,null,null,null,0,null,null,null,0,null,null,null,0]
[null,null,null,0,null,null,null,0,null,null,null,0,null,null,null,0,null,null,null,0,null,null,null,0,null,null,null,0,null,null,null,0,null,null,null,0,null,null,null,0,null,null,null,0,null,null,null,0,null,null,null,0,null,null,null,0,null,null,null,0]
[null,null,null,0,null,null,null,0,null,null,null,0,null,null,null,0,null,null,null,0,null,null,null,0,null,null,null,0,null,null,null,0,null,null,null,0,null,null,null,0,null,null,null,0,null,null,null,0,null,null,null,0,null,null,null,0,null,null,null,0]
[null,null,null,0,null,null,null,0,null,null,null,0,null,null,null,0,null,null,null,0,null,null,null,0,null,null,null,0,null,null,null,0,null,null,null,0,null,null,null,0,null,null,null,0,null,null,null,0,null,null,null,0,null,null,null,0,null,null,null,0]
[null,null,null,0,null,null,null,0,null,null,null,0,null,null,null,0,null,null,null,0,null,null,null,0,null,null,null,0,null,null,null,0,null,null,null,0,null,null,null,0,null,null,null,0,null,null,null,0,null,null,null,0,null,null,null,0,null,null,null,0]
[null,null,null,0,null,null,null,0,null,null,null,0,null,null,null,0,null,null,null,0,null,null,null,0,null,null,null,0,null,null,null,0,null,null,null,0,null,null,null,0,null,null,null,0,null,null,null,0,null,null,null,0,null,null,null,0,null,null,null,0]
[null,null,null,0,null,null,null,0,null,null,null,0,null,null,null,0,null,null,null,0,null,null,null,0,null,null,null,0,null,null,null,0,null,null,null,0,null,null,null,0,null,null,null,0,null,null,null,0,null,null,null,0,null,null,null,0,null,null,null,0]
[null,null,null,0,null,null,null,0,null,null,null,0,null,null,null,0,null,null,null,0,null,null,null,0,null,null,null,0,null,null,null,0,null,null,null,0,null,null,null,0,null,null,null,0,null,null,null,0,null,null,null,0,null,null,null,0,null,null,null,0]
[null,null,null,0,null,null,null,0,null,null,null,0,null,null,null,0,null,null,null,0,null,null,null,0,null,null,null,0,null,null,null,0,null,null,null,0,null,null,null,0,null,null,null,0,null,null,null,0,null,null,null,0,null,null,null,0,null,null,null,0]
[null,null,null,0,null,null,null,0,null,null,null,0,null,null,null,0,null,null,null,0,null,null,null,0,null,null,null,0,null,null,null,0,null,null,null,0,null,null,null,0,null,null,null,0,null,null,null,0,null,null,null,0,null,null,null,0,null,null,null,0]
[null,null,null,0,null,null,null,0,null,null,null,0,null,null,null,0,null,null,null,0,null,null,null,0,null,null,null,0,null,null,null,0,null,null,null,0,null,null,null,0,null,null,null,0,null,null,null,0,null,null,null,0,null,null,null,0,null,null,null,0]
[null,null,null,0,null,null,null,0,null,null,null,0,null,null,null,0,null,null,null,0,null,null,null,0,null,null,null,0,null,null,null,0,null,null,null,0,null,null,null,0,null,null,null,0,null,null,null,0,null,null,null,0,null,null,null,0,null,null,null,0]
[null,null,null,0,null,null,null,0,null,null,null,0,null,null,null,0,null,null,null,0,null,null,null,0,null,null,null,0,null,null,null,0,null,null,null,0,null,null,null,0,null,null,null,0,null,null,null,0,null,null,null,0,null,null,null,0,null,null,null,0]
[null,null,null,0,null,null,null,0,null,null,null,0,null,null,null,0,null,null,null,0,null,null,null,0,null,null,null,0,null,null,null,0,null,null,null,0,null,null,null,0,null,null,null,0,null,null,null,0,null,null,null,0,null,null,null,0,null,null,null,0]
[null,null,null,0,null,null,null,0,null,null,null,0,null,null,null,0,null,null,null,0,null,null,null,0,null,null,null,0,null,null,null,0,null,null,null,0,null,null,null,0,null,null,null,0,null,null,null,0,null,null,null,0,null,null,null,0,null,null,null,0]
[null,null,null,0,null,null,null,0,null,null,null,0,null,null,null,0,null,null,null,0,null,null,null,0,null,null,null,0,null,null,null,0,null,null,null,0,null,null,null,0,null,null,null,0,null,null,null,0,null,null,null,0,null,null,null,0,null,null,null,0]
[null,null,null,0,null,null,null,0,null,null,null,0,null,null,null,0,null,null,null,0,null,null,null,0,null,null,null,0,null,null,null,0,null,null,null,0,null,null,null,0,null,null,null,0,null,null,null,0,null,null,null,0,null,null,null,0,null,null,null,0]
[null,null,null,0,null,null,null,0,null,null,null,0,null,null,null,0,null,null,null,0,null,null,null,0,null,null,null,0,null,null,null,0,null,null,null,0,null,null,null,0,null,null,null,0,null,null,null,0,null,null,null,0,null,null,null,0,null,null,null,0]
[null,null,null,0,null,null,null,0,null,null,null,0,null,null,null,0,null,null,null,0,null,null,null,0,null,null,null,0,null,null,null,0,null,null,null,0,null,null,null,0,null,null,null,0,null,null,null,0,null,null,null,0,null,null,null,0,null,null,null,0]
[null,null,null,0,null,null,null,0,null,null,null,0,null,null,null,0,null,null,null,0,null,null,null,0,null,null,null,0,null,null,null,0,null,null,null,0,null,null,null,0,null,null,null,0,null,null,null,0,null,null,null,0,null,null,null,0,null,null,null,0]
[null,null,null,0,null,null,null,0,null,null,null,0,null,null,null,0,null,null,null,0,null,null,null,0,null,null,null,0,null,null,null,0,null,null,null,0,null,null,null,0,null,null,null,0,null,null,null,0,null,null,null,0,null,null,null,0,null,null,null,0]
[null,null,null,0,null,null,null,0,null,null,null,0,null,null,null,0,null,null,null,0,null,null,null,0,null,null,null,0,null,null,null,0,null,null,null,0,null,null,null,0,null,null,null,0,null,null,null,0,null,null,null,0,null,null,null,0,null,null,null,0]
[null,null,null,0,null,null,null,0,null,null,null,0,null,null,null,0,null,null,null,0,null,null,null,0,null,null,null,0,null,null,null,0,null,null,null,0,null,null,null,0,null,null,null,0,null,null,null,0,null,null,null,0,null,null,null,0,null,null,null,0]
[null,null,null,0,null,null,null,0,null,null,null,0,null,null,null,0,null,null,null,0,null,null,null,0,null,null,null,0,null,null,null,0,null,null,null,0,null,null,null,0,null,null,null,0,null,null,null,0,null,null,null,0,null,null,null,0,null,null,null,0]
[null,null,null,0,null,null,null,0,null,null,null,0,null,null,null,0,null,null,null,0,null,null,null,0,null,null,null,0,null,null,null,0,null,null,null,0,null,null,null,0,null,null,null,0,null,null,null,0,null,null,null,0,null,null,null,0,null,null,null,0]
[null,null,null,0,null,null,null,0,null,null,null,0,null,null,null,0,null,null,null,0,null,null,null,0,null,null,null,0,null,null,null,0,null,null,null,0,null,null,null,0,null,null,null,0,null,null,null,0,null,null,null,0,null,null,null,0,null,null,null,0]
[null,null,null,0,null,null,null,0,null,null,null,0,null,null,null,0,null,null,null,0,null,null,null,0,null,null,null,0,null,null,null,0,null,null,null,0,null,null,null,0,null,null,null,0,null,null,null,0,null,null,null,0,null,null,null,0,null,null,null,0]
[null,null,null,0,null,null,null,0,null,null,null,0,null,null,null,0,null,null,null,0,null,null,null,0,null,null,null,0,null,null,null,0,null,null,null,0,null,null,null,0,null,null,null,0,null,null,null,0,null,null,null,0,null,null,null,0,null,null,null,0]
[null,null,null,0,null,null,null,0,null,null,null,0,null,null,null,0,null,null,null,0,null,null,null,0,null,null,null,0,null,null,null,0,null,null,null,0,null,null,null,0,null,null,null,0,null,null,null,0,null,null,null,0,null,null,null,0,null,null,null,0]
[null,null,null,0,null,null,null,0,null,null,null,0,null,null,null,0,null,null,null,0,null,null,null,0,null,null,null,0,null,null,null,0,null,null,null,0,null,null,null,0,null,null,null,0,null,null,null,0,null,null,null,0,null,null,null,0,null,null,null,0]
[null,null,null,0,null,null,null,0,null,null,null,0,null,null,null,0,null,null,null,0,null,null,null,0,null,null,null,0,null,null,null,0,null,null,null,0,null,null,null,0,null,null,null,0,null,null,null,0,null,null,null,0,null,null,null,0,null,null,null,0]
[null,null,null,0,null,null,null,0,null,null,null,0,null,null,null,0,null,null,null,0,null,null,null,0,null,null,null,0,null,null,null,0,null,null,null,0,null,null,null,0,null,null,null,0,null,null,null,0,null,null,null,0,null,null,null,0,null,null,null,0]
[null,null,null,0,null,null,null,0,null,null,null,0,null,null,null,0,null,null,null,0,null,null,null,0,null,null,null,0,null,null,null,0,null,null,null,0,null,null,null,0,null,null,null,0,null,null,null,0,null,null,null,0,null,null,null,0,null,null,null,0]
[null,null,null,0,null,null,null,0,null,null,null,0,null,null,null,0,null,null,null,0,null,null,null,0,null,null,null,0,null,null,null,0,null,null,null,0,null,null,null,0,null,null,null,0,null,null,null,0,null,null,null,0,null,null,null,0,null,null,null,0]
[null,null,null,0,null,null,null,0,null,null,null,0,null,null,null,0,null,null,null,0,null,null,null,0,null,null,null,0,null,null,null,0,null,null,null,0,null,null,null,0,null,null,null,0,null,null,null,0,null,null,null,0,null,null,null,0,null,null,null,0]
[null,null,null,0,null,null,null,0,null,null,null,0,null,null,null,0,null,null,null,0,null,null,null,0,null,null,null,0,null,null,null,0,null,null,null,0,null,null,null,0,null,null,null,0,null,null,null,0,null,null,null,0,null,null,null,0,null,null,null,0]
[null,null,null,0,null,null,null,0,null,null,null,0,null,null,null,0,null,null,null,0,null,null,null,0,null,null,null,0,null,null,null,0,null,null,null,0,null,null,null,0,null,null,null,0,null,null,null,0,null,null,null,0,null,null,null,0,null,null,null,0]
[null,null,null,0,null,null,null,0,null,null,null,0,null,null,null,0,null,null,null,0,null,null,null,0,null,null,null,0,null,null,null,0,null,null,null,0,null,null,null,0,null,null,null,0,null,null,null,0,null,null,null,0,null,null,null,0,null,null,null,0]
[null,null,null,0,null,null,null,0,null,null,null,0,null,null,null,0,null,null,null,0,null,null,null,0,null,null,null,0,null,null,null,0,null,null,null,0,null,null,null,0,null,null,null,0,null,null,null,0,null,null,null,0,null,null,null,0,null,null,null,0]
[null,null,null,{"$f":"IF(B583-C583<>0,D582+B583-C583,0)","v":0},null,null,null,{"$f":"IF(F583-G583<>0,H582+F583-G583,0)","v":0},null,null,null,{"$f":"IF(J583-K583<>0,L582+J583-K583,0)","v":0},null,null,null,{"$f":"IF(N583-O583<>0,P582+N583-O583,0)","v":0},null,null,null,{"$f":"IF(R583-S583<>0,T582+R583-S583,0)","v":0},null,null,null,{"$f":"IF(V583-W583<>0,X582+V583-W583,0)","v":0},null,null,null,{"$f":"IF(Z583-AA583<>0,AB582+Z583-AA583,0)","v":0},null,null,null,{"$f":"IF(AD583-AE583<>0,AF582+AD583-AE583,0)","v":0},null,null,null,{"$f":"IF(AH583-AI583<>0,AJ582+AH583-AI583,0)","v":0},null,null,null,{"$f":"IF(AL583-AM583<>0,AN582+AL583-AM583,0)","v":0},null,null,null,{"$f":"IF(AP583-AQ583<>0,AR582+AP583-AQ583,0)","v":0},null,null,null,{"$f":"IF(AT583-AU583<>0,AV582+AT583-AU583,0)","v":0},null,null,null,{"$f":"IF(AX583-AY583<>0,AZ582+AX583-AY583,0)","v":0},null,null,null,{"$f":"IF(BB583-BC583<>0,BD582+BB583-BC583,0)","v":0},null,null,null,{"$f":"IF(BF583-BG583<>0,BH582+BF583-BG583,0)","v":0}]
[null,null,null,0,null,null,null,0,null,null,null,0,null,null,null,0,null,null,null,0,null,null,null,0,null,null,null,0,null,null,null,0,null,null,null,0,null,null,null,0,null,null,null,0,null,null,null,0,null,null,null,0,null,null,null,0,null,null,null,0]
[null,null,null,0,null,null,null,0,null,null,null,0,null,null,null,0,null,null,null,0,null,null,null,0,null,null,null,0,null,null,null,0,null,null,null,0,null,null,null,0,null,null,null,0,null,null,null,0,null,null,null,0,null,null,null,0,null,null,null,0]
[null,null,null,0,null,null,null,0,null,null,null,0,null,null,null,0,null,null,null,0,null,null,null,0,null,null,null,0,null,null,null,0,null,null,null,0,null,null,null,0,null,null,null,0,null,null,null,0,null,null,null,0,null,null,null,0,null,null,null,0]
[null,null,null,0,null,null,null,0,null,null,null,0,null,null,null,0,null,null,null,0,null,null,null,0,null,null,null,0,null,null,null,0,null,null,null,0,null,null,null,0,null,null,null,0,null,null,null,0,null,null,null,0,null,null,null,0,null,null,null,0]
[null,null,null,0,null,null,null,0,null,null,null,0,null,null,null,0,null,null,null,0,null,null,null,0,null,null,null,0,null,null,null,0,null,null,null,0,null,null,null,0,null,null,null,0,null,null,null,0,null,null,null,0,null,null,null,0,null,null,null,0]
[null,null,null,0,null,null,null,0,null,null,null,0,null,null,null,0,null,null,null,0,null,null,null,0,null,null,null,0,null,null,null,0,null,null,null,0,null,null,null,0,null,null,null,0,null,null,null,0,null,null,null,0,null,null,null,0,null,null,null,0]
[null,null,null,0,null,null,null,0,null,null,null,0,null,null,null,0,null,null,null,0,null,null,null,0,null,null,null,0,null,null,null,0,null,null,null,0,null,null,null,0,null,null,null,0,null,null,null,0,null,null,null,0,null,null,null,0,null,null,null,0]
[null,null,null,0,null,null,null,0,null,null,null,0,null,null,null,0,null,null,null,0,null,null,null,0,null,null,null,0,null,null,null,0,null,null,null,0,null,null,null,0,null,null,null,0,null,null,null,0,null,null,null,0,null,null,null,0,null,null,null,0]
[null,null,null,0,null,null,null,0,null,null,null,0,null,null,null,0,null,null,null,0,null,null,null,0,null,null,null,0,null,null,null,0,null,null,null,0,null,null,null,0,null,null,null,0,null,null,null,0,null,null,null,0,null,null,null,0,null,null,null,0]
[null,null,null,0,null,null,null,0,null,null,null,0,null,null,null,0,null,null,null,0,null,null,null,0,null,null,null,0,null,null,null,0,null,null,null,0,null,null,null,0,null,null,null,0,null,null,null,0,null,null,null,0,null,null,null,0,null,null,null,0]
[null,null,null,0,null,null,null,0,null,null,null,0,null,null,null,0,null,null,null,0,null,null,null,0,null,null,null,0,null,null,null,0,null,null,null,0,null,null,null,0,null,null,null,0,null,null,null,0,null,null,null,0,null,null,null,0,null,null,null,0]
[null,null,null,0,null,null,null,0,null,null,null,0,null,null,null,0,null,null,null,0,null,null,null,0,null,null,null,0,null,null,null,0,null,null,null,0,null,null,null,0,null,null,null,0,null,null,null,0,null,null,null,0,null,null,null,0,null,null,null,0]
[null,null,null,0,null,null,null,0,null,null,null,0,null,null,null,0,null,null,null,0,null,null,null,0,null,null,null,0,null,null,null,0,null,null,null,0,null,null,null,0,null,null,null,0,null,null,null,0,null,null,null,0,null,null,null,0,null,null,null,0]
[null,null,null,0,null,null,null,0,null,null,null,0,null,null,null,0,null,null,null,0,null,null,null,0,null,null,null,0,null,null,null,0,null,null,null,0,null,null,null,0,null,null,null,0,null,null,null,0,null,null,null,0,null,null,null,0,null,null,null,0]
[null,null,null,0,null,null,null,0,null,null,null,0,null,null,null,0,null,null,null,0,null,null,null,0,null,null,null,0,null,null,null,0,null,null,null,0,null,null,null,0,null,null,null,0,null,null,null,0,null,null,null,0,null,null,null,0,null,null,null,0]
[null,null,null,0,null,null,null,0,null,null,null,0,null,null,null,0,null,null,null,0,null,null,null,0,null,null,null,0,null,null,null,0,null,null,null,0,null,null,null,0,null,null,null,0,null,null,null,0,null,null,null,0,null,null,null,0,null,null,null,0]
[null,null,null,0,null,null,null,0,null,null,null,0,null,null,null,0,null,null,null,0,null,null,null,0,null,null,null,0,null,null,null,0,null,null,null,0,null,null,null,0,null,null,null,0,null,null,null,0,null,null,null,0,null,null,null,0,null,null,null,0]
[null,null,null,0,null,null,null,0,null,null,null,0,null,null,null,0,null,null,null,0,null,null,null,0,null,null,null,0,null,null,null,0,null,null,null,0,null,null,null,0,null,null,null,0,null,null,null,0,null,null,null,0,null,null,null,0,null,null,null,0]
[null,null,null,0,null,null,null,0,null,null,null,0,null,null,null,0,null,null,null,0,null,null,null,0,null,null,null,0,null,null,null,0,null,null,null,0,null,null,null,0,null,null,null,0,null,null,null,0,null,null,null,0,null,null,null,0,null,null,null,0]
[null,null,null,0,null,null,null,0,null,null,null,0,null,null,null,0,null,null,null,0,null,null,null,0,null,null,null,0,null,null,null,0,null,null,null,0,null,null,null,0,null,null,null,0,null,null,null,0,null,null,null,0,null,null,null,0,null,null,null,0]
[null,null,null,0,null,null,null,0,null,null,null,0,null,null,null,0,null,null,null,0,null,null,null,0,null,null,null,0,null,null,null,0,null,null,null,0,null,null,null,0,null,null,null,0,null,null,null,0,null,null,null,0,null,null,null,0,null,null,null,0]
[null,null,null,0,null,null,null,0,null,null,null,0,null,null,null,0,null,null,null,0,null,null,null,0,null,null,null,0,null,null,null,0,null,null,null,0,null,null,null,0,null,null,null,0,null,null,null,0,null,null,null,0,null,null,null,0,null,null,null,0]
[null,null,null,0,null,null,null,0,null,null,null,0,null,null,null,0,null,null,null,0,null,null,null,0,null,null,null,0,null,null,null,0,null,null,null,0,null,null,null,0,null,null,null,0,null,null,null,0,null,null,null,0,null,null,null,0,null,null,null,0]
[null,null,null,0,null,null,null,0,null,null,null,0,null,null,null,0,null,null,null,0,null,null,null,0,null,null,null,0,null,null,null,0,null,null,null,0,null,null,null,0,null,null,null,0,null,null,null,0,null,null,null,0,null,null,null,0,null,null,null,0]
[null,null,null,0,null,null,null,0,null,null,null,0,null,null,null,0,null,null,null,0,null,null,null,0,null,null,null,0,null,null,null,0,null,null,null,0,null,null,null,0,null,null,null,0,null,null,null,0,null,null,null,0,null,null,null,0,null,null,null,0]
[null,null,null,0,null,null,null,0,null,null,null,0,null,null,null,0,null,null,null,0,null,null,null,0,null,null,null,0,null,null,null,0,null,null,null,0,null,null,null,0,null,null,null,0,null,null,null,0,null,null,null,0,null,null,null,0,null,null,null,0]
[null,null,null,0,null,null,null,0,null,null,null,0,null,null,null,0,null,null,null,0,null,null,null,0,null,null,null,0,null,null,null,0,null,null,null,0,null,null,null,0,null,null,null,0,null,null,null,0,null,null,null,0,null,null,null,0,null,null,null,0]
[null,null,null,0,null,null,null,0,null,null,null,0,null,null,null,0,null,null,null,0,null,null,null,0,null,null,null,0,null,null,null,0,null,null,null,0,null,null,null,0,null,null,null,0,null,null,null,0,null,null,null,0,null,null,null,0,null,null,null,0]
[null,null,null,0,null,null,null,0,null,null,null,0,null,null,null,0,null,null,null,0,null,null,null,0,null,null,null,0,null,null,null,0,null,null,null,0,null,null,null,0,null,null,null,0,null,null,null,0,null,null,null,0,null,null,null,0,null,null,null,0]
[null,null,null,0,null,null,null,0,null,null,null,0,null,null,null,0,null,null,null,0,null,null,null,0,null,null,null,0,null,null,null,0,null,null,null,0,null,null,null,0,null,null,null,0,null,null,null,0,null,null,null,0,null,null,null,0,null,null,null,0]
[null,null,null,0,null,null,null,0,null,null,null,0,null,null,null,0,null,null,null,0,null,null,null,0,null,null,null,0,null,null,null,0,null,null,null,0,null,null,null,0,null,null,null,0,null,null,null,0,null,null,null,0,null,null,null,0,null,null,null,0]
[null,null,null,0,null,null,null,0,null,null,null,0,null,null,null,0,null,null,null,0,null,null,null,0,null,null,null,0,null,null,null,0,null,null,null,0,null,null,null,0,null,null,null,0,null,null,null,0,null,null,null,0,null,null,null,0,null,null,null,0]
[null,null,null,0,null,null,null,0,null,null,null,0,null,null,null,0,null,null,null,0,null,null,null,0,null,null,null,0,null,null,null,0,null,null,null,0,null,null,null,0,null,null,null,0,null,null,null,0,null,null,null,0,null,null,null,0,null,null,null,0]
[null,null,null,0,null,null,null,0,null,null,null,0,null,null,null,0,null,null,null,0,null,null,null,0,null,null,null,0,null,null,null,0,null,null,null,0,null,null,null,0,null,null,null,0,null,null,null,0,null,null,null,0,null,null,null,0,null,null,null,0]
[null,null,null,0,null,null,null,0,null,null,null,0,null,null,null,0,null,null,null,0,null,null,null,0,null,null,null,0,null,null,null,0,null,null,null,0,null,null,null,0,null,null,null,0,null,null,null,0,null,null,null,0,null,null,null,0,null,null,null,0]
[null,null,null,0,null,null,null,0,null,null,null,0,null,null,null,0,null,null,null,0,null,null,null,0,null,null,null,0,null,null,null,0,null,null,null,0,null,null,null,0,null,null,null,0,null,null,null,0,null,null,null,0,null,null,null,0,null,null,null,0]
[null,null,null,0,null,null,null,0,null,null,null,0,null,null,null,0,null,null,null,0,null,null,null,0,null,null,null,0,null,null,null,0,null,null,null,0,null,null,null,0,null,null,null,0,null,null,null,0,null,null,null,0,null,null,null,0,null,null,null,0]
[null,null,null,0,null,null,null,0,null,null,null,0,null,null,null,0,null,null,null,0,null,null,null,0,null,null,null,0,null,null,null,0,null,null,null,0,null,null,null,0,null,null,null,0,null,null,null,0,null,null,null,0,null,null,null,0,null,null,null,0]
[null,null,null,0,null,null,null,0,null,null,null,0,null,null,null,0,null,null,null,0,null,null,null,0,null,null,null,0,null,null,null,0,null,null,null,0,null,null,null,0,null,null,null,0,null,null,null,0,null,null,null,0,null,null,null,0,null,null,null,0]
[null,null,null,0,null,null,null,0,null,null,null,0,null,null,null,0,null,null,null,0,null,null,null,0,null,null,null,0,null,null,null,0,null,null,null,0,null,null,null,0,null,null,null,0,null,null,null,0,null,null,null,0,null,null,null,0,null,null,null,0]
[null,null,null,0,null,null,null,0,null,null,null,0,null,null,null,0,null,null,null,0,null,null,null,0,null,null,null,0,null,null,null,0,null,null,null,0,null,null,null,0,null,null,null,0,null,null,null,0,null,null,null,0,null,null,null,0,null,null,null,0]
[null,null,null,0,null,null,null,0,null,null,null,0,null,null,null,0,null,null,null,0,null,null,null,0,null,null,null,0,null,null,null,0,null,null,null,0,null,null,null,0,null,null,null,0,null,null,null,0,null,null,null,0,null,null,null,0,null,null,null,0]
[null,null,null,0,null,null,null,0,null,null,null,0,null,null,null,0,null,null,null,0,null,null,null,0,null,null,null,0,null,null,null,0,null,null,null,0,null,null,null,0,null,null,null,0,null,null,null,0,null,null,null,0,null,null,null,0,null,null,null,0]
[null,null,null,0,null,null,null,0,null,null,null,0,null,null,null,0,null,null,null,0,null,null,null,0,null,null,null,0,null,null,null,0,null,null,null,0,null,null,null,0,null,null,null,0,null,null,null,0,null,null,null,0,null,null,null,0,null,null,null,0]
[null,null,null,0,null,null,null,0,null,null,null,0,null,null,null,0,null,null,null,0,null,null,null,0,null,null,null,0,null,null,null,0,null,null,null,0,null,null,null,0,null,null,null,0,null,null,null,0,null,null,null,0,null,null,null,0,null,null,null,0]
[null,null,null,{"$f":"IF(B711-C711<>0,D710+B711-C711,0)","v":0},null,null,null,{"$f":"IF(F711-G711<>0,H710+F711-G711,0)","v":0},null,null,null,{"$f":"IF(J711-K711<>0,L710+J711-K711,0)","v":0},null,null,null,{"$f":"IF(N711-O711<>0,P710+N711-O711,0)","v":0},null,null,null,{"$f":"IF(R711-S711<>0,T710+R711-S711,0)","v":0},null,null,null,{"$f":"IF(V711-W711<>0,X710+V711-W711,0)","v":0},null,null,null,{"$f":"IF(Z711-AA711<>0,AB710+Z711-AA711,0)","v":0},null,null,null,{"$f":"IF(AD711-AE711<>0,AF710+AD711-AE711,0)","v":0},null,null,null,{"$f":"IF(AH711-AI711<>0,AJ710+AH711-AI711,0)","v":0},null,null,null,{"$f":"IF(AL711-AM711<>0,AN710+AL711-AM711,0)","v":0},null,null,null,{"$f":"IF(AP711-AQ711<>0,AR710+AP711-AQ711,0)","v":0},null,null,null,{"$f":"IF(AT711-AU711<>0,AV710+AT711-AU711,0)","v":0},null,null,null,{"$f":"IF(AX711-AY711<>0,AZ710+AX711-AY711,0)","v":0},null,null,null,{"$f":"IF(BB711-BC711<>0,BD710+BB711-BC711,0)","v":0},null,null,null,{"$f":"IF(BF711-BG711<>0,BH710+BF711-BG711,0)","v":0}]
[null,null,null,0,null,null,null,0,null,null,null,0,null,null,null,0,null,null,null,0,null,null,null,0,null,null,null,0,null,null,null,0,null,null,null,0,null,null,null,0,null,null,null,0,null,null,null,0,null,null,null,0,null,null,null,0,null,null,null,0]
[null,null,null,0,null,null,null,0,null,null,null,0,null,null,null,0,null,null,null,0,null,null,null,0,null,null,null,0,null,null,null,0,null,null,null,0,null,null,null,0,null,null,null,0,null,null,null,0,null,null,null,0,null,null,null,0,null,null,null,0]
[null,null,null,0,null,null,null,0,null,null,null,0,null,null,null,0,null,null,null,0,null,null,null,0,null,null,null,0,null,null,null,0,null,null,null,0,null,null,null,0,null,null,null,0,null,null,null,0,null,null,null,0,null,null,null,0,null,null,null,0]
[null,null,null,0,null,null,null,0,null,null,null,0,null,null,null,0,null,null,null,0,null,null,null,0,null,null,null,0,null,null,null,0,null,null,null,0,null,null,null,0,null,null,null,0,null,null,null,0,null,null,null,0,null,null,null,0,null,null,null,0]
[null,null,null,0,null,null,null,0,null,null,null,0,null,null,null,0,null,null,null,0,null,null,null,0,null,null,null,0,null,null,null,0,null,null,null,0,null,null,null,0,null,null,null,0,null,null,null,0,null,null,null,0,null,null,null,0,null,null,null,0]
[null,null,null,0,null,null,null,0,null,null,null,0,null,null,null,0,null,null,null,0,null,null,null,0,null,null,null,0,null,null,null,0,null,null,null,0,null,null,null,0,null,null,null,0,null,null,null,0,null,null,null,0,null,null,null,0,null,null,null,0]
[null,null,null,0,null,null,null,0,null,null,null,0,null,null,null,0,null,null,null,0,null,null,null,0,null,null,null,0,null,null,null,0,null,null,null,0,null,null,null,0,null,null,null,0,null,null,null,0,null,null,null,0,null,null,null,0,null,null,null,0]
[null,null,null,0,null,null,null,0,null,null,null,0,null,null,null,0,null,null,null,0,null,null,null,0,null,null,null,0,null,null,null,0,null,null,null,0,null,null,null,0,null,null,null,0,null,null,null,0,null,null,null,0,null,null,null,0,null,null,null,0]
[null,null,null,0,null,null,null,0,null,null,null,0,null,null,null,0,null,null,null,0,null,null,null,0,null,null,null,0,null,null,null,0,null,null,null,0,null,null,null,0,null,null,null,0,null,null,null,0,null,null,null,0,null,null,null,0,null,null,null,0]
[null,null,null,0,null,null,null,0,null,null,null,0,null,null,null,0,null,null,null,0,null,null,null,0,null,null,null,0,null,null,null,0,null,null,null,0,null,null,null,0,null,null,null,0,null,null,null,0,null,null,null,0,null,null,null,0,null,null,null,0]
[null,null,null,0,null,null,null,0,null,null,null,0,null,null,null,0,null,null,null,0,null,null,null,0,null,null,null,0,null,null,null,0,null,null,null,0,null,null,null,0,null,null,null,0,null,null,null,0,null,null,null,0,null,null,null,0,null,null,null,0]
[null,null,null,0,null,null,null,0,null,null,null,0,null,null,null,0,null,null,null,0,null,null,null,0,null,null,null,0,null,null,null,0,null,null,null,0,null,null,null,0,null,null,null,0,null,null,null,0,null,null,null,0,null,null,null,0,null,null,null,0]
[null,null,null,0,null,null,null,0,null,null,null,0,null,null,null,0,null,null,null,0,null,null,null,0,null,null,null,0,null,null,null,0,null,null,null,0,null,null,null,0,null,null,null,0,null,null,null,0,null,null,null,0,null,null,null,0,null,null,null,0]
[null,null,null,0,null,null,null,0,null,null,null,0,null,null,null,0,null,null,null,0,null,null,null,0,null,null,null,0,null,null,null,0,null,null,null,0,null,null,null,0,null,null,null,0,null,null,null,0,null,null,null,0,null,null,null,0,null,null,null,0]
[null,null,null,0,null,null,null,0,null,null,null,0,null,null,null,0,null,null,null,0,null,null,null,0,null,null,null,0,null,null,null,0,null,null,null,0,null,null,null,0,null,null,null,0,null,null,null,0,null,null,null,0,null,null,null,0,null,null,null,0]
[null,null,null,0,null,null,null,0,null,null,null,0,null,null,null,0,null,null,null,0,null,null,null,0,null,null,null,0,null,null,null,0,null,null,null,0,null,null,null,0,null,null,null,0,null,null,null,0,null,null,null,0,null,null,null,0,null,null,null,0]
[null,null,null,0,null,null,null,0,null,null,null,0,null,null,null,0,null,null,null,0,null,null,null,0,null,null,null,0,null,null,null,0,null,null,null,0,null,null,null,0,null,null,null,0,null,null,null,0,null,null,null,0,null,null,null,0,null,null,null,0]
[null,null,null,0,null,null,null,0,null,null,null,0,null,null,null,0,null,null,null,0,null,null,null,0,null,null,null,0,null,null,null,0,null,null,null,0,null,null,null,0,null,null,null,0,null,null,null,0,null,null,null,0,null,null,null,0,null,null,null,0]
[null,null,null,0,null,null,null,0,null,null,null,0,null,null,null,0,null,null,null,0,null,null,null,0,null,null,null,0,null,null,null,0,null,null,null,0,null,null,null,0,null,null,null,0,null,null,null,0,null,null,null,0,null,null,null,0,null,null,null,0]
[null,null,null,0,null,null,null,0,null,null,null,0,null,null,null,0,null,null,null,0,null,null,null,0,null,null,null,0,null,null,null,0,null,null,null,0,null,null,null,0,null,null,null,0,null,null,null,0,null,null,null,0,null,null,null,0,null,null,null,0]
[null,null,null,0,null,null,null,0,null,null,null,0,null,null,null,0,null,null,null,0,null,null,null,0,null,null,null,0,null,null,null,0,null,null,null,0,null,null,null,0,null,null,null,0,null,null,null,0,null,null,null,0,null,null,null,0,null,null,null,0]
[null,null,null,0,null,null,null,0,null,null,null,0,null,null,null,0,null,null,null,0,null,null,null,0,null,null,null,0,null,null,null,0,null,null,null,0,null,null,null,0,null,null,null,0,null,null,null,0,null,null,null,0,null,null,null,0,null,null,null,0]
[null,null,null,{"$f":"IF(B775-C775<>0,D774+B775-C775,0)","v":0},null,null,null,{"$f":"IF(F775-G775<>0,H774+F775-G775,0)","v":0},null,null,null,{"$f":"IF(J775-K775<>0,L774+J775-K775,0)","v":0},null,null,null,{"$f":"IF(N775-O775<>0,P774+N775-O775,0)","v":0},null,null,null,{"$f":"IF(R775-S775<>0,T774+R775-S775,0)","v":0},null,null,null,{"$f":"IF(V775-W775<>0,X774+V775-W775,0)","v":0},null,null,null,{"$f":"IF(Z775-AA775<>0,AB774+Z775-AA775,0)","v":0},null,null,null,{"$f":"IF(AD775-AE775<>0,AF774+AD775-AE775,0)","v":0},null,null,null,{"$f":"IF(AH775-AI775<>0,AJ774+AH775-AI775,0)","v":0},null,null,null,{"$f":"IF(AL775-AM775<>0,AN774+AL775-AM775,0)","v":0},null,null,null,{"$f":"IF(AP775-AQ775<>0,AR774+AP775-AQ775,0)","v":0},null,null,null,{"$f":"IF(AT775-AU775<>0,AV774+AT775-AU775,0)","v":0},null,null,null,{"$f":"IF(AX775-AY775<>0,AZ774+AX775-AY775,0)","v":0},null,null,null,{"$f":"IF(BB775-BC775<>0,BD774+BB775-BC775,0)","v":0},null,null,null,{"$f":"IF(BF775-BG775<>0,BH774+BF775-BG775,0)","v":0}]
[null,null,null,0,null,null,null,0,null,null,null,0,null,null,null,0,null,null,null,0,null,null,null,0,null,null,null,0,null,null,null,0,null,null,null,0,null,null,null,0,null,null,null,0,null,null,null,0,null,null,null,0,null,null,null,0,null,null,null,0]
[null,null,null,0,null,null,null,0,null,null,null,0,null,null,null,0,null,null,null,0,null,null,null,0,null,null,null,0,null,null,null,0,null,null,null,0,null,null,null,0,null,null,null,0,null,null,null,0,null,null,null,0,null,null,null,0,null,null,null,0]
[null,null,null,0,null,null,null,0,null,null,null,0,null,null,null,0,null,null,null,0,null,null,null,0,null,null,null,0,null,null,null,0,null,null,null,0,null,null,null,0,null,null,null,0,null,null,null,0,null,null,null,0,null,null,null,0,null,null,null,0]
[null,null,null,0,null,null,null,0,null,null,null,0,null,null,null,0,null,null,null,0,null,null,null,0,null,null,null,0,null,null,null,0,null,null,null,0,null,null,null,0,null,null,null,0,null,null,null,0,null,null,null,0,null,null,null,0,null,null,null,0]
[null,null,null,0,null,null,null,0,null,null,null,0,null,null,null,0,null,null,null,0,null,null,null,0,null,null,null,0,null,null,null,0,null,null,null,0,null,null,null,0,null,null,null,0,null,null,null,0,null,null,null,0,null,null,null,0,null,null,null,0]
[null,null,null,0,null,null,null,0,null,null,null,0,null,null,null,0,null,null,null,0,null,null,null,0,null,null,null,0,null,null,null,0,null,null,null,0,null,null,null,0,null,null,null,0,null,null,null,0,null,null,null,0,null,null,null,0,null,null,null,0]
[null,null,null,0,null,null,null,0,null,null,null,0,null,null,null,0,null,null,null,0,null,null,null,0,null,null,null,0,null,null,null,0,null,null,null,0,null,null,null,0,null,null,null,0,null,null,null,0,null,null,null,0,null,null,null,0,null,null,null,0]
[null,null,null,0,null,null,null,0,null,null,null,0,null,null,null,0,null,null,null,0,null,null,null,0,null,null,null,0,null,null,null,0,null,null,null,0,null,null,null,0,null,null,null,0,null,null,null,0,null,null,null,0,null,null,null,0,null,null,null,0]
[null,null,null,0,null,null,null,0,null,null,null,0,null,null,null,0,null,null,null,0,null,null,null,0,null,null,null,0,null,null,null,0,null,null,null,0,null,null,null,0,null,null,null,0,null,null,null,0,null,null,null,0,null,null,null,0,null,null,null,0]
[null,null,null,0,null,null,null,0,null,null,null,0,null,null,null,0,null,null,null,0,null,null,null,0,null,null,null,0,null,null,null,0,null,null,null,0,null,null,null,0,null,null,null,0,null,null,null,0,null,null,null,0,null,null,null,0,null,null,null,0]
[null,null,null,0,null,null,null,0,null,null,null,0,null,null,null,0,null,null,null,0,null,null,null,0,null,null,null,0,null,null,null,0,null,null,null,0,null,null,null,0,null,null,null,0,null,null,null,0,null,null,null,0,null,null,null,0,null,null,null,0]
[null,null,null,0,null,null,null,0,null,null,null,0,null,null,null,0,null,null,null,0,null,null,null,0,null,null,null,0,null,null,null,0,null,null,null,0,null,null,null,0,null,null,null,0,null,null,null,0,null,null,null,0,null,null,null,0,null,null,null,0]
[null,null,null,0,null,null,null,0,null,null,null,0,null,null,null,0,null,null,null,0,null,null,null,0,null,null,null,0,null,null,null,0,null,null,null,0,null,null,null,0,null,null,null,0,null,null,null,0,null,null,null,0,null,null,null,0,null,null,null,0]
[null,null,null,0,null,null,null,0,null,null,null,0,null,null,null,0,null,null,null,0,null,null,null,0,null,null,null,0,null,null,null,0,null,null,null,0,null,null,null,0,null,null,null,0,null,null,null,0,null,null,null,0,null,null,null,0,null,null,null,0]
[null,null,null,0,null,null,null,0,null,null,null,0,null,null,null,0,null,null,null,0,null,null,null,0,null,null,null,0,null,null,null,0,null,null,null,0,null,null,null,0,null,null,null,0,null,null,null,0,null,null,null,0,null,null,null,0,null,null,null,0]
[null,null,null,0,null,null,null,0,null,null,null,0,null,null,null,0,null,null,null,0,null,null,null,0,null,null,null,0,null,null,null,0,null,null,null,0,null,null,null,0,null,null,null,0,null,null,null,0,null,null,null,0,null,null,null,0,null,null,null,0]
[null,null,null,0,null,null,null,0,null,null,null,0,null,null,null,0,null,null,null,0,null,null,null,0,null,null,null,0,null,null,null,0,null,null,null,0,null,null,null,0,null,null,null,0,null,null,null,0,null,null,null,0,null,null,null,0,null,null,null,0]
[null,null,null,0,null,null,null,0,null,null,null,0,null,null,null,0,null,null,null,0,null,null,null,0,null,null,null,0,null,null,null,0,null,null,null,0,null,null,null,0,null,null,null,0,null,null,null,0,null,null,null,0,null,null,null,0,null,null,null,0]
[null,null,null,0,null,null,null,0,null,null,null,0,null,null,null,0,null,null,null,0,null,null,null,0,null,null,null,0,null,null,null,0,null,null,null,0,null,null,null,0,null,null,null,0,null,null,null,0,null,null,null,0,null,null,null,0,null,null,null,0]
[null,null,null,0,null,null,null,0,null,null,null,0,null,null,null,0,null,null,null,0,null,null,null,0,null,null,null,0,null,null,null,0,null,null,null,0,null,null,null,0,null,null,null,0,null,null,null,0,null,null,null,0,null,null,null,0,null,null,null,0]
[null,null,null,0,null,null,null,0,null,null,null,0,null,null,null,0,null,null,null,0,null,null,null,0,null,null,null,0,null,null,null,0,null,null,null,0,null,null,null,0,null,null,null,0,null,null,null,0,null,null,null,0,null,null,null,0,null,null,null,0]
[null,null,null,0,null,null,null,0,null,null,null,0,null,null,null,0,null,null,null,0,null,null,null,0,null,null,null,0,null,null,null,0,null,null,null,0,null,null,null,0,null,null,null,0,null,null,null,0,null,null,null,0,null,null,null,0,null,null,null,0]
[null,null,null,0,null,null,null,0,null,null,null,0,null,null,null,0,null,null,null,0,null,null,null,0,null,null,null,0,null,null,null,0,null,null,null,0,null,null,null,0,null,null,null,0,null,null,null,0,null,null,null,0,null,null,null,0,null,null,null,0]
[null,null,null,0,null,null,null,0,null,null,null,0,null,null,null,0,null,null,null,0,null,null,null,0,null,null,null,0,null,null,null,0,null,null,null,0,null,null,null,0,null,null,null,0,null,null,null,0,null,null,null,0,null,null,null,0,null,null,null,0]
[null,null,null,0,null,null,null,0,null,null,null,0,null,null,null,0,null,null,null,0,null,null,null,0,null,null,null,0,null,null,null,0,null,null,null,0,null,null,null,0,null,null,null,0,null,null,null,0,null,null,null,0,null,null,null,0,null,null,null,0]
[null,null,null,0,null,null,null,0,null,null,null,0,null,null,null,0,null,null,null,0,null,null,null,0,null,null,null,0,null,null,null,0,null,null,null,0,null,null,null,0,null,null,null,0,null,null,null,0,null,null,null,0,null,null,null,0,null,null,null,0]
[null,null,null,0,null,null,null,0,null,null,null,0,null,null,null,0,null,null,null,0,null,null,null,0,null,null,null,0,null,null,null,0,null,null,null,0,null,null,null,0,null,null,null,0,null,null,null,0,null,null,null,0,null,null,null,0,null,null,null,0]
[null,null,null,0,null,null,null,0,null,null,null,0,null,null,null,0,null,null,null,0,null,null,null,0,null,null,null,0,null,null,null,0,null,null,null,0,null,null,null,0,null,null,null,0,null,null,null,0,null,null,null,0,null,null,null,0,null,null,null,0]
[null,null,null,0,null,null,null,0,null,null,null,0,null,null,null,0,null,null,null,0,null,null,null,0,null,null,null,0,null,null,null,0,null,null,null,0,null,null,null,0,null,null,null,0,null,null,null,0,null,null,null,0,null,null,null,0,null,null,null,0]
[null,null,null,0,null,null,null,0,null,null,null,0,null,null,null,0,null,null,null,0,null,null,null,0,null,null,null,0,null,null,null,0,null,null,null,0,null,null,null,0,null,null,null,0,null,null,null,0,null,null,null,0,null,null,null,0,null,null,null,0]
[null,null,null,0,null,null,null,0,null,null,null,0,null,null,null,0,null,null,null,0,null,null,null,0,null,null,null,0,null,null,null,0,null,null,null,0,null,null,null,0,null,null,null,0,null,null,null,0,null,null,null,0,null,null,null,0,null,null,null,0]
[null,null,null,0,null,null,null,0,null,null,null,0,null,null,null,0,null,null,null,0,null,null,null,0,null,null,null,0,null,null,null,0,null,null,null,0,null,null,null,0,null,null,null,0,null,null,null,0,null,null,null,0,null,null,null,0,null,null,null,0]
[null,null,null,0,null,null,null,0,null,null,null,0,null,null,null,0,null,null,null,0,null,null,null,0,null,null,null,0,null,null,null,0,null,null,null,0,null,null,null,0,null,null,null,0,null,null,null,0,null,null,null,0,null,null,null,0,null,null,null,0]
[null,null,null,0,null,null,null,0,null,null,null,0,null,null,null,0,null,null,null,0,null,null,null,0,null,null,null,0,null,null,null,0,null,null,null,0,null,null,null,0,null,null,null,0,null,null,null,0,null,null,null,0,null,null,null,0,null,null,null,0]
[null,null,null,0,null,null,null,0,null,null,null,0,null,null,null,0,null,null,null,0,null,null,null,0,null,null,null,0,null,null,null,0,null,null,null,0,null,null,null,0,null,null,null,0,null,null,null,0,null,null,null,0,null,null,null,0,null,null,null,0]
[null,null,null,0,null,null,null,0,null,null,null,0,null,null,null,0,null,null,null,0,null,null,null,0,null,null,null,0,null,null,null,0,null,null,null,0,null,null,null,0,null,null,null,0,null,null,null,0,null,null,null,0,null,null,null,0,null,null,null,0]
[null,null,null,0,null,null,null,0,null,null,null,0,null,null,null,0,null,null,null,0,null,null,null,0,null,null,null,0,null,null,null,0,null,null,null,0,null,null,null,0,null,null,null,0,null,null,null,0,null,null,null,0,null,null,null,0,null,null,null,0]
[null,null,null,0,null,null,null,0,null,null,null,0,null,null,null,0,null,null,null,0,null,null,null,0,null,null,null,0,null,null,null,0,null,null,null,0,null,null,null,0,null,null,null,0,null,null,null,0,null,null,null,0,null,null,null,0,null,null,null,0]
[null,null,null,0,null,null,null,0,null,null,null,0,null,null,null,0,null,null,null,0,null,null,null,0,null,null,null,0,null,null,null,0,null,null,null,0,null,null,null,0,null,null,null,0,null,null,null,0,null,null,null,0,null,null,null,0,null,null,null,0]
[null,null,null,0,null,null,null,0,null,null,null,0,null,null,null,0,null,null,null,0,null,null,null,0,null,null,null,0,null,null,null,0,null,null,null,0,null,null,null,0,null,null,null,0,null,null,null,0,null,null,null,0,null,null,null,0,null,null,null,0]
[null,null,null,0,null,null,null,0,null,null,null,0,null,null,null,0,null,null,null,0,null,null,null,0,null,null,null,0,null,null,null,0,null,null,null,0,null,null,null,0,null,null,null,0,null,null,null,0,null,null,null,0,null,null,null,0,null,null,null,0]
[null,null,null,0,null,null,null,0,null,null,null,0,null,null,null,0,null,null,null,0,null,null,null,0,null,null,null,0,null,null,null,0,null,null,null,0,null,null,null,0,null,null,null,0,null,null,null,0,null,null,null,0,null,null,null,0,null,null,null,0]
[null,null,null,0,null,null,null,0,null,null,null,0,null,null,null,0,null,null,null,0,null,null,null,0,null,null,null,0,null,null,null,0,null,null,null,0,null,null,null,0,null,null,null,0,null,null,null,0,null,null,null,0,null,null,null,0,null,null,null,0]
[null,null,null,0,null,null,null,0,null,null,null,0,null,null,null,0,null,null,null,0,null,null,null,0,null,null,null,0,null,null,null,0,null,null,null,0,null,null,null,0,null,null,null,0,null,null,null,0,null,null,null,0,null,null,null,0,null,null,null,0]
[null,null,null,0,null,null,null,0,null,null,null,0,null,null,null,0,null,null,null,0,null,null,null,0,null,null,null,0,null,null,null,0,null,null,null,0,null,null,null,0,null,null,null,0,null,null,null,0,null,null,null,0,null,null,null,0,null,null,null,0]
[null,null,null,0,null,null,null,0,null,null,null,0,null,null,null,0,null,null,null,0,null,null,null,0,null,null,null,0,null,null,null,0,null,null,null,0,null,null,null,0,null,null,null,0,null,null,null,0,null,null,null,0,null,null,null,0,null,null,null,0]
[null,null,null,0,null,null,null,0,null,null,null,0,null,null,null,0,null,null,null,0,null,null,null,0,null,null,null,0,null,null,null,0,null,null,null,0,null,null,null,0,null,null,null,0,null,null,null,0,null,null,null,0,null,null,null,0,null,null,null,0]
[null,null,null,0,null,null,null,0,null,null,null,0,null,null,null,0,null,null,null,0,null,null,null,0,null,null,null,0,null,null,null,0,null,null,null,0,null,null,null,0,null,null,null,0,null,null,null,0,null,null,null,0,null,null,null,0,null,null,null,0]
[null,null,null,0,null,null,null,0,null,null,null,0,null,null,null,0,null,null,null,0,null,null,null,0,null,null,null,0,null,null,null,0,null,null,null,0,null,null,null,0,null,null,null,0,null,null,null,0,null,null,null,0,null,null,null,0,null,null,null,0]
[null,null,null,0,null,null,null,0,null,null,null,0,null,null,null,0,null,null,null,0,null,null,null,0,null,null,null,0,null,null,null,0,null,null,null,0,null,null,null,0,null,null,null,0,null,null,null,0,null,null,null,0,null,null,null,0,null,null,null,0]
[null,null,null,0,null,null,null,0,null,null,null,0,null,null,null,0,null,null,null,0,null,null,null,0,null,null,null,0,null,null,null,0,null,null,null,0,null,null,null,0,null,null,null,0,null,null,null,0,null,null,null,0,null,null,null,0,null,null,null,0]
[null,null,null,0,null,null,null,0,null,null,null,0,null,null,null,0,null,null,null,0,null,null,null,0,null,null,null,0,null,null,null,0,null,null,null,0,null,null,null,0,null,null,null,0,null,null,null,0,null,null,null,0,null,null,null,0,null,null,null,0]
[null,null,null,0,null,null,null,0,null,null,null,0,null,null,null,0,null,null,null,0,null,null,null,0,null,null,null,0,null,null,null,0,null,null,null,0,null,null,null,0,null,null,null,0,null,null,null,0,null,null,null,0,null,null,null,0,null,null,null,0]
[null,null,null,0,null,null,null,0,null,null,null,0,null,null,null,0,null,null,null,0,null,null,null,0,null,null,null,0,null,null,null,0,null,null,null,0,null,null,null,0,null,null,null,0,null,null,null,0,null,null,null,0,null,null,null,0,null,null,null,0]
[null,null,null,0,null,null,null,0,null,null,null,0,null,null,null,0,null,null,null,0,null,null,null,0,null,null,null,0,null,null,null,0,null,null,null,0,null,null,null,0,null,null,null,0,null,null,null,0,null,null,null,0,null,null,null,0,null,null,null,0]
[null,null,null,0,null,null,null,0,null,null,null,0,null,null,null,0,null,null,null,0,null,null,null,0,null,null,null,0,null,null,null,0,null,null,null,0,null,null,null,0,null,null,null,0,null,null,null,0,null,null,null,0,null,null,null,0,null,null,null,0]
[null,null,null,0,null,null,null,0,null,null,null,0,null,null,null,0,null,null,null,0,null,null,null,0,null,null,null,0,null,null,null,0,null,null,null,0,null,null,null,0,null,null,null,0,null,null,null,0,null,null,null,0,null,null,null,0,null,null,null,0]
[null,null,null,0,null,null,null,0,null,null,null,0,null,null,null,0,null,null,null,0,null,null,null,0,null,null,null,0,null,null,null,0,null,null,null,0,null,null,null,0,null,null,null,0,null,null,null,0,null,null,null,0,null,null,null,0,null,null,null,0]
[null,null,null,0,null,null,null,0,null,null,null,0,null,null,null,0,null,null,null,0,null,null,null,0,null,null,null,0,null,null,null,0,null,null,null,0,null,null,null,0,null,null,null,0,null,null,null,0,null,null,null,0,null,null,null,0,null,null,null,0]
[null,null,null,0,null,null,null,0,null,null,null,0,null,null,null,0,null,null,null,0,null,null,null,0,null,null,null,0,null,null,null,0,null,null,null,0,null,null,null,0,null,null,null,0,null,null,null,0,null,null,null,0,null,null,null,0,null,null,null,0]
[null,null,null,0,null,null,null,0,null,null,null,0,null,null,null,0,null,null,null,0,null,null,null,0,null,null,null,0,null,null,null,0,null,null,null,0,null,null,null,0,null,null,null,0,null,null,null,0,null,null,null,0,null,null,null,0,null,null,null,0]
[null,null,null,0,null,null,null,0,null,null,null,0,null,null,null,0,null,null,null,0,null,null,null,0,null,null,null,0,null,null,null,0,null,null,null,0,null,null,null,0,null,null,null,0,null,null,null,0,null,null,null,0,null,null,null,0,null,null,null,0]
[null,null,null,0,null,null,null,0,null,null,null,0,null,null,null,0,null,null,null,0,null,null,null,0,null,null,null,0,null,null,null,0,null,null,null,0,null,null,null,0,null,null,null,0,null,null,null,0,null,null,null,0,null,null,null,0,null,null,null,0]
[null,null,null,0,null,null,null,0,null,null,null,0,null,null,null,0,null,null,null,0,null,null,null,0,null,null,null,0,null,null,null,0,null,null,null,0,null,null,null,0,null,null,null,0,null,null,null,0,null,null,null,0,null,null,null,0,null,null,null,0]
[null,null,null,0,null,null,null,0,null,null,null,0,null,null,null,0,null,null,null,0,null,null,null,0,null,null,null,0,null,null,null,0,null,null,null,0,null,null,null,0,null,null,null,0,null,null,null,0,null,null,null,0,null,null,null,0,null,null,null,0]
[null,null,null,0,null,null,null,0,null,null,null,0,null,null,null,0,null,null,null,0,null,null,null,0,null,null,null,0,null,null,null,0,null,null,null,0,null,null,null,0,null,null,null,0,null,null,null,0,null,null,null,0,null,null,null,0,null,null,null,0]
[null,null,null,0,null,null,null,0,null,null,null,0,null,null,null,0,null,null,null,0,null,null,null,0,null,null,null,0,null,null,null,0,null,null,null,0,null,null,null,0,null,null,null,0,null,null,null,0,null,null,null,0,null,null,null,0,null,null,null,0]
[null,null,null,0,null,null,null,0,null,null,null,0,null,null,null,0,null,null,null,0,null,null,null,0,null,null,null,0,null,null,null,0,null,null,null,0,null,null,null,0,null,null,null,0,null,null,null,0,null,null,null,0,null,null,null,0,null,null,null,0]
[null,null,null,0,null,null,null,0,null,null,null,0,null,null,null,0,null,null,null,0,null,null,null,0,null,null,null,0,null,null,null,0,null,null,null,0,null,null,null,0,null,null,null,0,null,null,null,0,null,null,null,0,null,null,null,0,null,null,null,0]
[null,null,null,{"$f":"IF(B967-C967<>0,D966+B967-C967,0)","v":0},null,null,null,{"$f":"IF(F967-G967<>0,H966+F967-G967,0)","v":0},null,null,null,{"$f":"IF(J967-K967<>0,L966+J967-K967,0)","v":0},null,null,null,{"$f":"IF(N967-O967<>0,P966+N967-O967,0)","v":0},null,null,null,{"$f":"IF(R967-S967<>0,T966+R967-S967,0)","v":0},null,null,null,{"$f":"IF(V967-W967<>0,X966+V967-W967,0)","v":0},null,null,null,{"$f":"IF(Z967-AA967<>0,AB966+Z967-AA967,0)","v":0},null,null,null,{"$f":"IF(AD967-AE967<>0,AF966+AD967-AE967,0)","v":0},null,null,null,{"$f":"IF(AH967-AI967<>0,AJ966+AH967-AI967,0)","v":0},null,null,null,{"$f":"IF(AL967-AM967<>0,AN966+AL967-AM967,0)","v":0},null,null,null,{"$f":"IF(AP967-AQ967<>0,AR966+AP967-AQ967,0)","v":0},null,null,null,{"$f":"IF(AT967-AU967<>0,AV966+AT967-AU967,0)","v":0},null,null,null,{"$f":"IF(AX967-AY967<>0,AZ966+AX967-AY967,0)","v":0},null,null,null,{"$f":"IF(BB967-BC967<>0,BD966+BB967-BC967,0)","v":0},null,null,null,{"$f":"IF(BF967-BG967<>0,BH966+BF967-BG967,0)","v":0}]
[null,null,null,0,null,null,null,0,null,null,null,0,null,null,null,0,null,null,null,0,null,null,null,0,null,null,null,0,null,null,null,0,null,null,null,0,null,null,null,0,null,null,null,0,null,null,null,0,null,null,null,0,null,null,null,0,null,null,null,0]
[null,null,null,0,null,null,null,0,null,null,null,0,null,null,null,0,null,null,null,0,null,null,null,0,null,null,null,0,null,null,null,0,null,null,null,0,null,null,null,0,null,null,null,0,null,null,null,0,null,null,null,0,null,null,null,0,null,null,null,0]
[null,null,null,0,null,null,null,0,null,null,null,0,null,null,null,0,null,null,null,0,null,null,null,0,null,null,null,0,null,null,null,0,null,null,null,0,null,null,null,0,null,null,null,0,null,null,null,0,null,null,null,0,null,null,null,0,null,null,null,0]
[null,null,null,0,null,null,null,0,null,null,null,0,null,null,null,0,null,null,null,0,null,null,null,0,null,null,null,0,null,null,null,0,null,null,null,0,null,null,null,0,null,null,null,0,null,null,null,0,null,null,null,0,null,null,null,0,null,null,null,0]
[null,null,null,0,null,null,null,0,null,null,null,0,null,null,null,0,null,null,null,0,null,null,null,0,null,null,null,0,null,null,null,0,null,null,null,0,null,null,null,0,null,null,null,0,null,null,null,0,null,null,null,0,null,null,null,0,null,null,null,0]
[null,null,null,0,null,null,null,0,null,null,null,0,null,null,null,0,null,null,null,0,null,null,null,0,null,null,null,0,null,null,null,0,null,null,null,0,null,null,null,0,null,null,null,0,null,null,null,0,null,null,null,0,null,null,null,0,null,null,null,0]
[null,null,null,0,null,null,null,0,null,null,null,0,null,null,null,0,null,null,null,0,null,null,null,0,null,null,null,0,null,null,null,0,null,null,null,0,null,null,null,0,null,null,null,0,null,null,null,0,null,null,null,0,null,null,null,0,null,null,null,0]
[null,null,null,0,null,null,null,0,null,null,null,0,null,null,null,0,null,null,null,0,null,null,null,0,null,null,null,0,null,null,null,0,null,null,null,0,null,null,null,0,null,null,null,0,null,null,null,0,null,null,null,0,null,null,null,0,null,null,null,0]
[null,null,null,0,null,null,null,0,null,null,null,0,null,null,null,0,null,null,null,0,null,null,null,0,null,null,null,0,null,null,null,0,null,null,null,0,null,null,null,0,null,null,null,0,null,null,null,0,null,null,null,0,null,null,null,0,null,null,null,0]
[null,null,null,0,null,null,null,0,null,null,null,0,null,null,null,0,null,null,null,0,null,null,null,0,null,null,null,0,null,null,null,0,null,null,null,0,null,null,null,0,null,null,null,0,null,null,null,0,null,null,null,0,null,null,null,0,null,null,null,0]
[null,null,null,0,null,null,null,0,null,null,null,0,null,null,null,0,null,null,null,0,null,null,null,0,null,null,null,0,null,null,null,0,null,null,null,0,null,null,null,0,null,null,null,0,null,null,null,0,null,null,null,0,null,null,null,0,null,null,null,0]
[null,null,null,0,null,null,null,0,null,null,null,0,null,null,null,0,null,null,null,0,null,null,null,0,null,null,null,0,null,null,null,0,null,null,null,0,null,null,null,0,null,null,null,0,null,null,null,0,null,null,null,0,null,null,null,0,null,null,null,0]
[null,null,null,0,null,null,null,0,null,null,null,0,null,null,null,0,null,null,null,0,null,null,null,0,null,null,null,0,null,null,null,0,null,null,null,0,null,null,null,0,null,null,null,0,null,null,null,0,null,null,null,0,null,null,null,0,null,null,null,0]
[null,null,null,0,null,null,null,0,null,null,null,0,null,null,null,0,null,null,null,0,null,null,null,0,null,null,null,0,null,null,null,0,null,null,null,0,null,null,null,0,null,null,null,0,null,null,null,0,null,null,null,0,null,null,null,0,null,null,null,0]
[null,null,null,0,null,null,null,0,null,null,null,0,null,null,null,0,null,null,null,0,null,null,null,0,null,null,null,0,null,null,null,0,null,null,null,0,null,null,null,0,null,null,null,0,null,null,null,0,null,null,null,0,null,null,null,0,null,null,null,0]
[null,null,null,0,null,null,null,0,null,null,null,0,null,null,null,0,null,null,null,0,null,null,null,0,null,null,null,0,null,null,null,0,null,null,null,0,null,null,null,0,null,null,null,0,null,null,null,0,null,null,null,0,null,null,null,0,null,null,null,0]
[null,null,null,0,null,null,null,0,null,null,null,0,null,null,null,0,null,null,null,0,null,null,null,0,null,null,null,0,null,null,null,0,null,null,null,0,null,null,null,0,null,null,null,0,null,null,null,0,null,null,null,0,null,null,null,0,null,null,null,0]
[null,null,null,0,null,null,null,0,null,null,null,0,null,null,null,0,null,null,null,0,null,null,null,0,null,null,null,0,null,null,null,0,null,null,null,0,null,null,null,0,null,null,null,0,null,null,null,0,null,null,null,0,null,null,null,0,null,null,null,0]
[null,null,null,0,null,null,null,0,null,null,null,0,null,null,null,0,null,null,null,0,null,null,null,0,null,null,null,0,null,null,null,0,null,null,null,0,null,null,null,0,null,null,null,0,null,null,null,0,null,null,null,0,null,null,null,0,null,null,null,0]
[null,null,null,0,null,null,null,0,null,null,null,0,null,null,null,0,null,null,null,0,null,null,null,0,null,null,null,0,null,null,null,0,null,null,null,0,null,null,null,0,null,null,null,0,null,null,null,0,null,null,null,0,null,null,null,0,null,null,null,0]
[null,null,null,0,null,null,null,0,null,null,null,0,null,null,null,0,null,null,null,0,null,null,null,0,null,null,null,0,null,null,null,0,null,null,null,0,null,null,null,0,null,null,null,0,null,null,null,0,null,null,null,0,null,null,null,0,null,null,null,0]
[null,null,null,0,null,null,null,0,null,null,null,0,null,null,null,0,null,null,null,0,null,null,null,0,null,null,null,0,null,null,null,0,null,null,null,0,null,null,null,0,null,null,null,0,null,null,null,0,null,null,null,0,null,null,null,0,null,null,null,0]
[null,null,null,0,null,null,null,0,null,null,null,0,null,null,null,0,null,null,null,0,null,null,null,0,null,null,null,0,null,null,null,0,null,null,null,0,null,null,null,0,null,null,null,0,null,null,null,0,null,null,null,0,null,null,null,0,null,null,null,0]
[null,null,null,0,null,null,null,0,null,null,null,0,null,null,null,0,null,null,null,0,null,null,null,0,null,null,null,0,null,null,null,0,null,null,null,0,null,null,null,0,null,null,null,0,null,null,null,0,null,null,null,0,null,null,null,0,null,null,null,0]
[null,null,null,0,null,null,null,0,null,null,null,0,null,null,null,0,null,null,null,0,null,null,null,0,null,null,null,0,null,null,null,0,null,null,null,0,null,null,null,0,null,null,null,0,null,null,null,0,null,null,null,0,null,null,null,0,null,null,null,0]
[null,null,null,0,null,null,null,0,null,null,null,0,null,null,null,0,null,null,null,0,null,null,null,0,null,null,null,0,null,null,null,0,null,null,null,0,null,null,null,0,null,null,null,0,null,null,null,0,null,null,null,0,null,null,null,0,null,null,null,0]
[null,null,null,0,null,null,null,0,null,null,null,0,null,null,null,0,null,null,null,0,null,null,null,0,null,null,null,0,null,null,null,0,null,null,null,0,null,null,null,0,null,null,null,0,null,null,null,0,null,null,null,0,null,null,null,0,null,null,null,0]
[null,null,null,0,null,null,null,0,null,null,null,0,null,null,null,0,null,null,null,0,null,null,null,0,null,null,null,0,null,null,null,0,null,null,null,0,null,null,null,0,null,null,null,0,null,null,null,0,null,null,null,0,null,null,null,0,null,null,null,0]
[null,null,null,0,null,null,null,0,null,null,null,0,null,null,null,0,null,null,null,0,null,null,null,0,null,null,null,0,null,null,null,0,null,null,null,0,null,null,null,0,null,null,null,0,null,null,null,0,null,null,null,0,null,null,null,0,null,null,null,0]
[null,null,null,0,null,null,null,0,null,null,null,0,null,null,null,0,null,null,null,0,null,null,null,0,null,null,null,0,null,null,null,0,null,null,null,0,null,null,null,0,null,null,null,0,null,null,null,0,null,null,null,0,null,null,null,0,null,null,null,0]
[null,null,null,0,null,null,null,0,null,null,null,0,null,null,null,0,null,null,null,0,null,null,null,0,null,null,null,0,null,null,null,0,null,null,null,0,null,null,null,0,null,null,null,0,null,null,null,0,null,null,null,0,null,null,null,0,null,null,null,0]
[null,null,null,0,null,null,null,0,null,null,null,0,null,null,null,0,null,null,null,0,null,null,null,0,null,null,null,0,null,null,null,0,null,null,null,0,null,null,null,0,null,null,null,0,null,null,null,0,null,null,null,0,null,null,null,0,null,null,null,0]
[null,null,null,0,null,null,null,0,null,null,null,0,null,null,null,0,null,null,null,0,null,null,null,0,null,null,null,0,null,null,null,0,null,null,null,0,null,null,null,0,null,null,null,0,null,null,null,0,null,null,null,0,null,null,null,0,null,null,null,0]
[null,null,null,0,null,null,null,0,null,null,null,0,null,null,null,0,null,null,null,0,null,null,null,0,null,null,null,0,null,null,null,0,null,null,null,0,null,null,null,0,null,null,null,0,null,null,null,0,null,null,null,0,null,null,null,0,null,null,null,0]
[null,null,null,0,null,null,null,0,null,null,null,0,null,null,null,0,null,null,null,0,null,null,null,0,null,null,null,0,null,null,null,0,null,null,null,0,null,null,null,0,null,null,null,0,null,null,null,0,null,null,null,0,null,null,null,0,null,null,null,0]
[null,null,null,0,null,null,null,0,null,null,null,0,null,null,null,0,null,null,null,0,null,null,null,0,null,null,null,0,null,null,null,0,null,null,null,0,null,null,null,0,null,null,null,0,null,null,null,0,null,null,null,0,null,null,null,0,null,null,null,0]
[null,null,null,0,null,null,null,0,null,null,null,0,null,null,null,0,null,null,null,0,null,null,null,0,null,null,null,0,null,null,null,0,null,null,null,0,null,null,null,0,null,null,null,0,null,null,null,0,null,null,null,0,null,null,null,0,null,null,null,0]
[null,null,null,0,null,null,null,0,null,null,null,0,null,null,null,0,null,null,null,0,null,null,null,0,null,null,null,0,null,null,null,0,null,null,null,0,null,null,null,0,null,null,null,0,null,null,null,0,null,null,null,0,null,null,null,0,null,null,null,0]
[null,null,null,0,null,null,null,0,null,null,null,0,null,null,null,0,null,null,null,0,null,null,null,0,null,null,null,0,null,null,null,0,null,null,null,0,null,null,null,0,null,null,null,0,null,null,null,0,null,null,null,0,null,null,null,0,null,null,null,0]
[null,null,null,0,null,null,null,0,null,null,null,0,null,null,null,0,null,null,null,0,null,null,null,0,null,null,null,0,null,null,null,0,null,null,null,0,null,null,null,0,null,null,null,0,null,null,null,0,null,null,null,0,null,null,null,0,null,null,null,0]
[null,null,null,0,null,null,null,0,null,null,null,0,null,null,null,0,null,null,null,0,null,null,null,0,null,null,null,0,null,null,null,0,null,null,null,0,null,null,null,0,null,null,null,0,null,null,null,0,null,null,null,0,null,null,null,0,null,null,null,0]
[null,null,null,0,null,null,null,0,null,null,null,0,null,null,null,0,null,null,null,0,null,null,null,0,null,null,null,0,null,null,null,0,null,null,null,0,null,null,null,0,null,null,null,0,null,null,null,0,null,null,null,0,null,null,null,0,null,null,null,0]
[null,null,null,0,null,null,null,0,null,null,null,0,null,null,null,0,null,null,null,0,null,null,null,0,null,null,null,0,null,null,null,0,null,null,null,0,null,null,null,0,null,null,null,0,null,null,null,0,null,null,null,0,null,null,null,0,null,null,null,0]
[null,null,null,0,null,null,null,0,null,null,null,0,null,null,null,0,null,null,null,0,null,null,null,0,null,null,null,0,null,null,null,0,null,null,null,0,null,null,null,0,null,null,null,0,null,null,null,0,null,null,null,0,null,null,null,0,null,null,null,0]
[null,null,null,0,null,null,null,0,null,null,null,0,null,null,null,0,null,null,null,0,null,null,null,0,null,null,null,0,null,null,null,0,null,null,null,0,null,null,null,0,null,null,null,0,null,null,null,0,null,null,null,0,null,null,null,0,null,null,null,0]
[null,null,null,0,null,null,null,0,null,null,null,0,null,null,null,0,null,null,null,0,null,null,null,0,null,null,null,0,null,null,null,0,null,null,null,0,null,null,null,0,null,null,null,0,null,null,null,0,null,null,null,0,null,null,null,0,null,null,null,0]
[null,null,null,0,null,null,null,0,null,null,null,0,null,null,null,0,null,null,null,0,null,null,null,0,null,null,null,0,null,null,null,0,null,null,null,0,null,null,null,0,null,null,null,0,null,null,null,0,null,null,null,0,null,null,null,0,null,null,null,0]
[null,null,null,0,null,null,null,0,null,null,null,0,null,null,null,0,null,null,null,0,null,null,null,0,null,null,null,0,null,null,null,0,null,null,null,0,null,null,null,0,null,null,null,0,null,null,null,0,null,null,null,0,null,null,null,0,null,null,null,0]
[null,null,null,0,null,null,null,0,null,null,null,0,null,null,null,0,null,null,null,0,null,null,null,0,null,null,null,0,null,null,null,0,null,null,null,0,null,null,null,0,null,null,null,0,null,null,null,0,null,null,null,0,null,null,null,0,null,null,null,0]
[null,null,null,0,null,null,null,0,null,null,null,0,null,null,null,0,null,null,null,0,null,null,null,0,null,null,null,0,null,null,null,0,null,null,null,0,null,null,null,0,null,null,null,0,null,null,null,0,null,null,null,0,null,null,null,0,null,null,null,0]
[null,null,null,0,null,null,null,0,null,null,null,0,null,null,null,0,null,null,null,0,null,null,null,0,null,null,null,0,null,null,null,0,null,null,null,0,null,null,null,0,null,null,null,0,null,null,null,0,null,null,null,0,null,null,null,0,null,null,null,0]
[null,null,null,0,null,null,null,0,null,null,null,0,null,null,null,0,null,null,null,0,null,null,null,0,null,null,null,0,null,null,null,0,null,null,null,0,null,null,null,0,null,null,null,0,null,null,null,0,null,null,null,0,null,null,null,0,null,null,null,0]
[null,null,null,0,null,null,null,0,null,null,null,0,null,null,null,0,null,null,null,0,null,null,null,0,null,null,null,0,null,null,null,0,null,null,null,0,null,null,null,0,null,null,null,0,null,null,null,0,null,null,null,0,null,null,null,0,null,null,null,0]
[null,null,null,0,null,null,null,0,null,null,null,0,null,null,null,0,null,null,null,0,null,null,null,0,null,null,null,0,null,null,null,0,null,null,null,0,null,null,null,0,null,null,null,0,null,null,null,0,null,null,null,0,null,null,null,0,null,null,null,0]
[null,null,null,0,null,null,null,0,null,null,null,0,null,null,null,0,null,null,null,0,null,null,null,0,null,null,null,0,null,null,null,0,null,null,null,0,null,null,null,0,null,null,null,0,null,null,null,0,null,null,null,0,null,null,null,0,null,null,null,0]
[null,null,null,0,null,null,null,0,null,null,null,0,null,null,null,0,null,null,null,0,null,null,null,0,null,null,null,0,null,null,null,0,null,null,null,0,null,null,null,0,null,null,null,0,null,null,null,0,null,null,null,0,null,null,null,0,null,null,null,0]
[null,null,null,0,null,null,null,0,null,null,null,0,null,null,null,0,null,null,null,0,null,null,null,0,null,null,null,0,null,null,null,0,null,null,null,0,null,null,null,0,null,null,null,0,null,null,null,0,null,null,null,0,null,null,null,0,null,null,null,0]
[null,null,null,0,null,null,null,0,null,null,null,0,null,null,null,0,null,null,null,0,null,null,null,0,null,null,null,0,null,null,null,0,null,null,null,0,null,null,null,0,null,null,null,0,null,null,null,0,null,null,null,0,null,null,null,0,null,null,null,0]
[null,null,null,0,null,null,null,0,null,null,null,0,null,null,null,0,null,null,null,0,null,null,null,0,null,null,null,0,null,null,null,0,null,null,null,0,null,null,null,0,null,null,null,0,null,null,null,0,null,null,null,0,null,null,null,0,null,null,null,0]
[null,null,null,0,null,null,null,0,null,null,null,0,null,null,null,0,null,null,null,0,null,null,null,0,null,null,null,0,null,null,null,0,null,null,null,0,null,null,null,0,null,null,null,0,null,null,null,0,null,null,null,0,null,null,null,0,null,null,null,0]
[null,null,null,0,null,null,null,0,null,null,null,0,null,null,null,0,null,null,null,0,null,null,null,0,null,null,null,0,null,null,null,0,null,null,null,0,null,null,null,0,null,null,null,0,null,null,null,0,null,null,null,0,null,null,null,0,null,null,null,0]
[null,null,null,0,null,null,null,0,null,null,null,0,null,null,null,0,null,null,null,0,null,null,null,0,null,null,null,0,null,null,null,0,null,null,null,0,null,null,null,0,null,null,null,0,null,null,null,0,null,null,null,0,null,null,null,0,null,null,null,0]
[null,null,null,0,null,null,null,0,null,null,null,0,null,null,null,0,null,null,null,0,null,null,null,0,null,null,null,0,null,null,null,0,null,null,null,0,null,null,null,0,null,null,null,0,null,null,null,0,null,null,null,0,null,null,null,0,null,null,null,0]
[null,null,null,0,null,null,null,0,null,null,null,0,null,null,null,0,null,null,null,0,null,null,null,0,null,null,null,0,null,null,null,0,null,null,null,0,null,null,null,0,null,null,null,0,null,null,null,0,null,null,null,0,null,null,null,0,null,null,null,0]
[null,null,null,0,null,null,null,0,null,null,null,0,null,null,null,0,null,null,null,0,null,null,null,0,null,null,null,0,null,null,null,0,null,null,null,0,null,null,null,0,null,null,null,0,null,null,null,0,null,null,null,0,null,null,null,0,null,null,null,0]
[null,null,null,0,null,null,null,0,null,null,null,0,null,null,null,0,null,null,null,0,null,null,null,0,null,null,null,0,null,null,null,0,null,null,null,0,null,null,null,0,null,null,null,0,null,null,null,0,null,null,null,0,null,null,null,0,null,null,null,0]
[null,null,null,0,null,null,null,0,null,null,null,0,null,null,null,0,null,null,null,0,null,null,null,0,null,null,null,0,null,null,null,0,null,null,null,0,null,null,null,0,null,null,null,0,null,null,null,0,null,null,null,0,null,null,null,0,null,null,null,0]
[null,null,null,0,null,null,null,0,null,null,null,0,null,null,null,0,null,null,null,0,null,null,null,0,null,null,null,0,null,null,null,0,null,null,null,0,null,null,null,0,null,null,null,0,null,null,null,0,null,null,null,0,null,null,null,0,null,null,null,0]
[null,null,null,0,null,null,null,0,null,null,null,0,null,null,null,0,null,null,null,0,null,null,null,0,null,null,null,0,null,null,null,0,null,null,null,0,null,null,null,0,null,null,null,0,null,null,null,0,null,null,null,0,null,null,null,0,null,null,null,0]
[null,null,null,0,null,null,null,0,null,null,null,0,null,null,null,0,null,null,null,0,null,null,null,0,null,null,null,0,null,null,null,0,null,null,null,0,null,null,null,0,null,null,null,0,null,null,null,0,null,null,null,0,null,null,null,0,null,null,null,0]
[null,null,null,0,null,null,null,0,null,null,null,0,null,null,null,0,null,null,null,0,null,null,null,0,null,null,null,0,null,null,null,0,null,null,null,0,null,null,null,0,null,null,null,0,null,null,null,0,null,null,null,0,null,null,null,0,null,null,null,0]
[null,null,null,0,null,null,null,0,null,null,null,0,null,null,null,0,null,null,null,0,null,null,null,0,null,null,null,0,null,null,null,0,null,null,null,0,null,null,null,0,null,null,null,0,null,null,null,0,null,null,null,0,null,null,null,0,null,null,null,0]
[null,null,null,0,null,null,null,0,null,null,null,0,null,null,null,0,null,null,null,0,null,null,null,0,null,null,null,0,null,null,null,0,null,null,null,0,null,null,null,0,null,null,null,0,null,null,null,0,null,null,null,0,null,null,null,0,null,null,null,0]
[null,null,null,0,null,null,null,0,null,null,null,0,null,null,null,0,null,null,null,0,null,null,null,0,null,null,null,0,null,null,null,0,null,null,null,0,null,null,null,0,null,null,null,0,null,null,null,0,null,null,null,0,null,null,null,0,null,null,null,0]
[null,null,null,0,null,null,null,0,null,null,null,0,null,null,null,0,null,null,null,0,null,null,null,0,null,null,null,0,null,null,null,0,null,null,null,0,null,null,null,0,null,null,null,0,null,null,null,0,null,null,null,0,null,null,null,0,null,null,null,0]
[null,null,null,0,null,null,null,0,null,null,null,0,null,null,null,0,null,null,null,0,null,null,null,0,null,null,null,0,null,null,null,0,null,null,null,0,null,null,null,0,null,null,null,0,null,null,null,0,null,null,null,0,null,null,null,0,null,null,null,0]
[null,null,null,0,null,null,null,0,null,null,null,0,null,null,null,0,null,null,null,0,null,null,null,0,null,null,null,0,null,null,null,0,null,null,null,0,null,null,null,0,null,null,null,0,null,null,null,0,null,null,null,0,null,null,null,0,null,null,null,0]
[null,null,null,0,null,null,null,0,null,null,null,0,null,null,null,0,null,null,null,0,null,null,null,0,null,null,null,0,null,null,null,0,null,null,null,0,null,null,null,0,null,null,null,0,null,null,null,0,null,null,null,0,null,null,null,0,null,null,null,0]
[null,null,null,0,null,null,null,0,null,null,null,0,null,null,null,0,null,null,null,0,null,null,null,0,null,null,null,0,null,null,null,0,null,null,null,0,null,null,null,0,null,null,null,0,null,null,null,0,null,null,null,0,null,null,null,0,null,null,null,0]
[null,null,null,0,null,null,null,0,null,null,null,0,null,null,null,0,null,null,null,0,null,null,null,0,null,null,null,0,null,null,null,0,null,null,null,0,null,null,null,0,null,null,null,0,null,null,null,0,null,null,null,0,null,null,null,0,null,null,null,0]
[null,null,null,0,null,null,null,0,null,null,null,0,null,null,null,0,null,null,null,0,null,null,null,0,null,null,null,0,null,null,null,0,null,null,null,0,null,null,null,0,null,null,null,0,null,null,null,0,null,null,null,0,null,null,null,0,null,null,null,0]
[null,null,null,0,null,null,null,0,null,null,null,0,null,null,null,0,null,null,null,0,null,null,null,0,null,null,null,0,null,null,null,0,null,null,null,0,null,null,null,0,null,null,null,0,null,null,null,0,null,null,null,0,null,null,null,0,null,null,null,0]
[null,null,null,0,null,null,null,0,null,null,null,0,null,null,null,0,null,null,null,0,null,null,null,0,null,null,null,0,null,null,null,0,null,null,null,0,null,null,null,0,null,null,null,0,null,null,null,0,null,null,null,0,null,null,null,0,null,null,null,0]
[null,null,null,0,null,null,null,0,null,null,null,0,null,null,null,0,null,null,null,0,null,null,null,0,null,null,null,0,null,null,null,0,null,null,null,0,null,null,null,0,null,null,null,0,null,null,null,0,null,null,null,0,null,null,null,0,null,null,null,0]
[null,null,null,0,null,null,null,0,null,null,null,0,null,null,null,0,null,null,null,0,null,null,null,0,null,null,null,0,null,null,null,0,null,null,null,0,null,null,null,0,null,null,null,0,null,null,null,0,null,null,null,0,null,null,null,0,null,null,null,0]
[null,null,null,0,null,null,null,0,null,null,null,0,null,null,null,0,null,null,null,0,null,null,null,0,null,null,null,0,null,null,null,0,null,null,null,0,null,null,null,0,null,null,null,0,null,null,null,0,null,null,null,0,null,null,null,0,null,null,null,0]
[null,null,null,0,null,null,null,0,null,null,null,0,null,null,null,0,null,null,null,0,null,null,null,0,null,null,null,0,null,null,null,0,null,null,null,0,null,null,null,0,null,null,null,0,null,null,null,0,null,null,null,0,null,null,null,0,null,null,null,0]
[null,null,null,0,null,null,null,0,null,null,null,0,null,null,null,0,null,null,null,0,null,null,null,0,null,null,null,0,null,null,null,0,null,null,null,0,null,null,null,0,null,null,null,0,null,null,null,0,null,null,null,0,null,null,null,0,null,null,null,0]
[null,null,null,0,null,null,null,0,null,null,null,0,null,null,null,0,null,null,null,0,null,null,null,0,null,null,null,0,null,null,null,0,null,null,null,0,null,null,null,0,null,null,null,0,null,null,null,0,null,null,null,0,null,null,null,0,null,null,null,0]
[null,null,null,0,null,null,null,0,null,null,null,0,null,null,null,0,null,null,null,0,null,null,null,0,null,null,null,0,null,null,null,0,null,null,null,0,null,null,null,0,null,null,null,0,null,null,null,0,null,null,null,0,null,null,null,0,null,null,null,0]
[null,null,null,0,null,null,null,0,null,null,null,0,null,null,null,0,null,null,null,0,null,null,null,0,null,null,null,0,null,null,null,0,null,null,null,0,null,null,null,0,null,null,null,0,null,null,null,0,null,null,null,0,null,null,null,0,null,null,null,0]
[null,null,null,0,null,null,null,0,null,null,null,0,null,null,null,0,null,null,null,0,null,null,null,0,null,null,null,0,null,null,null,0,null,null,null,0,null,null,null,0,null,null,null,0,null,null,null,0,null,null,null,0,null,null,null,0,null,null,null,0]
[null,null,null,{"$f":"IF(B1223-C1223<>0,D1222+B1223-C1223,0)","v":0},null,null,null,{"$f":"IF(F1223-G1223<>0,H1222+F1223-G1223,0)","v":0},null,null,null,{"$f":"IF(J1223-K1223<>0,L1222+J1223-K1223,0)","v":0},null,null,null,{"$f":"IF(N1223-O1223<>0,P1222+N1223-O1223,0)","v":0},null,null,null,{"$f":"IF(R1223-S1223<>0,T1222+R1223-S1223,0)","v":0},null,null,null,{"$f":"IF(V1223-W1223<>0,X1222+V1223-W1223,0)","v":0},null,null,null,{"$f":"IF(Z1223-AA1223<>0,AB1222+Z1223-AA1223,0)","v":0},null,null,null,{"$f":"IF(AD1223-AE1223<>0,AF1222+AD1223-AE1223,0)","v":0},null,null,null,{"$f":"IF(AH1223-AI1223<>0,AJ1222+AH1223-AI1223,0)","v":0},null,null,null,{"$f":"IF(AL1223-AM1223<>0,AN1222+AL1223-AM1223,0)","v":0},null,null,null,{"$f":"IF(AP1223-AQ1223<>0,AR1222+AP1223-AQ1223,0)","v":0},null,null,null,{"$f":"IF(AT1223-AU1223<>0,AV1222+AT1223-AU1223,0)","v":0},null,null,null,{"$f":"IF(AX1223-AY1223<>0,AZ1222+AX1223-AY1223,0)","v":0},null,null,null,{"$f":"IF(BB1223-BC1223<>0,BD1222+BB1223-BC1223,0)","v":0},null,null,null,{"$f":"IF(BF1223-BG1223<>0,BH1222+BF1223-BG1223,0)","v":0}]
[null,null,null,0,null,null,null,0,null,null,null,0,null,null,null,0,null,null,null,0,null,null,null,0,null,null,null,0,null,null,null,0,null,null,null,0,null,null,null,0,null,null,null,0,null,null,null,0,null,null,null,0,null,null,null,0,null,null,null,0]
[null,null,null,0,null,null,null,0,null,null,null,0,null,null,null,0,null,null,null,0,null,null,null,0,null,null,null,0,null,null,null,0,null,null,null,0,null,null,null,0,null,null,null,0,null,null,null,0,null,null,null,0,null,null,null,0,null,null,null,0]
[null,null,null,0,null,null,null,0,null,null,null,0,null,null,null,0,null,null,null,0,null,null,null,0,null,null,null,0,null,null,null,0,null,null,null,0,null,null,null,0,null,null,null,0,null,null,null,0,null,null,null,0,null,null,null,0,null,null,null,0]
[null,null,null,0,null,null,null,0,null,null,null,0,null,null,null,0,null,null,null,0,null,null,null,0,null,null,null,0,null,null,null,0,null,null,null,0,null,null,null,0,null,null,null,0,null,null,null,0,null,null,null,0,null,null,null,0,null,null,null,0]
[null,null,null,0,null,null,null,0,null,null,null,0,null,null,null,0,null,null,null,0,null,null,null,0,null,null,null,0,null,null,null,0,null,null,null,0,null,null,null,0,null,null,null,0,null,null,null,0,null,null,null,0,null,null,null,0,null,null,null,0]
[null,null,null,0,null,null,null,0,null,null,null,0,null,null,null,0,null,null,null,0,null,null,null,0,null,null,null,0,null,null,null,0,null,null,null,0,null,null,null,0,null,null,null,0,null,null,null,0,null,null,null,0,null,null,null,0,null,null,null,0]
[null,null,null,0,null,null,null,0,null,null,null,0,null,null,null,0,null,null,null,0,null,null,null,0,null,null,null,0,null,null,null,0,null,null,null,0,null,null,null,0,null,null,null,0,null,null,null,0,null,null,null,0,null,null,null,0,null,null,null,0]
[null,null,null,0,null,null,null,0,null,null,null,0,null,null,null,0,null,null,null,0,null,null,null,0,null,null,null,0,null,null,null,0,null,null,null,0,null,null,null,0,null,null,null,0,null,null,null,0,null,null,null,0,null,null,null,0,null,null,null,0]
[null,null,null,0,null,null,null,0,null,null,null,0,null,null,null,0,null,null,null,0,null,null,null,0,null,null,null,0,null,null,null,0,null,null,null,0,null,null,null,0,null,null,null,0,null,null,null,0,null,null,null,0,null,null,null,0,null,null,null,0]
[null,null,null,0,null,null,null,0,null,null,null,0,null,null,null,0,null,null,null,0,null,null,null,0,null,null,null,0,null,null,null,0,null,null,null,0,null,null,null,0,null,null,null,0,null,null,null,0,null,null,null,0,null,null,null,0,null,null,null,0]
[null,null,null,0,null,null,null,0,null,null,null,0,null,null,null,0,null,null,null,0,null,null,null,0,null,null,null,0,null,null,null,0,null,null,null,0,null,null,null,0,null,null,null,0,null,null,null,0,null,null,null,0,null,null,null,0,null,null,null,0]
[null,null,null,0,null,null,null,0,null,null,null,0,null,null,null,0,null,null,null,0,null,null,null,0,null,null,null,0,null,null,null,0,null,null,null,0,null,null,null,0,null,null,null,0,null,null,null,0,null,null,null,0,null,null,null,0,null,null,null,0]
[null,null,null,0,null,null,null,0,null,null,null,0,null,null,null,0,null,null,null,0,null,null,null,0,null,null,null,0,null,null,null,0,null,null,null,0,null,null,null,0,null,null,null,0,null,null,null,0,null,null,null,0,null,null,null,0,null,null,null,0]
[null,null,null,0,null,null,null,0,null,null,null,0,null,null,null,0,null,null,null,0,null,null,null,0,null,null,null,0,null,null,null,0,null,null,null,0,null,null,null,0,null,null,null,0,null,null,null,0,null,null,null,0,null,null,null,0,null,null,null,0]
[null,null,null,0,null,null,null,0,null,null,null,0,null,null,null,0,null,null,null,0,null,null,null,0,null,null,null,0,null,null,null,0,null,null,null,0,null,null,null,0,null,null,null,0,null,null,null,0,null,null,null,0,null,null,null,0,null,null,null,0]
[null,null,null,0,null,null,null,0,null,null,null,0,null,null,null,0,null,null,null,0,null,null,null,0,null,null,null,0,null,null,null,0,null,null,null,0,null,null,null,0,null,null,null,0,null,null,null,0,null,null,null,0,null,null,null,0,null,null,null,0]
[null,null,null,0,null,null,null,0,null,null,null,0,null,null,null,0,null,null,null,0,null,null,null,0,null,null,null,0,null,null,null,0,null,null,null,0,null,null,null,0,null,null,null,0,null,null,null,0,null,null,null,0,null,null,null,0,null,null,null,0]
[null,null,null,0,null,null,null,0,null,null,null,0,null,null,null,0,null,null,null,0,null,null,null,0,null,null,null,0,null,null,null,0,null,null,null,0,null,null,null,0,null,null,null,0,null,null,null,0,null,null,null,0,null,null,null,0,null,null,null,0]
[null,null,null,0,null,null,null,0,null,null,null,0,null,null,null,0,null,null,null,0,null,null,null,0,null,null,null,0,null,null,null,0,null,null,null,0,null,null,null,0,null,null,null,0,null,null,null,0,null,null,null,0,null,null,null,0,null,null,null,0]
[null,null,null,0,null,null,null,0,null,null,null,0,null,null,null,0,null,null,null,0,null,null,null,0,null,null,null,0,null,null,null,0,null,null,null,0,null,null,null,0,null,null,null,0,null,null,null,0,null,null,null,0,null,null,null,0,null,null,null,0]
[null,null,null,0,null,null,null,0,null,null,null,0,null,null,null,0,null,null,null,0,null,null,null,0,null,null,null,0,null,null,null,0,null,null,null,0,null,null,null,0,null,null,null,0,null,null,null,0,null,null,null,0,null,null,null,0,null,null,null,0]
[null,null,null,0,null,null,null,0,null,null,null,0,null,null,null,0,null,null,null,0,null,null,null,0,null,null,null,0,null,null,null,0,null,null,null,0,null,null,null,0,null,null,null,0,null,null,null,0,null,null,null,0,null,null,null,0,null,null,null,0]
[null,null,null,0,null,null,null,0,null,null,null,0,null,null,null,0,null,null,null,0,null,null,null,0,null,null,null,0,null,null,null,0,null,null,null,0,null,null,null,0,null,null,null,0,null,null,null,0,null,null,null,0,null,null,null,0,null,null,null,0]
[null,null,null,0,null,null,null,0,null,null,null,0,null,null,null,0,null,null,null,0,null,null,null,0,null,null,null,0,null,null,null,0,null,null,null,0,null,null,null,0,null,null,null,0,null,null,null,0,null,null,null,0,null,null,null,0,null,null,null,0]
[null,null,null,0,null,null,null,0,null,null,null,0,null,null,null,0,null,null,null,0,null,null,null,0,null,null,null,0,null,null,null,0,null,null,null,0,null,null,null,0,null,null,null,0,null,null,null,0,null,null,null,0,null,null,null,0,null,null,null,0]
[null,null,null,0,null,null,null,0,null,null,null,0,null,null,null,0,null,null,null,0,null,null,null,0,null,null,null,0,null,null,null,0,null,null,null,0,null,null,null,0,null,null,null,0,null,null,null,0,null,null,null,0,null,null,null,0,null,null,null,0]
[null,null,null,0,null,null,null,0,null,null,null,0,null,null,null,0,null,null,null,0,null,null,null,0,null,null,null,0,null,null,null,0,null,null,null,0,null,null,null,0,null,null,null,0,null,null,null,0,null,null,null,0,null,null,null,0,null,null,null,0]
[null,null,null,0,null,null,null,0,null,null,null,0,null,null,null,0,null,null,null,0,null,null,null,0,null,null,null,0,null,null,null,0,null,null,null,0,null,null,null,0,null,null,null,0,null,null,null,0,null,null,null,0,null,null,null,0,null,null,null,0]
[null,null,null,0,null,null,null,0,null,null,null,0,null,null,null,0,null,null,null,0,null,null,null,0,null,null,null,0,null,null,null,0,null,null,null,0,null,null,null,0,null,null,null,0,null,null,null,0,null,null,null,0,null,null,null,0,null,null,null,0]
[null,null,null,0,null,null,null,0,null,null,null,0,null,null,null,0,null,null,null,0,null,null,null,0,null,null,null,0,null,null,null,0,null,null,null,0,null,null,null,0,null,null,null,0,null,null,null,0,null,null,null,0,null,null,null,0,null,null,null,0]
[null,null,null,0,null,null,null,0,null,null,null,0,null,null,null,0,null,null,null,0,null,null,null,0,null,null,null,0,null,null,null,0,null,null,null,0,null,null,null,0,null,null,null,0,null,null,null,0,null,null,null,0,null,null,null,0,null,null,null,0]
[null,null,null,0,null,null,null,0,null,null,null,0,null,null,null,0,null,null,null,0,null,null,null,0,null,null,null,0,null,null,null,0,null,null,null,0,null,null,null,0,null,null,null,0,null,null,null,0,null,null,null,0,null,null,null,0,null,null,null,0]
[null,null,null,0,null,null,null,0,null,null,null,0,null,null,null,0,null,null,null,0,null,null,null,0,null,null,null,0,null,null,null,0,null,null,null,0,null,null,null,0,null,null,null,0,null,null,null,0,null,null,null,0,null,null,null,0,null,null,null,0]
[null,null,null,0,null,null,null,0,null,null,null,0,null,null,null,0,null,null,null,0,null,null,null,0,null,null,null,0,null,null,null,0,null,null,null,0,null,null,null,0,null,null,null,0,null,null,null,0,null,null,null,0,null,null,null,0,null,null,null,0]
[null,null,null,0,null,null,null,0,null,null,null,0,null,null,null,0,null,null,null,0,null,null,null,0,null,null,null,0,null,null,null,0,null,null,null,0,null,null,null,0,null,null,null,0,null,null,null,0,null,null,null,0,null,null,null,0,null,null,null,0]
[null,null,null,0,null,null,null,0,null,null,null,0,null,null,null,0,null,null,null,0,null,null,null,0,null,null,null,0,null,null,null,0,null,null,null,0,null,null,null,0,null,null,null,0,null,null,null,0,null,null,null,0,null,null,null,0,null,null,null,0]
[null,null,null,0,null,null,null,0,null,null,null,0,null,null,null,0,null,null,null,0,null,null,null,0,null,null,null,0,null,null,null,0,null,null,null,0,null,null,null,0,null,null,null,0,null,null,null,0,null,null,null,0,null,null,null,0,null,null,null,0]
[null,null,null,0,null,null,null,0,null,null,null,0,null,null,null,0,null,null,null,0,null,null,null,0,null,null,null,0,null,null,null,0,null,null,null,0,null,null,null,0,null,null,null,0,null,null,null,0,null,null,null,0,null,null,null,0,null,null,null,0]
[null,null,null,0,null,null,null,0,null,null,null,0,null,null,null,0,null,null,null,0,null,null,null,0,null,null,null,0,null,null,null,0,null,null,null,0,null,null,null,0,null,null,null,0,null,null,null,0,null,null,null,0,null,null,null,0,null,null,null,0]
[null,null,null,0,null,null,null,0,null,null,null,0,null,null,null,0,null,null,null,0,null,null,null,0,null,null,null,0,null,null,null,0,null,null,null,0,null,null,null,0,null,null,null,0,null,null,null,0,null,null,null,0,null,null,null,0,null,null,null,0]
[null,null,null,0,null,null,null,0,null,null,null,0,null,null,null,0,null,null,null,0,null,null,null,0,null,null,null,0,null,null,null,0,null,null,null,0,null,null,null,0,null,null,null,0,null,null,null,0,null,null,null,0,null,null,null,0,null,null,null,0]
[null,null,null,0,null,null,null,0,null,null,null,0,null,null,null,0,null,null,null,0,null,null,null,0,null,null,null,0,null,null,null,0,null,null,null,0,null,null,null,0,null,null,null,0,null,null,null,0,null,null,null,0,null,null,null,0,null,null,null,0]
[null,null,null,0,null,null,null,0,null,null,null,0,null,null,null,0,null,null,null,0,null,null,null,0,null,null,null,0,null,null,null,0,null,null,null,0,null,null,null,0,null,null,null,0,null,null,null,0,null,null,null,0,null,null,null,0,null,null,null,0]
[null,null,null,0,null,null,null,0,null,null,null,0,null,null,null,0,null,null,null,0,null,null,null,0,null,null,null,0,null,null,null,0,null,null,null,0,null,null,null,0,null,null,null,0,null,null,null,0,null,null,null,0,null,null,null,0,null,null,null,0]
[null,null,null,0,null,null,null,0,null,null,null,0,null,null,null,0,null,null,null,0,null,null,null,0,null,null,null,0,null,null,null,0,null,null,null,0,null,null,null,0,null,null,null,0,null,null,null,0,null,null,null,0,null,null,null,0,null,null,null,0]
[null,null,null,0,null,null,null,0,null,null,null,0,null,null,null,0,null,null,null,0,null,null,null,0,null,null,null,0,null,null,null,0,null,null,null,0,null,null,null,0,null,null,null,0,null,null,null,0,null,null,null,0,null,null,null,0,null,null,null,0]
[null,null,null,0,null,null,null,0,null,null,null,0,null,null,null,0,null,null,null,0,null,null,null,0,null,null,null,0,null,null,null,0,null,null,null,0,null,null,null,0,null,null,null,0,null,null,null,0,null,null,null,0,null,null,null,0,null,null,null,0]
[null,null,null,0,null,null,null,0,null,null,null,0,null,null,null,0,null,null,null,0,null,null,null,0,null,null,null,0,null,null,null,0,null,null,null,0,null,null,null,0,null,null,null,0,null,null,null,0,null,null,null,0,null,null,null,0,null,null,null,0]
[null,null,null,0,null,null,null,0,null,null,null,0,null,null,null,0,null,null,null,0,null,null,null,0,null,null,null,0,null,null,null,0,null,null,null,0,null,null,null,0,null,null,null,0,null,null,null,0,null,null,null,0,null,null,null,0,null,null,null,0]
[null,null,null,0,null,null,null,0,null,null,null,0,null,null,null,0,null,null,null,0,null,null,null,0,null,null,null,0,null,null,null,0,null,null,null,0,null,null,null,0,null,null,null,0,null,null,null,0,null,null,null,0,null,null,null,0,null,null,null,0]
[null,null,null,0,null,null,null,0,null,null,null,0,null,null,null,0,null,null,null,0,null,null,null,0,null,null,null,0,null,null,null,0,null,null,null,0,null,null,null,0,null,null,null,0,null,null,null,0,null,null,null,0,null,null,null,0,null,null,null,0]
[null,null,null,0,null,null,null,0,null,null,null,0,null,null,null,0,null,null,null,0,null,null,null,0,null,null,null,0,null,null,null,0,null,null,null,0,null,null,null,0,null,null,null,0,null,null,null,0,null,null,null,0,null,null,null,0,null,null,null,0]
[null,null,null,0,null,null,null,0,null,null,null,0,null,null,null,0,null,null,null,0,null,null,null,0,null,null,null,0,null,null,null,0,null,null,null,0,null,null,null,0,null,null,null,0,null,null,null,0,null,null,null,0,null,null,null,0,null,null,null,0]
[null,null,null,0,null,null,null,0,null,null,null,0,null,null,null,0,null,null,null,0,null,null,null,0,null,null,null,0,null,null,null,0,null,null,null,0,null,null,null,0,null,null,null,0,null,null,null,0,null,null,null,0,null,null,null,0,null,null,null,0]
[null,null,null,0,null,null,null,0,null,null,null,0,null,null,null,0,null,null,null,0,null,null,null,0,null,null,null,0,null,null,null,0,null,null,null,0,null,null,null,0,null,null,null,0,null,null,null,0,null,null,null,0,null,null,null,0,null,null,null,0]
[null,null,null,0,null,null,null,0,null,null,null,0,null,null,null,0,null,null,null,0,null,null,null,0,null,null,null,0,null,null,null,0,null,null,null,0,null,null,null,0,null,null,null,0,null,null,null,0,null,null,null,0,null,null,null,0,null,null,null,0]
[null,null,null,0,null,null,null,0,null,null,null,0,null,null,null,0,null,null,null,0,null,null,null,0,null,null,null,0,null,null,null,0,null,null,null,0,null,null,null,0,null,null,null,0,null,null,null,0,null,null,null,0,null,null,null,0,null,null,null,0]
[null,null,null,0,null,null,null,0,null,null,null,0,null,null,null,0,null,null,null,0,null,null,null,0,null,null,null,0,null,null,null,0,null,null,null,0,null,null,null,0,null,null,null,0,null,null,null,0,null,null,null,0,null,null,null,0,null,null,null,0]
[null,null,null,0,null,null,null,0,null,null,null,0,null,null,null,0,null,null,null,0,null,null,null,0,null,null,null,0,null,null,null,0,null,null,null,0,null,null,null,0,null,null,null,0,null,null,null,0,null,null,null,0,null,null,null,0,null,null,null,0]
[null,null,null,0,null,null,null,0,null,null,null,0,null,null,null,0,null,null,null,0,null,null,null,0,null,null,null,0,null,null,null,0,null,null,null,0,null,null,null,0,null,null,null,0,null,null,null,0,null,null,null,0,null,null,null,0,null,null,null,0]
[null,null,null,0,null,null,null,0,null,null,null,0,null,null,null,0,null,null,null,0,null,null,null,0,null,null,null,0,null,null,null,0,null,null,null,0,null,null,null,0,null,null,null,0,null,null,null,0,null,null,null,0,null,null,null,0,null,null,null,0]
[null,null,null,0,null,null,null,0,null,null,null,0,null,null,null,0,null,null,null,0,null,null,null,0,null,null,null,0,null,null,null,0,null,null,null,0,null,null,null,0,null,null,null,0,null,null,null,0,null,null,null,0,null,null,null,0,null,null,null,0]
[null,null,null,0,null,null,null,0,null,null,null,0,null,null,null,0,null,null,null,0,null,null,null,0,null,null,null,0,null,null,null,0,null,null,null,0,null,null,null,0,null,null,null,0,null,null,null,0,null,null,null,0,null,null,null,0,null,null,null,0]
[null,null,null,0,null,null,null,0,null,null,null,0,null,null,null,0,null,null,null,0,null,null,null,0,null,null,null,0,null,null,null,0,null,null,null,0,null,null,null,0,null,null,null,0,null,null,null,0,null,null,null,0,null,null,null,0,null,null,null,0]
[null,null,null,0,null,null,null,0,null,null,null,0,null,null,null,0,null,null,null,0,null,null,null,0,null,null,null,0,null,null,null,0,null,null,null,0,null,null,null,0,null,null,null,0,null,null,null,0,null,null,null,0,null,null,null,0,null,null,null,0]
[null,null,null,0,null,null,null,0,null,null,null,0,null,null,null,0,null,null,null,0,null,null,null,0,null,null,null,0,null,null,null,0,null,null,null,0,null,null,null,0,null,null,null,0,null,null,null,0,null,null,null,0,null,null,null,0,null,null,null,0]
[null,null,null,0,null,null,null,0,null,null,null,0,null,null,null,0,null,null,null,0,null,null,null,0,null,null,null,0,null,null,null,0,null,null,null,0,null,null,null,0,null,null,null,0,null,null,null,0,null,null,null,0,null,null,null,0,null,null,null,0]
[null,null,null,0,null,null,null,0,null,null,null,0,null,null,null,0,null,null,null,0,null,null,null,0,null,null,null,0,null,null,null,0,null,null,null,0,null,null,null,0,null,null,null,0,null,null,null,0,null,null,null,0,null,null,null,0,null,null,null,0]
[null,null,null,0,null,null,null,0,null,null,null,0,null,null,null,0,null,null,null,0,null,null,null,0,null,null,null,0,null,null,null,0,null,null,null,0,null,null,null,0,null,null,null,0,null,null,null,0,null,null,null,0,null,null,null,0,null,null,null,0]
[null,null,null,{"$f":"IF(B1415-C1415<>0,D1414+B1415-C1415,0)","v":0},null,null,null,{"$f":"IF(F1415-G1415<>0,H1414+F1415-G1415,0)","v":0},null,null,null,{"$f":"IF(J1415-K1415<>0,L1414+J1415-K1415,0)","v":0},null,null,null,{"$f":"IF(N1415-O1415<>0,P1414+N1415-O1415,0)","v":0},null,null,null,{"$f":"IF(R1415-S1415<>0,T1414+R1415-S1415,0)","v":0},null,null,null,{"$f":"IF(V1415-W1415<>0,X1414+V1415-W1415,0)","v":0},null,null,null,{"$f":"IF(Z1415-AA1415<>0,AB1414+Z1415-AA1415,0)","v":0},null,null,null,{"$f":"IF(AD1415-AE1415<>0,AF1414+AD1415-AE1415,0)","v":0},null,null,null,{"$f":"IF(AH1415-AI1415<>0,AJ1414+AH1415-AI1415,0)","v":0},null,null,null,{"$f":"IF(AL1415-AM1415<>0,AN1414+AL1415-AM1415,0)","v":0},null,null,null,{"$f":"IF(AP1415-AQ1415<>0,AR1414+AP1415-AQ1415,0)","v":0},null,null,null,{"$f":"IF(AT1415-AU1415<>0,AV1414+AT1415-AU1415,0)","v":0},null,null,null,{"$f":"IF(AX1415-AY1415<>0,AZ1414+AX1415-AY1415,0)","v":0},null,null,null,{"$f":"IF(BB1415-BC1415<>0,BD1414+BB1415-BC1415,0)","v":0},null,null,null,{"$f":"IF(BF1415-BG1415<>0,BH1414+BF1415-BG1415,0)","v":0}]
[null,null,null,0,null,null,null,0,null,null,null,0,null,null,null,0,null,null,null,0,null,null,null,0,null,null,null,0,null,null,null,0,null,null,null,0,null,null,null,0,null,null,null,0,null,null,null,0,null,null,null,0,null,null,null,0,null,null,null,0]
[null,null,null,0,null,null,null,0,null,null,null,0,null,null,null,0,null,null,null,0,null,null,null,0,null,null,null,0,null,null,null,0,null,null,null,0,null,null,null,0,null,null,null,0,null,null,null,0,null,null,null,0,null,null,null,0,null,null,null,0]
[null,null,null,0,null,null,null,0,null,null,null,0,null,null,null,0,null,null,null,0,null,null,null,0,null,null,null,0,null,null,null,0,null,null,null,0,null,null,null,0,null,null,null,0,null,null,null,0,null,null,null,0,null,null,null,0,null,null,null,0]
[null,null,null,0,null,null,null,0,null,null,null,0,null,null,null,0,null,null,null,0,null,null,null,0,null,null,null,0,null,null,null,0,null,null,null,0,null,null,null,0,null,null,null,0,null,null,null,0,null,null,null,0,null,null,null,0,null,null,null,0]
[null,null,null,0,null,null,null,0,null,null,null,0,null,null,null,0,null,null,null,0,null,null,null,0,null,null,null,0,null,null,null,0,null,null,null,0,null,null,null,0,null,null,null,0,null,null,null,0,null,null,null,0,null,null,null,0,null,null,null,0]
[null,null,null,0,null,null,null,0,null,null,null,0,null,null,null,0,null,null,null,0,null,null,null,0,null,null,null,0,null,null,null,0,null,null,null,0,null,null,null,0,null,null,null,0,null,null,null,0,null,null,null,0,null,null,null,0,null,null,null,0]
[null,null,null,0,null,null,null,0,null,null,null,0,null,null,null,0,null,null,null,0,null,null,null,0,null,null,null,0,null,null,null,0,null,null,null,0,null,null,null,0,null,null,null,0,null,null,null,0,null,null,null,0,null,null,null,0,null,null,null,0]
[null,null,null,0,null,null,null,0,null,null,null,0,null,null,null,0,null,null,null,0,null,null,null,0,null,null,null,0,null,null,null,0,null,null,null,0,null,null,null,0,null,null,null,0,null,null,null,0,null,null,null,0,null,null,null,0,null,null,null,0]
[null,null,null,0,null,null,null,0,null,null,null,0,null,null,null,0,null,null,null,0,null,null,null,0,null,null,null,0,null,null,null,0,null,null,null,0,null,null,null,0,null,null,null,0,null,null,null,0,null,null,null,0,null,null,null,0,null,null,null,0]
[null,null,null,0,null,null,null,0,null,null,null,0,null,null,null,0,null,null,null,0,null,null,null,0,null,null,null,0,null,null,null,0,null,null,null,0,null,null,null,0,null,null,null,0,null,null,null,0,null,null,null,0,null,null,null,0,null,null,null,0]
[null,null,null,0,null,null,null,0,null,null,null,0,null,null,null,0,null,null,null,0,null,null,null,0,null,null,null,0,null,null,null,0,null,null,null,0,null,null,null,0,null,null,null,0,null,null,null,0,null,null,null,0,null,null,null,0,null,null,null,0]
[null,null,null,0,null,null,null,0,null,null,null,0,null,null,null,0,null,null,null,0,null,null,null,0,null,null,null,0,null,null,null,0,null,null,null,0,null,null,null,0,null,null,null,0,null,null,null,0,null,null,null,0,null,null,null,0,null,null,null,0]
[null,null,null,0,null,null,null,0,null,null,null,0,null,null,null,0,null,null,null,0,null,null,null,0,null,null,null,0,null,null,null,0,null,null,null,0,null,null,null,0,null,null,null,0,null,null,null,0,null,null,null,0,null,null,null,0,null,null,null,0]
[null,null,null,0,null,null,null,0,null,null,null,0,null,null,null,0,null,null,null,0,null,null,null,0,null,null,null,0,null,null,null,0,null,null,null,0,null,null,null,0,null,null,null,0,null,null,null,0,null,null,null,0,null,null,null,0,null,null,null,0]
[null,null,null,0,null,null,null,0,null,null,null,0,null,null,null,0,null,null,null,0,null,null,null,0,null,null,null,0,null,null,null,0,null,null,null,0,null,null,null,0,null,null,null,0,null,null,null,0,null,null,null,0,null,null,null,0,null,null,null,0]
[null,null,null,0,null,null,null,0,null,null,null,0,null,null,null,0,null,null,null,0,null,null,null,0,null,null,null,0,null,null,null,0,null,null,null,0,null,null,null,0,null,null,null,0,null,null,null,0,null,null,null,0,null,null,null,0,null,null,null,0]
[null,null,null,0,null,null,null,0,null,null,null,0,null,null,null,0,null,null,null,0,null,null,null,0,null,null,null,0,null,null,null,0,null,null,null,0,null,null,null,0,null,null,null,0,null,null,null,0,null,null,null,0,null,null,null,0,null,null,null,0]
[null,null,null,0,null,null,null,0,null,null,null,0,null,null,null,0,null,null,null,0,null,null,null,0,null,null,null,0,null,null,null,0,null,null,null,0,null,null,null,0,null,null,null,0,null,null,null,0,null,null,null,0,null,null,null,0,null,null,null,0]
[null,null,null,0,null,null,null,0,null,null,null,0,null,null,null,0,null,null,null,0,null,null,null,0,null,null,null,0,null,null,null,0,null,null,null,0,null,null,null,0,null,null,null,0,null,null,null,0,null,null,null,0,null,null,null,0,null,null,null,0]
[null,null,null,0,null,null,null,0,null,null,null,0,null,null,null,0,null,null,null,0,null,null,null,0,null,null,null,0,null,null,null,0,null,null,null,0,null,null,null,0,null,null,null,0,null,null,null,0,null,null,null,0,null,null,null,0,null,null,null,0]
[null,null,null,0,null,null,null,0,null,null,null,0,null,null,null,0,null,null,null,0,null,null,null,0,null,null,null,0,null,null,null,0,null,null,null,0,null,null,null,0,null,null,null,0,null,null,null,0,null,null,null,0,null,null,null,0,null,null,null,0]
[null,null,null,0,null,null,null,0,null,null,null,0,null,null,null,0,null,null,null,0,null,null,null,0,null,null,null,0,null,null,null,0,null,null,null,0,null,null,null,0,null,null,null,0,null,null,null,0,null,null,null,0,null,null,null,0,null,null,null,0]
[null,null,null,0,null,null,null,0,null,null,null,0,null,null,null,0,null,null,null,0,null,null,null,0,null,null,null,0,null,null,null,0,null,null,null,0,null,null,null,0,null,null,null,0,null,null,null,0,null,null,null,0,null,null,null,0,null,null,null,0]
[null,null,null,0,null,null,null,0,null,null,null,0,null,null,null,0,null,null,null,0,null,null,null,0,null,null,null,0,null,null,null,0,null,null,null,0,null,null,null,0,null,null,null,0,null,null,null,0,null,null,null,0,null,null,null,0,null,null,null,0]
[null,null,null,0,null,null,null,0,null,null,null,0,null,null,null,0,null,null,null,0,null,null,null,0,null,null,null,0,null,null,null,0,null,null,null,0,null,null,null,0,null,null,null,0,null,null,null,0,null,null,null,0,null,null,null,0,null,null,null,0]
[null,null,null,0,null,null,null,0,null,null,null,0,null,null,null,0,null,null,null,0,null,null,null,0,null,null,null,0,null,null,null,0,null,null,null,0,null,null,null,0,null,null,null,0,null,null,null,0,null,null,null,0,null,null,null,0,null,null,null,0]
[null,null,null,0,null,null,null,0,null,null,null,0,null,null,null,0,null,null,null,0,null,null,null,0,null,null,null,0,null,null,null,0,null,null,null,0,null,null,null,0,null,null,null,0,null,null,null,0,null,null,null,0,null,null,null,0,null,null,null,0]
[null,null,null,0,null,null,null,0,null,null,null,0,null,null,null,0,null,null,null,0,null,null,null,0,null,null,null,0,null,null,null,0,null,null,null,0,null,null,null,0,null,null,null,0,null,null,null,0,null,null,null,0,null,null,null,0,null,null,null,0]
[null,null,null,0,null,null,null,0,null,null,null,0,null,null,null,0,null,null,null,0,null,null,null,0,null,null,null,0,null,null,null,0,null,null,null,0,null,null,null,0,null,null,null,0,null,null,null,0,null,null,null,0,null,null,null,0,null,null,null,0]
[null,null,null,0,null,null,null,0,null,null,null,0,null,null,null,0,null,null,null,0,null,null,null,0,null,null,null,0,null,null,null,0,null,null,null,0,null,null,null,0,null,null,null,0,null,null,null,0,null,null,null,0,null,null,null,0,null,null,null,0]
[null,null,null,0,null,null,null,0,null,null,null,0,null,null,null,0,null,null,null,0,null,null,null,0,null,null,null,0,null,null,null,0,null,null,null,0,null,null,null,0,null,null,null,0,null,null,null,0,null,null,null,0,null,null,null,0,null,null,null,0]
[null,null,null,0,null,null,null,0,null,null,null,0,null,null,null,0,null,null,null,0,null,null,null,0,null,null,null,0,null,null,null,0,null,null,null,0,null,null,null,0,null,null,null,0,null,null,null,0,null,null,null,0,null,null,null,0,null,null,null,0]
[null,null,null,0,null,null,null,0,null,null,null,0,null,null,null,0,null,null,null,0,null,null,null,0,null,null,null,0,null,null,null,0,null,null,null,0,null,null,null,0,null,null,null,0,null,null,null,0,null,null,null,0,null,null,null,0,null,null,null,0]
[null,null,null,0,null,null,null,0,null,null,null,0,null,null,null,0,null,null,null,0,null,null,null,0,null,null,null,0,null,null,null,0,null,null,null,0,null,null,null,0,null,null,null,0,null,null,null,0,null,null,null,0,null,null,null,0,null,null,null,0]
[null,null,null,0,null,null,null,0,null,null,null,0,null,null,null,0,null,null,null,0,null,null,null,0,null,null,null,0,null,null,null,0,null,null,null,0,null,null,null,0,null,null,null,0,null,null,null,0,null,null,null,0,null,null,null,0,null,null,null,0]
[null,null,null,0,null,null,null,0,null,null,null,0,null,null,null,0,null,null,null,0,null,null,null,0,null,null,null,0,null,null,null,0,null,null,null,0,null,null,null,0,null,null,null,0,null,null,null,0,null,null,null,0,null,null,null,0,null,null,null,0]
[null,null,null,0,null,null,null,0,null,null,null,0,null,null,null,0,null,null,null,0,null,null,null,0,null,null,null,0,null,null,null,0,null,null,null,0,null,null,null,0,null,null,null,0,null,null,null,0,null,null,null,0,null,null,null,0,null,null,null,0]
[null,null,null,0,null,null,null,0,null,null,null,0,null,null,null,0,null,null,null,0,null,null,null,0,null,null,null,0,null,null,null,0,null,null,null,0,null,null,null,0,null,null,null,0,null,null,null,0,null,null,null,0,null,null,null,0,null,null,null,0]
[null,null,null,0,null,null,null,0,null,null,null,0,null,null,null,0,null,null,null,0,null,null,null,0,null,null,null,0,null,null,null,0,null,null,null,0,null,null,null,0,null,null,null,0,null,null,null,0,null,null,null,0,null,null,null,0,null,null,null,0]
[null,null,null,0,null,null,null,0,null,null,null,0,null,null,null,0,null,null,null,0,null,null,null,0,null,null,null,0,null,null,null,0,null,null,null,0,null,null,null,0,null,null,null,0,null,null,null,0,null,null,null,0,null,null,null,0,null,null,null,0]
[null,null,null,0,null,null,null,0,null,null,null,0,null,null,null,0,null,null,null,0,null,null,null,0,null,null,null,0,null,null,null,0,null,null,null,0,null,null,null,0,null,null,null,0,null,null,null,0,null,null,null,0,null,null,null,0,null,null,null,0]
[null,null,null,0,null,null,null,0,null,null,null,0,null,null,null,0,null,null,null,0,null,null,null,0,null,null,null,0,null,null,null,0,null,null,null,0,null,null,null,0,null,null,null,0,null,null,null,0,null,null,null,0,null,null,null,0,null,null,null,0]
[null,null,null,0,null,null,null,0,null,null,null,0,null,null,null,0,null,null,null,0,null,null,null,0,null,null,null,0,null,null,null,0,null,null,null,0,null,null,null,0,null,null,null,0,null,null,null,0,null,null,null,0,null,null,null,0,null,null,null,0]
[null,null,null,0,null,null,null,0,null,null,null,0,null,null,null,0,null,null,null,0,null,null,null,0,null,null,null,0,null,null,null,0,null,null,null,0,null,null,null,0,null,null,null,0,null,null,null,0,null,null,null,0,null,null,null,0,null,null,null,0]
[null,null,null,0,null,null,null,0,null,null,null,0,null,null,null,0,null,null,null,0,null,null,null,0,null,null,null,0,null,null,null,0,null,null,null,0,null,null,null,0,null,null,null,0,null,null,null,0,null,null,null,0,null,null,null,0,null,null,null,0]
[null,null,null,0,null,null,null,0,null,null,null,0,null,null,null,0,null,null,null,0,null,null,null,0,null,null,null,0,null,null,null,0,null,null,null,0,null,null,null,0,null,null,null,0,null,null,null,0,null,null,null,0,null,null,null,0,null,null,null,0]
[null,null,null,0,null,null,null,0,null,null,null,0,null,null,null,0,null,null,null,0,null,null,null,0,null,null,null,0,null,null,null,0,null,null,null,0,null,null,null,0,null,null,null,0,null,null,null,0,null,null,null,0,null,null,null,0,null,null,null,0]
[null,null,null,0,null,null,null,0,null,null,null,0,null,null,null,0,null,null,null,0,null,null,null,0,null,null,null,0,null,null,null,0,null,null,null,0,null,null,null,0,null,null,null,0,null,null,null,0,null,null,null,0,null,null,null,0,null,null,null,0]
[null,null,null,0,null,null,null,0,null,null,null,0,null,null,null,0,null,null,null,0,null,null,null,0,null,null,null,0,null,null,null,0,null,null,null,0,null,null,null,0,null,null,null,0,null,null,null,0,null,null,null,0,null,null,null,0,null,null,null,0]
[null,null,null,0,null,null,null,0,null,null,null,0,null,null,null,0,null,null,null,0,null,null,null,0,null,null,null,0,null,null,null,0,null,null,null,0,null,null,null,0,null,null,null,0,null,null,null,0,null,null,null,0,null,null,null,0,null,null,null,0]
[null,null,null,0,null,null,null,0,null,null,null,0,null,null,null,0,null,null,null,0,null,null,null,0,null,null,null,0,null,null,null,0,null,null,null,0,null,null,null,0,null,null,null,0,null,null,null,0,null,null,null,0,null,null,null,0,null,null,null,0]
[null,null,null,0,null,null,null,0,null,null,null,0,null,null,null,0,null,null,null,0,null,null,null,0,null,null,null,0,null,null,null,0,null,null,null,0,null,null,null,0,null,null,null,0,null,null,null,0,null,null,null,0,null,null,null,0,null,null,null,0]
[null,null,null,0,null,null,null,0,null,null,null,0,null,null,null,0,null,null,null,0,null,null,null,0,null,null,null,0,null,null,null,0,null,null,null,0,null,null,null,0,null,null,null,0,null,null,null,0,null,null,null,0,null,null,null,0,null,null,null,0]
[null,null,null,0,null,null,null,0,null,null,null,0,null,null,null,0,null,null,null,0,null,null,null,0,null,null,null,0,null,null,null,0,null,null,null,0,null,null,null,0,null,null,null,0,null,null,null,0,null,null,null,0,null,null,null,0,null,null,null,0]
[null,null,null,0,null,null,null,0,null,null,null,0,null,null,null,0,null,null,null,0,null,null,null,0,null,null,null,0,null,null,null,0,null,null,null,0,null,null,null,0,null,null,null,0,null,null,null,0,null,null,null,0,null,null,null,0,null,null,null,0]
[null,null,null,0,null,null,null,0,null,null,null,0,null,null,null,0,null,null,null,0,null,null,null,0,null,null,null,0,null,null,null,0,null,null,null,0,null,null,null,0,null,null,null,0,null,null,null,0,null,null,null,0,null,null,null,0,null,null,null,0]
[null,null,null,0,null,null,null,0,null,null,null,0,null,null,null,0,null,null,null,0,null,null,null,0,null,null,null,0,null,null,null,0,null,null,null,0,null,null,null,0,null,null,null,0,null,null,null,0,null,null,null,0,null,null,null,0,null,null,null,0]
[null,null,null,0,null,null,null,0,null,null,null,0,null,null,null,0,null,null,null,0,null,null,null,0,null,null,null,0,null,null,null,0,null,null,null,0,null,null,null,0,null,null,null,0,null,null,null,0,null,null,null,0,null,null,null,0,null,null,null,0]
[null,null,null,0,null,null,null,0,null,null,null,0,null,null,null,0,null,null,null,0,null,null,null,0,null,null,null,0,null,null,null,0,null,null,null,0,null,null,null,0,null,null,null,0,null,null,null,0,null,null,null,0,null,null,null,0,null,null,null,0]
[null,null,null,0,null,null,null,0,null,null,null,0,null,null,null,0,null,null,null,0,null,null,null,0,null,null,null,0,null,null,null,0,null,null,null,0,null,null,null,0,null,null,null,0,null,null,null,0,null,null,null,0,null,null,null,0,null,null,null,0]
[null,null,null,0,null,null,null,0,null,null,null,0,null,null,null,0,null,null,null,0,null,null,null,0,null,null,null,0,null,null,null,0,null,null,null,0,null,null,null,0,null,null,null,0,null,null,null,0,null,null,null,0,null,null,null,0,null,null,null,0]
[null,null,null,0,null,null,null,0,null,null,null,0,null,null,null,0,null,null,null,0,null,null,null,0,null,null,null,0,null,null,null,0,null,null,null,0,null,null,null,0,null,null,null,0,null,null,null,0,null,null,null,0,null,null,null,0,null,null,null,0]
[null,null,null,0,null,null,null,0,null,null,null,0,null,null,null,0,null,null,null,0,null,null,null,0,null,null,null,0,null,null,null,0,null,null,null,0,null,null,null,0,null,null,null,0,null,null,null,0,null,null,null,0,null,null,null,0,null,null,null,0]
[null,null,null,0,null,null,null,0,null,null,null,0,null,null,null,0,null,null,null,0,null,null,null,0,null,null,null,0,null,null,null,0,null,null,null,0,null,null,null,0,null,null,null,0,null,null,null,0,null,null,null,0,null,null,null,0,null,null,null,0]
[null,null,null,0,null,null,null,0,null,null,null,0,null,null,null,0,null,null,null,0,null,null,null,0,null,null,null,0,null,null,null,0,null,null,null,0,null,null,null,0,null,null,null,0,null,null,null,0,null,null,null,0,null,null,null,0,null,null,null,0]
[null,null,null,0,null,null,null,0,null,null,null,0,null,null,null,0,null,null,null,0,null,null,null,0,null,null,null,0,null,null,null,0,null,null,null,0,null,null,null,0,null,null,null,0,null,null,null,0,null,null,null,0,null,null,null,0,null,null,null,0]
[null,null,null,0,null,null,null,0,null,null,null,0,null,null,null,0,null,null,null,0,null,null,null,0,null,null,null,0,null,null,null,0,null,null,null,0,null,null,null,0,null,null,null,0,null,null,null,0,null,null,null,0,null,null,null,0,null,null,null,0]
[null,null,null,0,null,null,null,0,null,null,null,0,null,null,null,0,null,null,null,0,null,null,null,0,null,null,null,0,null,null,null,0,null,null,null,0,null,null,null,0,null,null,null,0,null,null,null,0,null,null,null,0,null,null,null,0,null,null,null,0]
[null,null,null,0,null,null,null,0,null,null,null,0,null,null,null,0,null,null,null,0,null,null,null,0,null,null,null,0,null,null,null,0,null,null,null,0,null,null,null,0,null,null,null,0,null,null,null,0,null,null,null,0,null,null,null,0,null,null,null,0]
[null,null,null,{"$f":"IF(B1607-C1607<>0,D1606+B1607-C1607,0)","v":0},null,null,null,{"$f":"IF(F1607-G1607<>0,H1606+F1607-G1607,0)","v":0},null,null,null,{"$f":"IF(J1607-K1607<>0,L1606+J1607-K1607,0)","v":0},null,null,null,{"$f":"IF(N1607-O1607<>0,P1606+N1607-O1607,0)","v":0},null,null,null,{"$f":"IF(R1607-S1607<>0,T1606+R1607-S1607,0)","v":0},null,null,null,{"$f":"IF(V1607-W1607<>0,X1606+V1607-W1607,0)","v":0},null,null,null,{"$f":"IF(Z1607-AA1607<>0,AB1606+Z1607-AA1607,0)","v":0},null,null,null,{"$f":"IF(AD1607-AE1607<>0,AF1606+AD1607-AE1607,0)","v":0},null,null,null,{"$f":"IF(AH1607-AI1607<>0,AJ1606+AH1607-AI1607,0)","v":0},null,null,null,{"$f":"IF(AL1607-AM1607<>0,AN1606+AL1607-AM1607,0)","v":0},null,null,null,{"$f":"IF(AP1607-AQ1607<>0,AR1606+AP1607-AQ1607,0)","v":0},null,null,null,{"$f":"IF(AT1607-AU1607<>0,AV1606+AT1607-AU1607,0)","v":0},null,null,null,{"$f":"IF(AX1607-AY1607<>0,AZ1606+AX1607-AY1607,0)","v":0},null,null,null,{"$f":"IF(BB1607-BC1607<>0,BD1606+BB1607-BC1607,0)","v":0},null,null,null,{"$f":"IF(BF1607-BG1607<>0,BH1606+BF1607-BG1607,0)","v":0}]
[null,null,null,0,null,null,null,0,null,null,null,0,null,null,null,0,null,null,null,0,null,null,null,0,null,null,null,0,null,null,null,0,null,null,null,0,null,null,null,0,null,null,null,0,null,null,null,0,null,null,null,0,null,null,null,0,null,null,null,0]
[null,null,null,0,null,null,null,0,null,null,null,0,null,null,null,0,null,null,null,0,null,null,null,0,null,null,null,0,null,null,null,0,null,null,null,0,null,null,null,0,null,null,null,0,null,null,null,0,null,null,null,0,null,null,null,0,null,null,null,0]
[null,null,null,0,null,null,null,0,null,null,null,0,null,null,null,0,null,null,null,0,null,null,null,0,null,null,null,0,null,null,null,0,null,null,null,0,null,null,null,0,null,null,null,0,null,null,null,0,null,null,null,0,null,null,null,0,null,null,null,0]
[null,null,null,0,null,null,null,0,null,null,null,0,null,null,null,0,null,null,null,0,null,null,null,0,null,null,null,0,null,null,null,0,null,null,null,0,null,null,null,0,null,null,null,0,null,null,null,0,null,null,null,0,null,null,null,0,null,null,null,0]
[null,null,null,0,null,null,null,0,null,null,null,0,null,null,null,0,null,null,null,0,null,null,null,0,null,null,null,0,null,null,null,0,null,null,null,0,null,null,null,0,null,null,null,0,null,null,null,0,null,null,null,0,null,null,null,0,null,null,null,0]
[null,null,null,0,null,null,null,0,null,null,null,0,null,null,null,0,null,null,null,0,null,null,null,0,null,null,null,0,null,null,null,0,null,null,null,0,null,null,null,0,null,null,null,0,null,null,null,0,null,null,null,0,null,null,null,0,null,null,null,0]
[null,null,null,0,null,null,null,0,null,null,null,0,null,null,null,0,null,null,null,0,null,null,null,0,null,null,null,0,null,null,null,0,null,null,null,0,null,null,null,0,null,null,null,0,null,null,null,0,null,null,null,0,null,null,null,0,null,null,null,0]
[null,null,null,0,null,null,null,0,null,null,null,0,null,null,null,0,null,null,null,0,null,null,null,0,null,null,null,0,null,null,null,0,null,null,null,0,null,null,null,0,null,null,null,0,null,null,null,0,null,null,null,0,null,null,null,0,null,null,null,0]
[null,null,null,0,null,null,null,0,null,null,null,0,null,null,null,0,null,null,null,0,null,null,null,0,null,null,null,0,null,null,null,0,null,null,null,0,null,null,null,0,null,null,null,0,null,null,null,0,null,null,null,0,null,null,null,0,null,null,null,0]
[null,null,null,0,null,null,null,0,null,null,null,0,null,null,null,0,null,null,null,0,null,null,null,0,null,null,null,0,null,null,null,0,null,null,null,0,null,null,null,0,null,null,null,0,null,null,null,0,null,null,null,0,null,null,null,0,null,null,null,0]
[null,null,null,0,null,null,null,0,null,null,null,0,null,null,null,0,null,null,null,0,null,null,null,0,null,null,null,0,null,null,null,0,null,null,null,0,null,null,null,0,null,null,null,0,null,null,null,0,null,null,null,0,null,null,null,0,null,null,null,0]
[null,null,null,0,null,null,null,0,null,null,null,0,null,null,null,0,null,null,null,0,null,null,null,0,null,null,null,0,null,null,null,0,null,null,null,0,null,null,null,0,null,null,null,0,null,null,null,0,null,null,null,0,null,null,null,0,null,null,null,0]
[null,null,null,0,null,null,null,0,null,null,null,0,null,null,null,0,null,null,null,0,null,null,null,0,null,null,null,0,null,null,null,0,null,null,null,0,null,null,null,0,null,null,null,0,null,null,null,0,null,null,null,0,null,null,null,0,null,null,null,0]
[null,null,null,0,null,null,null,0,null,null,null,0,null,null,null,0,null,null,null,0,null,null,null,0,null,null,null,0,null,null,null,0,null,null,null,0,null,null,null,0,null,null,null,0,null,null,null,0,null,null,null,0,null,null,null,0,null,null,null,0]
[null,null,null,0,null,null,null,0,null,null,null,0,null,null,null,0,null,null,null,0,null,null,null,0,null,null,null,0,null,null,null,0,null,null,null,0,null,null,null,0,null,null,null,0,null,null,null,0,null,null,null,0,null,null,null,0,null,null,null,0]
[null,null,null,0,null,null,null,0,null,null,null,0,null,null,null,0,null,null,null,0,null,null,null,0,null,null,null,0,null,null,null,0,null,null,null,0,null,null,null,0,null,null,null,0,null,null,null,0,null,null,null,0,null,null,null,0,null,null,null,0]
[null,null,null,0,null,null,null,0,null,null,null,0,null,null,null,0,null,null,null,0,null,null,null,0,null,null,null,0,null,null,null,0,null,null,null,0,null,null,null,0,null,null,null,0,null,null,null,0,null,null,null,0,null,null,null,0,null,null,null,0]
[null,null,null,0,null,null,null,0,null,null,null,0,null,null,null,0,null,null,null,0,null,null,null,0,null,null,null,0,null,null,null,0,null,null,null,0,null,null,null,0,null,null,null,0,null,null,null,0,null,null,null,0,null,null,null,0,null,null,null,0]
[null,null,null,0,null,null,null,0,null,null,null,0,null,null,null,0,null,null,null,0,null,null,null,0,null,null,null,0,null,null,null,0,null,null,null,0,null,null,null,0,null,null,null,0,null,null,null,0,null,null,null,0,null,null,null,0,null,null,null,0]
[null,null,null,0,null,null,null,0,null,null,null,0,null,null,null,0,null,null,null,0,null,null,null,0,null,null,null,0,null,null,null,0,null,null,null,0,null,null,null,0,null,null,null,0,null,null,null,0,null,null,null,0,null,null,null,0,null,null,null,0]
[null,null,null,0,null,null,null,0,null,null,null,0,null,null,null,0,null,null,null,0,null,null,null,0,null,null,null,0,null,null,null,0,null,null,null,0,null,null,null,0,null,null,null,0,null,null,null,0,null,null,null,0,null,null,null,0,null,null,null,0]
[null,null,null,0,null,null,null,0,null,null,null,0,null,null,null,0,null,null,null,0,null,null,null,0,null,null,null,0,null,null,null,0,null,null,null,0,null,null,null,0,null,null,null,0,null,null,null,0,null,null,null,0,null,null,null,0,null,null,null,0]
[null,null,null,0,null,null,null,0,null,null,null,0,null,null,null,0,null,null,null,0,null,null,null,0,null,null,null,0,null,null,null,0,null,null,null,0,null,null,null,0,null,null,null,0,null,null,null,0,null,null,null,0,null,null,null,0,null,null,null,0]
[null,null,null,0,null,null,null,0,null,null,null,0,null,null,null,0,null,null,null,0,null,null,null,0,null,null,null,0,null,null,null,0,null,null,null,0,null,null,null,0,null,null,null,0,null,null,null,0,null,null,null,0,null,null,null,0,null,null,null,0]
[null,null,null,0,null,null,null,0,null,null,null,0,null,null,null,0,null,null,null,0,null,null,null,0,null,null,null,0,null,null,null,0,null,null,null,0,null,null,null,0,null,null,null,0,null,null,null,0,null,null,null,0,null,null,null,0,null,null,null,0]
[null,null,null,0,null,null,null,0,null,null,null,0,null,null,null,0,null,null,null,0,null,null,null,0,null,null,null,0,null,null,null,0,null,null,null,0,null,null,null,0,null,null,null,0,null,null,null,0,null,null,null,0,null,null,null,0,null,null,null,0]
[null,null,null,0,null,null,null,0,null,null,null,0,null,null,null,0,null,null,null,0,null,null,null,0,null,null,null,0,null,null,null,0,null,null,null,0,null,null,null,0,null,null,null,0,null,null,null,0,null,null,null,0,null,null,null,0,null,null,null,0]
[null,null,null,0,null,null,null,0,null,null,null,0,null,null,null,0,null,null,null,0,null,null,null,0,null,null,null,0,null,null,null,0,null,null,null,0,null,null,null,0,null,null,null,0,null,null,null,0,null,null,null,0,null,null,null,0,null,null,null,0]
[null,null,null,0,null,null,null,0,null,null,null,0,null,null,null,0,null,null,null,0,null,null,null,0,null,null,null,0,null,null,null,0,null,null,null,0,null,null,null,0,null,null,null,0,null,null,null,0,null,null,null,0,null,null,null,0,null,null,null,0]
[null,null,null,0,null,null,null,0,null,null,null,0,null,null,null,0,null,null,null,0,null,null,null,0,null,null,null,0,null,null,null,0,null,null,null,0,null,null,null,0,null,null,null,0,null,null,null,0,null,null,null,0,null,null,null,0,null,null,null,0]
[null,null,null,0,null,null,null,0,null,null,null,0,null,null,null,0,null,null,null,0,null,null,null,0,null,null,null,0,null,null,null,0,null,null,null,0,null,null,null,0,null,null,null,0,null,null,null,0,null,null,null,0,null,null,null,0,null,null,null,0]
[null,null,null,0,null,null,null,0,null,null,null,0,null,null,null,0,null,null,null,0,null,null,null,0,null,null,null,0,null,null,null,0,null,null,null,0,null,null,null,0,null,null,null,0,null,null,null,0,null,null,null,0,null,null,null,0,null,null,null,0]
[null,null,null,0,null,null,null,0,null,null,null,0,null,null,null,0,null,null,null,0,null,null,null,0,null,null,null,0,null,null,null,0,null,null,null,0,null,null,null,0,null,null,null,0,null,null,null,0,null,null,null,0,null,null,null,0,null,null,null,0]
[null,null,null,0,null,null,null,0,null,null,null,0,null,null,null,0,null,null,null,0,null,null,null,0,null,null,null,0,null,null,null,0,null,null,null,0,null,null,null,0,null,null,null,0,null,null,null,0,null,null,null,0,null,null,null,0,null,null,null,0]
[null,null,null,0,null,null,null,0,null,null,null,0,null,null,null,0,null,null,null,0,null,null,null,0,null,null,null,0,null,null,null,0,null,null,null,0,null,null,null,0,null,null,null,0,null,null,null,0,null,null,null,0,null,null,null,0,null,null,null,0]
[null,null,null,0,null,null,null,0,null,null,null,0,null,null,null,0,null,null,null,0,null,null,null,0,null,null,null,0,null,null,null,0,null,null,null,0,null,null,null,0,null,null,null,0,null,null,null,0,null,null,null,0,null,null,null,0,null,null,null,0]
[null,null,null,0,null,null,null,0,null,null,null,0,null,null,null,0,null,null,null,0,null,null,null,0,null,null,null,0,null,null,null,0,null,null,null,0,null,null,null,0,null,null,null,0,null,null,null,0,null,null,null,0,null,null,null,0,null,null,null,0]
[null,null,null,0,null,null,null,0,null,null,null,0,null,null,null,0,null,null,null,0,null,null,null,0,null,null,null,0,null,null,null,0,null,null,null,0,null,null,null,0,null,null,null,0,null,null,null,0,null,null,null,0,null,null,null,0,null,null,null,0]
[null,null,null,0,null,null,null,0,null,null,null,0,null,null,null,0,null,null,null,0,null,null,null,0,null,null,null,0,null,null,null,0,null,null,null,0,null,null,null,0,null,null,null,0,null,null,null,0,null,null,null,0,null,null,null,0,null,null,null,0]
[null,null,null,0,null,null,null,0,null,null,null,0,null,null,null,0,null,null,null,0,null,null,null,0,null,null,null,0,null,null,null,0,null,null,null,0,null,null,null,0,null,null,null,0,null,null,null,0,null,null,null,0,null,null,null,0,null,null,null,0]
[null,null,null,0,null,null,null,0,null,null,null,0,null,null,null,0,null,null,null,0,null,null,null,0,null,null,null,0,null,null,null,0,null,null,null,0,null,null,null,0,null,null,null,0,null,null,null,0,null,null,null,0,null,null,null,0,null,null,null,0]
[null,null,null,0,null,null,null,0,null,null,null,0,null,null,null,0,null,null,null,0,null,null,null,0,null,null,null,0,null,null,null,0,null,null,null,0,null,null,null,0,null,null,null,0,null,null,null,0,null,null,null,0,null,null,null,0,null,null,null,0]
[null,null,null,0,null,null,null,0,null,null,null,0,null,null,null,0,null,null,null,0,null,null,null,0,null,null,null,0,null,null,null,0,null,null,null,0,null,null,null,0,null,null,null,0,null,null,null,0,null,null,null,0,null,null,null,0,null,null,null,0]
[null,null,null,0,null,null,null,0,null,null,null,0,null,null,null,0,null,null,null,0,null,null,null,0,null,null,null,0,null,null,null,0,null,null,null,0,null,null,null,0,null,null,null,0,null,null,null,0,null,null,null,0,null,null,null,0,null,null,null,0]
[null,null,null,0,null,null,null,0,null,null,null,0,null,null,null,0,null,null,null,0,null,null,null,0,null,null,null,0,null,null,null,0,null,null,null,0,null,null,null,0,null,null,null,0,null,null,null,0,null,null,null,0,null,null,null,0,null,null,null,0]
[null,null,null,0,null,null,null,0,null,null,null,0,null,null,null,0,null,null,null,0,null,null,null,0,null,null,null,0,null,null,null,0,null,null,null,0,null,null,null,0,null,null,null,0,null,null,null,0,null,null,null,0,null,null,null,0,null,null,null,0]
[null,null,null,0,null,null,null,0,null,null,null,0,null,null,null,0,null,null,null,0,null,null,null,0,null,null,null,0,null,null,null,0,null,null,null,0,null,null,null,0,null,null,null,0,null,null,null,0,null,null,null,0,null,null,null,0,null,null,null,0]
[null,null,null,0,null,null,null,0,null,null,null,0,null,null,null,0,null,null,null,0,null,null,null,0,null,null,null,0,null,null,null,0,null,null,null,0,null,null,null,0,null,null,null,0,null,null,null,0,null,null,null,0,null,null,null,0,null,null,null,0]
[null,null,null,0,null,null,null,0,null,null,null,0,null,null,null,0,null,null,null,0,null,null,null,0,null,null,null,0,null,null,null,0,null,null,null,0,null,null,null,0,null,null,null,0,null,null,null,0,null,null,null,0,null,null,null,0,null,null,null,0]
[null,null,null,0,null,null,null,0,null,null,null,0,null,null,null,0,null,null,null,0,null,null,null,0,null,null,null,0,null,null,null,0,null,null,null,0,null,null,null,0,null,null,null,0,null,null,null,0,null,null,null,0,null,null,null,0,null,null,null,0]
[null,null,null,0,null,null,null,0,null,null,null,0,null,null,null,0,null,null,null,0,null,null,null,0,null,null,null,0,null,null,null,0,null,null,null,0,null,null,null,0,null,null,null,0,null,null,null,0,null,null,null,0,null,null,null,0,null,null,null,0]
[null,null,null,0,null,null,null,0,null,null,null,0,null,null,null,0,null,null,null,0,null,null,null,0,null,null,null,0,null,null,null,0,null,null,null,0,null,null,null,0,null,null,null,0,null,null,null,0,null,null,null,0,null,null,null,0,null,null,null,0]
[null,null,null,0,null,null,null,0,null,null,null,0,null,null,null,0,null,null,null,0,null,null,null,0,null,null,null,0,null,null,null,0,null,null,null,0,null,null,null,0,null,null,null,0,null,null,null,0,null,null,null,0,null,null,null,0,null,null,null,0]
[null,null,null,0,null,null,null,0,null,null,null,0,null,null,null,0,null,null,null,0,null,null,null,0,null,null,null,0,null,null,null,0,null,null,null,0,null,null,null,0,null,null,null,0,null,null,null,0,null,null,null,0,null,null,null,0,null,null,null,0]
[null,null,null,0,null,null,null,0,null,null,null,0,null,null,null,0,null,null,null,0,null,null,null,0,null,null,null,0,null,null,null,0,null,null,null,0,null,null,null,0,null,null,null,0,null,null,null,0,null,null,null,0,null,null,null,0,null,null,null,0]
[null,null,null,0,null,null,null,0,null,null,null,0,null,null,null,0,null,null,null,0,null,null,null,0,null,null,null,0,null,null,null,0,null,null,null,0,null,null,null,0,null,null,null,0,null,null,null,0,null,null,null,0,null,null,null,0,null,null,null,0]
[null,null,null,0,null,null,null,0,null,null,null,0,null,null,null,0,null,null,null,0,null,null,null,0,null,null,null,0,null,null,null,0,null,null,null,0,null,null,null,0,null,null,null,0,null,null,null,0,null,null,null,0,null,null,null,0,null,null,null,0]
[null,null,null,0,null,null,null,0,null,null,null,0,null,null,null,0,null,null,null,0,null,null,null,0,null,null,null,0,null,null,null,0,null,null,null,0,null,null,null,0,null,null,null,0,null,null,null,0,null,null,null,0,null,null,null,0,null,null,null,0]
[null,null,null,0,null,null,null,0,null,null,null,0,null,null,null,0,null,null,null,0,null,null,null,0,null,null,null,0,null,null,null,0,null,null,null,0,null,null,null,0,null,null,null,0,null,null,null,0,null,null,null,0,null,null,null,0,null,null,null,0]
[null,null,null,0,null,null,null,0,null,null,null,0,null,null,null,0,null,null,null,0,null,null,null,0,null,null,null,0,null,null,null,0,null,null,null,0,null,null,null,0,null,null,null,0,null,null,null,0,null,null,null,0,null,null,null,0,null,null,null,0]
[null,null,null,0,null,null,null,0,null,null,null,0,null,null,null,0,null,null,null,0,null,null,null,0,null,null,null,0,null,null,null,0,null,null,null,0,null,null,null,0,null,null,null,0,null,null,null,0,null,null,null,0,null,null,null,0,null,null,null,0]
[null,null,null,0,null,null,null,0,null,null,null,0,null,null,null,0,null,null,null,0,null,null,null,0,null,null,null,0,null,null,null,0,null,null,null,0,null,null,null,0,null,null,null,0,null,null,null,0,null,null,null,0,null,null,null,0,null,null,null,0]
[null,null,null,0,null,null,null,0,null,null,null,0,null,null,null,0,null,null,null,0,null,null,null,0,null,null,null,0,null,null,null,0,null,null,null,0,null,null,null,0,null,null,null,0,null,null,null,0,null,null,null,0,null,null,null,0,null,null,null,0]
[null,null,null,0,null,null,null,0,null,null,null,0,null,null,null,0,null,null,null,0,null,null,null,0,null,null,null,0,null,null,null,0,null,null,null,0,null,null,null,0,null,null,null,0,null,null,null,0,null,null,null,0,null,null,null,0,null,null,null,0]
[null,null,null,0,null,null,null,0,null,null,null,0,null,null,null,0,null,null,null,0,null,null,null,0,null,null,null,0,null,null,null,0,null,null,null,0,null,null,null,0,null,null,null,0,null,null,null,0,null,null,null,0,null,null,null,0,null,null,null,0]
[null,null,null,0,null,null,null,0,null,null,null,0,null,null,null,0,null,null,null,0,null,null,null,0,null,null,null,0,null,null,null,0,null,null,null,0,null,null,null,0,null,null,null,0,null,null,null,0,null,null,null,0,null,null,null,0,null,null,null,0]
[null,null,null,0,null,null,null,0,null,null,null,0,null,null,null,0,null,null,null,0,null,null,null,0,null,null,null,0,null,null,null,0,null,null,null,0,null,null,null,0,null,null,null,0,null,null,null,0,null,null,null,0,null,null,null,0,null,null,null,0]
[null,null,null,0,null,null,null,0,null,null,null,0,null,null,null,0,null,null,null,0,null,null,null,0,null,null,null,0,null,null,null,0,null,null,null,0,null,null,null,0,null,null,null,0,null,null,null,0,null,null,null,0,null,null,null,0,null,null,null,0]
[null,null,null,0,null,null,null,0,null,null,null,0,null,null,null,0,null,null,null,0,null,null,null,0,null,null,null,0,null,null,null,0,null,null,null,0,null,null,null,0,null,null,null,0,null,null,null,0,null,null,null,0,null,null,null,0,null,null,null,0]
[null,null,null,0,null,null,null,0,null,null,null,0,null,null,null,0,null,null,null,0,null,null,null,0,null,null,null,0,null,null,null,0,null,null,null,0,null,null,null,0,null,null,null,0,null,null,null,0,null,null,null,0,null,null,null,0,null,null,null,0]
[null,null,null,0,null,null,null,0,null,null,null,0,null,null,null,0,null,null,null,0,null,null,null,0,null,null,null,0,null,null,null,0,null,null,null,0,null,null,null,0,null,null,null,0,null,null,null,0,null,null,null,0,null,null,null,0,null,null,null,0]
[null,null,null,0,null,null,null,0,null,null,null,0,null,null,null,0,null,null,null,0,null,null,null,0,null,null,null,0,null,null,null,0,null,null,null,0,null,null,null,0,null,null,null,0,null,null,null,0,null,null,null,0,null,null,null,0,null,null,null,0]
[null,null,null,0,null,null,null,0,null,null,null,0,null,null,null,0,null,null,null,0,null,null,null,0,null,null,null,0,null,null,null,0,null,null,null,0,null,null,null,0,null,null,null,0,null,null,null,0,null,null,null,0,null,null,null,0,null,null,null,0]
[null,null,null,0,null,null,null,0,null,null,null,0,null,null,null,0,null,null,null,0,null,null,null,0,null,null,null,0,null,null,null,0,null,null,null,0,null,null,null,0,null,null,null,0,null,null,null,0,null,null,null,0,null,null,null,0,null,null,null,0]
[null,null,null,0,null,null,null,0,null,null,null,0,null,null,null,0,null,null,null,0,null,null,null,0,null,null,null,0,null,null,null,0,null,null,null,0,null,null,null,0,null,null,null,0,null,null,null,0,null,null,null,0,null,null,null,0,null,null,null,0]
[null,null,null,0,null,null,null,0,null,null,null,0,null,null,null,0,null,null,null,0,null,null,null,0,null,null,null,0,null,null,null,0,null,null,null,0,null,null,null,0,null,null,null,0,null,null,null,0,null,null,null,0,null,null,null,0,null,null,null,0]
[null,null,null,0,null,null,null,0,null,null,null,0,null,null,null,0,null,null,null,0,null,null,null,0,null,null,null,0,null,null,null,0,null,null,null,0,null,null,null,0,null,null,null,0,null,null,null,0,null,null,null,0,null,null,null,0,null,null,null,0]
[null,null,null,0,null,null,null,0,null,null,null,0,null,null,null,0,null,null,null,0,null,null,null,0,null,null,null,0,null,null,null,0,null,null,null,0,null,null,null,0,null,null,null,0,null,null,null,0,null,null,null,0,null,null,null,0,null,null,null,0]
[null,null,null,0,null,null,null,0,null,null,null,0,null,null,null,0,null,null,null,0,null,null,null,0,null,null,null,0,null,null,null,0,null,null,null,0,null,null,null,0,null,null,null,0,null,null,null,0,null,null,null,0,null,null,null,0,null,null,null,0]
[null,null,null,0,null,null,null,0,null,null,null,0,null,null,null,0,null,null,null,0,null,null,null,0,null,null,null,0,null,null,null,0,null,null,null,0,null,null,null,0,null,null,null,0,null,null,null,0,null,null,null,0,null,null,null,0,null,null,null,0]
[null,null,null,0,null,null,null,0,null,null,null,0,null,null,null,0,null,null,null,0,null,null,null,0,null,null,null,0,null,null,null,0,null,null,null,0,null,null,null,0,null,null,null,0,null,null,null,0,null,null,null,0,null,null,null,0,null,null,null,0]
[null,null,null,0,null,null,null,0,null,null,null,0,null,null,null,0,null,null,null,0,null,null,null,0,null,null,null,0,null,null,null,0,null,null,null,0,null,null,null,0,null,null,null,0,null,null,null,0,null,null,null,0,null,null,null,0,null,null,null,0]
[null,null,null,0,null,null,null,0,null,null,null,0,null,null,null,0,null,null,null,0,null,null,null,0,null,null,null,0,null,null,null,0,null,null,null,0,null,null,null,0,null,null,null,0,null,null,null,0,null,null,null,0,null,null,null,0,null,null,null,0]
[null,null,null,0,null,null,null,0,null,null,null,0,null,null,null,0,null,null,null,0,null,null,null,0,null,null,null,0,null,null,null,0,null,null,null,0,null,null,null,0,null,null,null,0,null,null,null,0,null,null,null,0,null,null,null,0,null,null,null,0]
[null,null,null,0,null,null,null,0,null,null,null,0,null,null,null,0,null,null,null,0,null,null,null,0,null,null,null,0,null,null,null,0,null,null,null,0,null,null,null,0,null,null,null,0,null,null,null,0,null,null,null,0,null,null,null,0,null,null,null,0]
[null,null,null,0,null,null,null,0,null,null,null,0,null,null,null,0,null,null,null,0,null,null,null,0,null,null,null,0,null,null,null,0,null,null,null,0,null,null,null,0,null,null,null,0,null,null,null,0,null,null,null,0,null,null,null,0,null,null,null,0]
[null,null,null,0,null,null,null,0,null,null,null,0,null,null,null,0,null,null,null,0,null,null,null,0,null,null,null,0,null,null,null,0,null,null,null,0,null,null,null,0,null,null,null,0,null,null,null,0,null,null,null,0,null,null,null,0,null,null,null,0]
[null,null,null,0,null,null,null,0,null,null,null,0,null,null,null,0,null,null,null,0,null,null,null,0,null,null,null,0,null,null,null,0,null,null,null,0,null,null,null,0,null,null,null,0,null,null,null,0,null,null,null,0,null,null,null,0,null,null,null,0]
[null,null,null,0,null,null,null,0,null,null,null,0,null,null,null,0,null,null,null,0,null,null,null,0,null,null,null,0,null,null,null,0,null,null,null,0,null,null,null,0,null,null,null,0,null,null,null,0,null,null,null,0,null,null,null,0,null,null,null,0]
[null,null,null,0,null,null,null,0,null,null,null,0,null,null,null,0,null,null,null,0,null,null,null,0,null,null,null,0,null,null,null,0,null,null,null,0,null,null,null,0,null,null,null,0,null,null,null,0,null,null,null,0,null,null,null,0,null,null,null,0]
[null,null,null,0,null,null,null,0,null,null,null,0,null,null,null,0,null,null,null,0,null,null,null,0,null,null,null,0,null,null,null,0,null,null,null,0,null,null,null,0,null,null,null,0,null,null,null,0,null,null,null,0,null,null,null,0,null,null,null,0]
[null,null,null,0,null,null,null,0,null,null,null,0,null,null,null,0,null,null,null,0,null,null,null,0,null,null,null,0,null,null,null,0,null,null,null,0,null,null,null,0,null,null,null,0,null,null,null,0,null,null,null,0,null,null,null,0,null,null,null,0]
[null,null,null,{"$f":"IF(B1863-C1863<>0,D1862+B1863-C1863,0)","v":0},null,null,null,{"$f":"IF(F1863-G1863<>0,H1862+F1863-G1863,0)","v":0},null,null,null,{"$f":"IF(J1863-K1863<>0,L1862+J1863-K1863,0)","v":0},null,null,null,{"$f":"IF(N1863-O1863<>0,P1862+N1863-O1863,0)","v":0},null,null,null,{"$f":"IF(R1863-S1863<>0,T1862+R1863-S1863,0)","v":0},null,null,null,{"$f":"IF(V1863-W1863<>0,X1862+V1863-W1863,0)","v":0},null,null,null,{"$f":"IF(Z1863-AA1863<>0,AB1862+Z1863-AA1863,0)","v":0},null,null,null,{"$f":"IF(AD1863-AE1863<>0,AF1862+AD1863-AE1863,0)","v":0},null,null,null,{"$f":"IF(AH1863-AI1863<>0,AJ1862+AH1863-AI1863,0)","v":0},null,null,null,{"$f":"IF(AL1863-AM1863<>0,AN1862+AL1863-AM1863,0)","v":0},null,null,null,{"$f":"IF(AP1863-AQ1863<>0,AR1862+AP1863-AQ1863,0)","v":0},null,null,null,{"$f":"IF(AT1863-AU1863<>0,AV1862+AT1863-AU1863,0)","v":0},null,null,null,{"$f":"IF(AX1863-AY1863<>0,AZ1862+AX1863-AY1863,0)","v":0},null,null,null,{"$f":"IF(BB1863-BC1863<>0,BD1862+BB1863-BC1863,0)","v":0},null,null,null,{"$f":"IF(BF1863-BG1863<>0,BH1862+BF1863-BG1863,0)","v":0}]
[null,null,null,0,null,null,null,0,null,null,null,0,null,null,null,0,null,null,null,0,null,null,null,0,null,null,null,0,null,null,null,0,null,null,null,0,null,null,null,0,null,null,null,0,null,null,null,0,null,null,null,0,null,null,null,0,null,null,null,0]
[null,null,null,0,null,null,null,0,null,null,null,0,null,null,null,0,null,null,null,0,null,null,null,0,null,null,null,0,null,null,null,0,null,null,null,0,null,null,null,0,null,null,null,0,null,null,null,0,null,null,null,0,null,null,null,0,null,null,null,0]
[null,null,null,0,null,null,null,0,null,null,null,0,null,null,null,0,null,null,null,0,null,null,null,0,null,null,null,0,null,null,null,0,null,null,null,0,null,null,null,0,null,null,null,0,null,null,null,0,null,null,null,0,null,null,null,0,null,null,null,0]
[null,null,null,0,null,null,null,0,null,null,null,0,null,null,null,0,null,null,null,0,null,null,null,0,null,null,null,0,null,null,null,0,null,null,null,0,null,null,null,0,null,null,null,0,null,null,null,0,null,null,null,0,null,null,null,0,null,null,null,0]
[null,null,null,0,null,null,null,0,null,null,null,0,null,null,null,0,null,null,null,0,null,null,null,0,null,null,null,0,null,null,null,0,null,null,null,0,null,null,null,0,null,null,null,0,null,null,null,0,null,null,null,0,null,null,null,0,null,null,null,0]
[null,null,null,0,null,null,null,0,null,null,null,0,null,null,null,0,null,null,null,0,null,null,null,0,null,null,null,0,null,null,null,0,null,null,null,0,null,null,null,0,null,null,null,0,null,null,null,0,null,null,null,0,null,null,null,0,null,null,null,0]
[null,null,null,0,null,null,null,0,null,null,null,0,null,null,null,0,null,null,null,0,null,null,null,0,null,null,null,0,null,null,null,0,null,null,null,0,null,null,null,0,null,null,null,0,null,null,null,0,null,null,null,0,null,null,null,0,null,null,null,0]
[null,null,null,0,null,null,null,0,null,null,null,0,null,null,null,0,null,null,null,0,null,null,null,0,null,null,null,0,null,null,null,0,null,null,null,0,null,null,null,0,null,null,null,0,null,null,null,0,null,null,null,0,null,null,null,0,null,null,null,0]
[null,null,null,0,null,null,null,0,null,null,null,0,null,null,null,0,null,null,null,0,null,null,null,0,null,null,null,0,null,null,null,0,null,null,null,0,null,null,null,0,null,null,null,0,null,null,null,0,null,null,null,0,null,null,null,0,null,null,null,0]
[null,null,null,0,null,null,null,0,null,null,null,0,null,null,null,0,null,null,null,0,null,null,null,0,null,null,null,0,null,null,null,0,null,null,null,0,null,null,null,0,null,null,null,0,null,null,null,0,null,null,null,0,null,null,null,0,null,null,null,0]
[null,null,null,0,null,null,null,0,null,null,null,0,null,null,null,0,null,null,null,0,null,null,null,0,null,null,null,0,null,null,null,0,null,null,null,0,null,null,null,0,null,null,null,0,null,null,null,0,null,null,null,0,null,null,null,0,null,null,null,0]
[null,null,null,0,null,null,null,0,null,null,null,0,null,null,null,0,null,null,null,0,null,null,null,0,null,null,null,0,null,null,null,0,null,null,null,0,null,null,null,0,null,null,null,0,null,null,null,0,null,null,null,0,null,null,null,0,null,null,null,0]
[null,null,null,0,null,null,null,0,null,null,null,0,null,null,null,0,null,null,null,0,null,null,null,0,null,null,null,0,null,null,null,0,null,null,null,0,null,null,null,0,null,null,null,0,null,null,null,0,null,null,null,0,null,null,null,0,null,null,null,0]
[null,null,null,0,null,null,null,0,null,null,null,0,null,null,null,0,null,null,null,0,null,null,null,0,null,null,null,0,null,null,null,0,null,null,null,0,null,null,null,0,null,null,null,0,null,null,null,0,null,null,null,0,null,null,null,0,null,null,null,0]
[null,null,null,0,null,null,null,0,null,null,null,0,null,null,null,0,null,null,null,0,null,null,null,0,null,null,null,0,null,null,null,0,null,null,null,0,null,null,null,0,null,null,null,0,null,null,null,0,null,null,null,0,null,null,null,0,null,null,null,0]
[null,null,null,0,null,null,null,0,null,null,null,0,null,null,null,0,null,null,null,0,null,null,null,0,null,null,null,0,null,null,null,0,null,null,null,0,null,null,null,0,null,null,null,0,null,null,null,0,null,null,null,0,null,null,null,0,null,null,null,0]
[null,null,null,0,null,null,null,0,null,null,null,0,null,null,null,0,null,null,null,0,null,null,null,0,null,null,null,0,null,null,null,0,null,null,null,0,null,null,null,0,null,null,null,0,null,null,null,0,null,null,null,0,null,null,null,0,null,null,null,0]
[null,null,null,0,null,null,null,0,null,null,null,0,null,null,null,0,null,null,null,0,null,null,null,0,null,null,null,0,null,null,null,0,null,null,null,0,null,null,null,0,null,null,null,0,null,null,null,0,null,null,null,0,null,null,null,0,null,null,null,0]
[null,null,null,0,null,null,null,0,null,null,null,0,null,null,null,0,null,null,null,0,null,null,null,0,null,null,null,0,null,null,null,0,null,null,null,0,null,null,null,0,null,null,null,0,null,null,null,0,null,null,null,0,null,null,null,0,null,null,null,0]
[null,null,null,0,null,null,null,0,null,null,null,0,null,null,null,0,null,null,null,0,null,null,null,0,null,null,null,0,null,null,null,0,null,null,null,0,null,null,null,0,null,null,null,0,null,null,null,0,null,null,null,0,null,null,null,0,null,null,null,0]
[null,null,null,0,null,null,null,0,null,null,null,0,null,null,null,0,null,null,null,0,null,null,null,0,null,null,null,0,null,null,null,0,null,null,null,0,null,null,null,0,null,null,null,0,null,null,null,0,null,null,null,0,null,null,null,0,null,null,null,0]
[null,null,null,0,null,null,null,0,null,null,null,0,null,null,null,0,null,null,null,0,null,null,null,0,null,null,null,0,null,null,null,0,null,null,null,0,null,null,null,0,null,null,null,0,null,null,null,0,null,null,null,0,null,null,null,0,null,null,null,0]
[null,null,null,0,null,null,null,0,null,null,null,0,null,null,null,0,null,null,null,0,null,null,null,0,null,null,null,0,null,null,null,0,null,null,null,0,null,null,null,0,null,null,null,0,null,null,null,0,null,null,null,0,null,null,null,0,null,null,null,0]
[null,null,null,0,null,null,null,0,null,null,null,0,null,null,null,0,null,null,null,0,null,null,null,0,null,null,null,0,null,null,null,0,null,null,null,0,null,null,null,0,null,null,null,0,null,null,null,0,null,null,null,0,null,null,null,0,null,null,null,0]
[null,null,null,0,null,null,null,0,null,null,null,0,null,null,null,0,null,null,null,0,null,null,null,0,null,null,null,0,null,null,null,0,null,null,null,0,null,null,null,0,null,null,null,0,null,null,null,0,null,null,null,0,null,null,null,0,null,null,null,0]
[null,null,null,0,null,null,null,0,null,null,null,0,null,null,null,0,null,null,null,0,null,null,null,0,null,null,null,0,null,null,null,0,null,null,null,0,null,null,null,0,null,null,null,0,null,null,null,0,null,null,null,0,null,null,null,0,null,null,null,0]
[null,null,null,0,null,null,null,0,null,null,null,0,null,null,null,0,null,null,null,0,null,null,null,0,null,null,null,0,null,null,null,0,null,null,null,0,null,null,null,0,null,null,null,0,null,null,null,0,null,null,null,0,null,null,null,0,null,null,null,0]
[null,null,null,0,null,null,null,0,null,null,null,0,null,null,null,0,null,null,null,0,null,null,null,0,null,null,null,0,null,null,null,0,null,null,null,0,null,null,null,0,null,null,null,0,null,null,null,0,null,null,null,0,null,null,null,0,null,null,null,0]
[null,null,null,0,null,null,null,0,null,null,null,0,null,null,null,0,null,null,null,0,null,null,null,0,null,null,null,0,null,null,null,0,null,null,null,0,null,null,null,0,null,null,null,0,null,null,null,0,null,null,null,0,null,null,null,0,null,null,null,0]
[null,null,null,0,null,null,null,0,null,null,null,0,null,null,null,0,null,null,null,0,null,null,null,0,null,null,null,0,null,null,null,0,null,null,null,0,null,null,null,0,null,null,null,0,null,null,null,0,null,null,null,0,null,null,null,0,null,null,null,0]
[null,null,null,0,null,null,null,0,null,null,null,0,null,null,null,0,null,null,null,0,null,null,null,0,null,null,null,0,null,null,null,0,null,null,null,0,null,null,null,0,null,null,null,0,null,null,null,0,null,null,null,0,null,null,null,0,null,null,null,0]
[null,null,null,0,null,null,null,0,null,null,null,0,null,null,null,0,null,null,null,0,null,null,null,0,null,null,null,0,null,null,null,0,null,null,null,0,null,null,null,0,null,null,null,0,null,null,null,0,null,null,null,0,null,null,null,0,null,null,null,0]
[null,null,null,0,null,null,null,0,null,null,null,0,null,null,null,0,null,null,null,0,null,null,null,0,null,null,null,0,null,null,null,0,null,null,null,0,null,null,null,0,null,null,null,0,null,null,null,0,null,null,null,0,null,null,null,0,null,null,null,0]
[null,null,null,0,null,null,null,0,null,null,null,0,null,null,null,0,null,null,null,0,null,null,null,0,null,null,null,0,null,null,null,0,null,null,null,0,null,null,null,0,null,null,null,0,null,null,null,0,null,null,null,0,null,null,null,0,null,null,null,0]
[null,null,null,0,null,null,null,0,null,null,null,0,null,null,null,0,null,null,null,0,null,null,null,0,null,null,null,0,null,null,null,0,null,null,null,0,null,null,null,0,null,null,null,0,null,null,null,0,null,null,null,0,null,null,null,0,null,null,null,0]
[null,null,null,0,null,null,null,0,null,null,null,0,null,null,null,0,null,null,null,0,null,null,null,0,null,null,null,0,null,null,null,0,null,null,null,0,null,null,null,0,null,null,null,0,null,null,null,0,null,null,null,0,null,null,null,0,null,null,null,0]
[null,null,null,0,null,null,null,0,null,null,null,0,null,null,null,0,null,null,null,0,null,null,null,0,null,null,null,0,null,null,null,0,null,null,null,0,null,null,null,0,null,null,null,0,null,null,null,0,null,null,null,0,null,null,null,0,null,null,null,0]
[null,null,null,0,null,null,null,0,null,null,null,0,null,null,null,0,null,null,null,0,null,null,null,0,null,null,null,0,null,null,null,0,null,null,null,0,null,null,null,0,null,null,null,0,null,null,null,0,null,null,null,0,null,null,null,0,null,null,null,0]
[null,null,null,0,null,null,null,0,null,null,null,0,null,null,null,0,null,null,null,0,null,null,null,0,null,null,null,0,null,null,null,0,null,null,null,0,null,null,null,0,null,null,null,0,null,null,null,0,null,null,null,0,null,null,null,0,null,null,null,0]
[null,null,null,0,null,null,null,0,null,null,null,0,null,null,null,0,null,null,null,0,null,null,null,0,null,null,null,0,null,null,null,0,null,null,null,0,null,null,null,0,null,null,null,0,null,null,null,0,null,null,null,0,null,null,null,0,null,null,null,0]
[null,null,null,0,null,null,null,0,null,null,null,0,null,null,null,0,null,null,null,0,null,null,null,0,null,null,null,0,null,null,null,0,null,null,null,0,null,null,null,0,null,null,null,0,null,null,null,0,null,null,null,0,null,null,null,0,null,null,null,0]
[null,null,null,0,null,null,null,0,null,null,null,0,null,null,null,0,null,null,null,0,null,null,null,0,null,null,null,0,null,null,null,0,null,null,null,0,null,null,null,0,null,null,null,0,null,null,null,0,null,null,null,0,null,null,null,0,null,null,null,0]
[null,null,null,0,null,null,null,0,null,null,null,0,null,null,null,0,null,null,null,0,null,null,null,0,null,null,null,0,null,null,null,0,null,null,null,0,null,null,null,0,null,null,null,0,null,null,null,0,null,null,null,0,null,null,null,0,null,null,null,0]
[null,null,null,0,null,null,null,0,null,null,null,0,null,null,null,0,null,null,null,0,null,null,null,0,null,null,null,0,null,null,null,0,null,null,null,0,null,null,null,0,null,null,null,0,null,null,null,0,null,null,null,0,null,null,null,0,null,null,null,0]
[null,null,null,0,null,null,null,0,null,null,null,0,null,null,null,0,null,null,null,0,null,null,null,0,null,null,null,0,null,null,null,0,null,null,null,0,null,null,null,0,null,null,null,0,null,null,null,0,null,null,null,0,null,null,null,0,null,null,null,0]
[null,null,null,0,null,null,null,0,null,null,null,0,null,null,null,0,null,null,null,0,null,null,null,0,null,null,null,0,null,null,null,0,null,null,null,0,null,null,null,0,null,null,null,0,null,null,null,0,null,null,null,0,null,null,null,0,null,null,null,0]
[null,null,null,0,null,null,null,0,null,null,null,0,null,null,null,0,null,null,null,0,null,null,null,0,null,null,null,0,null,null,null,0,null,null,null,0,null,null,null,0,null,null,null,0,null,null,null,0,null,null,null,0,null,null,null,0,null,null,null,0]
[null,null,null,0,null,null,null,0,null,null,null,0,null,null,null,0,null,null,null,0,null,null,null,0,null,null,null,0,null,null,null,0,null,null,null,0,null,null,null,0,null,null,null,0,null,null,null,0,null,null,null,0,null,null,null,0,null,null,null,0]
[null,null,null,0,null,null,null,0,null,null,null,0,null,null,null,0,null,null,null,0,null,null,null,0,null,null,null,0,null,null,null,0,null,null,null,0,null,null,null,0,null,null,null,0,null,null,null,0,null,null,null,0,null,null,null,0,null,null,null,0]
[null,null,null,0,null,null,null,0,null,null,null,0,null,null,null,0,null,null,null,0,null,null,null,0,null,null,null,0,null,null,null,0,null,null,null,0,null,null,null,0,null,null,null,0,null,null,null,0,null,null,null,0,null,null,null,0,null,null,null,0]
[null,null,null,0,null,null,null,0,null,null,null,0,null,null,null,0,null,null,null,0,null,null,null,0,null,null,null,0,null,null,null,0,null,null,null,0,null,null,null,0,null,null,null,0,null,null,null,0,null,null,null,0,null,null,null,0,null,null,null,0]
[null,null,null,0,null,null,null,0,null,null,null,0,null,null,null,0,null,null,null,0,null,null,null,0,null,null,null,0,null,null,null,0,null,null,null,0,null,null,null,0,null,null,null,0,null,null,null,0,null,null,null,0,null,null,null,0,null,null,null,0]
[null,null,null,0,null,null,null,0,null,null,null,0,null,null,null,0,null,null,null,0,null,null,null,0,null,null,null,0,null,null,null,0,null,null,null,0,null,null,null,0,null,null,null,0,null,null,null,0,null,null,null,0,null,null,null,0,null,null,null,0]
[null,null,null,0,null,null,null,0,null,null,null,0,null,null,null,0,null,null,null,0,null,null,null,0,null,null,null,0,null,null,null,0,null,null,null,0,null,null,null,0,null,null,null,0,null,null,null,0,null,null,null,0,null,null,null,0,null,null,null,0]
[null,null,null,0,null,null,null,0,null,null,null,0,null,null,null,0,null,null,null,0,null,null,null,0,null,null,null,0,null,null,null,0,null,null,null,0,null,null,null,0,null,null,null,0,null,null,null,0,null,null,null,0,null,null,null,0,null,null,null,0]
[null,null,null,{"$f":"IF(B1927-C1927<>0,D1926+B1927-C1927,0)","v":0},null,null,null,{"$f":"IF(F1927-G1927<>0,H1926+F1927-G1927,0)","v":0},null,null,null,{"$f":"IF(J1927-K1927<>0,L1926+J1927-K1927,0)","v":0},null,null,null,{"$f":"IF(N1927-O1927<>0,P1926+N1927-O1927,0)","v":0},null,null,null,{"$f":"IF(R1927-S1927<>0,T1926+R1927-S1927,0)","v":0},null,null,null,{"$f":"IF(V1927-W1927<>0,X1926+V1927-W1927,0)","v":0},null,null,null,{"$f":"IF(Z1927-AA1927<>0,AB1926+Z1927-AA1927,0)","v":0},null,null,null,{"$f":"IF(AD1927-AE1927<>0,AF1926+AD1927-AE1927,0)","v":0},null,null,null,{"$f":"IF(AH1927-AI1927<>0,AJ1926+AH1927-AI1927,0)","v":0},null,null,null,{"$f":"IF(AL1927-AM1927<>0,AN1926+AL1927-AM1927,0)","v":0},null,null,null,{"$f":"IF(AP1927-AQ1927<>0,AR1926+AP1927-AQ1927,0)","v":0},null,null,null,{"$f":"IF(AT1927-AU1927<>0,AV1926+AT1927-AU1927,0)","v":0},null,null,null,{"$f":"IF(AX1927-AY1927<>0,AZ1926+AX1927-AY1927,0)","v":0},null,null,null,{"$f":"IF(BB1927-BC1927<>0,BD1926+BB1927-BC1927,0)","v":0},null,null,null,{"$f":"IF(BF1927-BG1927<>0,BH1926+BF1927-BG1927,0)","v":0}]
[null,null,null,0,null,null,null,0,null,null,null,0,null,null,null,0,null,null,null,0,null,null,null,0,null,null,null,0,null,null,null,0,null,null,null,0,null,null,null,0,null,null,null,0,null,null,null,0,null,null,null,0,null,null,null,0,null,null,null,0]
[null,null,null,0,null,null,null,0,null,null,null,0,null,null,null,0,null,null,null,0,null,null,null,0,null,null,null,0,null,null,null,0,null,null,null,0,null,null,null,0,null,null,null,0,null,null,null,0,null,null,null,0,null,null,null,0,null,null,null,0]
[null,null,null,0,null,null,null,0,null,null,null,0,null,null,null,0,null,null,null,0,null,null,null,0,null,null,null,0,null,null,null,0,null,null,null,0,null,null,null,0,null,null,null,0,null,null,null,0,null,null,null,0,null,null,null,0,null,null,null,0]
[null,null,null,0,null,null,null,0,null,null,null,0,null,null,null,0,null,null,null,0,null,null,null,0,null,null,null,0,null,null,null,0,null,null,null,0,null,null,null,0,null,null,null,0,null,null,null,0,null,null,null,0,null,null,null,0,null,null,null,0]
[null,null,null,0,null,null,null,0,null,null,null,0,null,null,null,0,null,null,null,0,null,null,null,0,null,null,null,0,null,null,null,0,null,null,null,0,null,null,null,0,null,null,null,0,null,null,null,0,null,null,null,0,null,null,null,0,null,null,null,0]
[null,null,null,0,null,null,null,0,null,null,null,0,null,null,null,0,null,null,null,0,null,null,null,0,null,null,null,0,null,null,null,0,null,null,null,0,null,null,null,0,null,null,null,0,null,null,null,0,null,null,null,0,null,null,null,0,null,null,null,0]
[null,null,null,0,null,null,null,0,null,null,null,0,null,null,null,0,null,null,null,0,null,null,null,0,null,null,null,0,null,null,null,0,null,null,null,0,null,null,null,0,null,null,null,0,null,null,null,0,null,null,null,0,null,null,null,0,null,null,null,0]
[null,null,null,0,null,null,null,0,null,null,null,0,null,null,null,0,null,null,null,0,null,null,null,0,null,null,null,0,null,null,null,0,null,null,null,0,null,null,null,0,null,null,null,0,null,null,null,0,null,null,null,0,null,null,null,0,null,null,null,0]
[null,null,null,0,null,null,null,0,null,null,null,0,null,null,null,0,null,null,null,0,null,null,null,0,null,null,null,0,null,null,null,0,null,null,null,0,null,null,null,0,null,null,null,0,null,null,null,0,null,null,null,0,null,null,null,0,null,null,null,0]
[null,null,null,0,null,null,null,0,null,null,null,0,null,null,null,0,null,null,null,0,null,null,null,0,null,null,null,0,null,null,null,0,null,null,null,0,null,null,null,0,null,null,null,0,null,null,null,0,null,null,null,0,null,null,null,0,null,null,null,0]
[null,null,null,0,null,null,null,0,null,null,null,0,null,null,null,0,null,null,null,0,null,null,null,0,null,null,null,0,null,null,null,0,null,null,null,0,null,null,null,0,null,null,null,0,null,null,null,0,null,null,null,0,null,null,null,0,null,null,null,0]
[null,null,null,0,null,null,null,0,null,null,null,0,null,null,null,0,null,null,null,0,null,null,null,0,null,null,null,0,null,null,null,0,null,null,null,0,null,null,null,0,null,null,null,0,null,null,null,0,null,null,null,0,null,null,null,0,null,null,null,0]
[null,null,null,0,null,null,null,0,null,null,null,0,null,null,null,0,null,null,null,0,null,null,null,0,null,null,null,0,null,null,null,0,null,null,null,0,null,null,null,0,null,null,null,0,null,null,null,0,null,null,null,0,null,null,null,0,null,null,null,0]
[null,null,null,0,null,null,null,0,null,null,null,0,null,null,null,0,null,null,null,0,null,null,null,0,null,null,null,0,null,null,null,0,null,null,null,0,null,null,null,0,null,null,null,0,null,null,null,0,null,null,null,0,null,null,null,0,null,null,null,0]
[null,null,null,0,null,null,null,0,null,null,null,0,null,null,null,0,null,null,null,0,null,null,null,0,null,null,null,0,null,null,null,0,null,null,null,0,null,null,null,0,null,null,null,0,null,null,null,0,null,null,null,0,null,null,null,0,null,null,null,0]
[null,null,null,0,null,null,null,0,null,null,null,0,null,null,null,0,null,null,null,0,null,null,null,0,null,null,null,0,null,null,null,0,null,null,null,0,null,null,null,0,null,null,null,0,null,null,null,0,null,null,null,0,null,null,null,0,null,null,null,0]
[null,null,null,0,null,null,null,0,null,null,null,0,null,null,null,0,null,null,null,0,null,null,null,0,null,null,null,0,null,null,null,0,null,null,null,0,null,null,null,0,null,null,null,0,null,null,null,0,null,null,null,0,null,null,null,0,null,null,null,0]
[null,null,null,0,null,null,null,0,null,null,null,0,null,null,null,0,null,null,null,0,null,null,null,0,null,null,null,0,null,null,null,0,null,null,null,0,null,null,null,0,null,null,null,0,null,null,null,0,null,null,null,0,null,null,null,0,null,null,null,0]
[null,null,null,0,null,null,null,0,null,null,null,0,null,null,null,0,null,null,null,0,null,null,null,0,null,null,null,0,null,null,null,0,null,null,null,0,null,null,null,0,null,null,null,0,null,null,null,0,null,null,null,0,null,null,null,0,null,null,null,0]
[null,null,null,0,null,null,null,0,null,null,null,0,null,null,null,0,null,null,null,0,null,null,null,0,null,null,null,0,null,null,null,0,null,null,null,0,null,null,null,0,null,null,null,0,null,null,null,0,null,null,null,0,null,null,null,0,null,null,null,0]
[null,null,null,0,null,null,null,0,null,null,null,0,null,null,null,0,null,null,null,0,null,null,null,0,null,null,null,0,null,null,null,0,null,null,null,0,null,null,null,0,null,null,null,0,null,null,null,0,null,null,null,0,null,null,null,0,null,null,null,0]
[null,null,null,0,null,null,null,0,null,null,null,0,null,null,null,0,null,null,null,0,null,null,null,0,null,null,null,0,null,null,null,0,null,null,null,0,null,null,null,0,null,null,null,0,null,null,null,0,null,null,null,0,null,null,null,0,null,null,null,0]
[null,null,null,0,null,null,null,0,null,null,null,0,null,null,null,0,null,null,null,0,null,null,null,0,null,null,null,0,null,null,null,0,null,null,null,0,null,null,null,0,null,null,null,0,null,null,null,0,null,null,null,0,null,null,null,0,null,null,null,0]
[null,null,null,0,null,null,null,0,null,null,null,0,null,null,null,0,null,null,null,0,null,null,null,0,null,null,null,0,null,null,null,0,null,null,null,0,null,null,null,0,null,null,null,0,null,null,null,0,null,null,null,0,null,null,null,0,null,null,null,0]
[null,null,null,0,null,null,null,0,null,null,null,0,null,null,null,0,null,null,null,0,null,null,null,0,null,null,null,0,null,null,null,0,null,null,null,0,null,null,null,0,null,null,null,0,null,null,null,0,null,null,null,0,null,null,null,0,null,null,null,0]
[null,null,null,0,null,null,null,0,null,null,null,0,null,null,null,0,null,null,null,0,null,null,null,0,null,null,null,0,null,null,null,0,null,null,null,0,null,null,null,0,null,null,null,0,null,null,null,0,null,null,null,0,null,null,null,0,null,null,null,0]
[null,null,null,0,null,null,null,0,null,null,null,0,null,null,null,0,null,null,null,0,null,null,null,0,null,null,null,0,null,null,null,0,null,null,null,0,null,null,null,0,null,null,null,0,null,null,null,0,null,null,null,0,null,null,null,0,null,null,null,0]
[null,null,null,0,null,null,null,0,null,null,null,0,null,null,null,0,null,null,null,0,null,null,null,0,null,null,null,0,null,null,null,0,null,null,null,0,null,null,null,0,null,null,null,0,null,null,null,0,null,null,null,0,null,null,null,0,null,null,null,0]
[null,null,null,0,null,null,null,0,null,null,null,0,null,null,null,0,null,null,null,0,null,null,null,0,null,null,null,0,null,null,null,0,null,null,null,0,null,null,null,0,null,null,null,0,null,null,null,0,null,null,null,0,null,null,null,0,null,null,null,0]
[null,null,null,0,null,null,null,0,null,null,null,0,null,null,null,0,null,null,null,0,null,null,null,0,null,null,null,0,null,null,null,0,null,null,null,0,null,null,null,0,null,null,null,0,null,null,null,0,null,null,null,0,null,null,null,0,null,null,null,0]
[null,null,null,0,null,null,null,0,null,null,null,0,null,null,null,0,null,null,null,0,null,null,null,0,null,null,null,0,null,null,null,0,null,null,null,0,null,null,null,0,null,null,null,0,null,null,null,0,null,null,null,0,null,null,null,0,null,null,null,0]
[null,null,null,0,null,null,null,0,null,null,null,0,null,null,null,0,null,null,null,0,null,null,null,0,null,null,null,0,null,null,null,0,null,null,null,0,null,null,null,0,null,null,null,0,null,null,null,0,null,null,null,0,null,null,null,0,null,null,null,0]
[null,null,null,0,null,null,null,0,null,null,null,0,null,null,null,0,null,null,null,0,null,null,null,0,null,null,null,0,null,null,null,0,null,null,null,0,null,null,null,0,null,null,null,0,null,null,null,0,null,null,null,0,null,null,null,0,null,null,null,0]
[null,null,null,0,null,null,null,0,null,null,null,0,null,null,null,0,null,null,null,0,null,null,null,0,null,null,null,0,null,null,null,0,null,null,null,0,null,null,null,0,null,null,null,0,null,null,null,0,null,null,null,0,null,null,null,0,null,null,null,0]
[null,null,null,0,null,null,null,0,null,null,null,0,null,null,null,0,null,null,null,0,null,null,null,0,null,null,null,0,null,null,null,0,null,null,null,0,null,null,null,0,null,null,null,0,null,null,null,0,null,null,null,0,null,null,null,0,null,null,null,0]
[null,null,null,0,null,null,null,0,null,null,null,0,null,null,null,0,null,null,null,0,null,null,null,0,null,null,null,0,null,null,null,0,null,null,null,0,null,null,null,0,null,null,null,0,null,null,null,0,null,null,null,0,null,null,null,0,null,null,null,0]
[null,null,null,0,null,null,null,0,null,null,null,0,null,null,null,0,null,null,null,0,null,null,null,0,null,null,null,0,null,null,null,0,null,null,null,0,null,null,null,0,null,null,null,0,null,null,null,0,null,null,null,0,null,null,null,0,null,null,null,0]
[null,null,null,0,null,null,null,0,null,null,null,0,null,null,null,0,null,null,null,0,null,null,null,0,null,null,null,0,null,null,null,0,null,null,null,0,null,null,null,0,null,null,null,0,null,null,null,0,null,null,null,0,null,null,null,0,null,null,null,0]
[null,null,null,0,null,null,null,0,null,null,null,0,null,null,null,0,null,null,null,0,null,null,null,0,null,null,null,0,null,null,null,0,null,null,null,0,null,null,null,0,null,null,null,0,null,null,null,0,null,null,null,0,null,null,null,0,null,null,null,0]
[null,null,null,0,null,null,null,0,null,null,null,0,null,null,null,0,null,null,null,0,null,null,null,0,null,null,null,0,null,null,null,0,null,null,null,0,null,null,null,0,null,null,null,0,null,null,null,0,null,null,null,0,null,null,null,0,null,null,null,0]
[null,null,null,0,null,null,null,0,null,null,null,0,null,null,null,0,null,null,null,0,null,null,null,0,null,null,null,0,null,null,null,0,null,null,null,0,null,null,null,0,null,null,null,0,null,null,null,0,null,null,null,0,null,null,null,0,null,null,null,0]
[null,null,null,0,null,null,null,0,null,null,null,0,null,null,null,0,null,null,null,0,null,null,null,0,null,null,null,0,null,null,null,0,null,null,null,0,null,null,null,0,null,null,null,0,null,null,null,0,null,null,null,0,null,null,null,0,null,null,null,0]
[null,null,null,0,null,null,null,0,null,null,null,0,null,null,null,0,null,null,null,0,null,null,null,0,null,null,null,0,null,null,null,0,null,null,null,0,null,null,null,0,null,null,null,0,null,null,null,0,null,null,null,0,null,null,null,0,null,null,null,0]
[null,null,null,0,null,null,null,0,null,null,null,0,null,null,null,0,null,null,null,0,null,null,null,0,null,null,null,0,null,null,null,0,null,null,null,0,null,null,null,0,null,null,null,0,null,null,null,0,null,null,null,0,null,null,null,0,null,null,null,0]
[null,null,null,0,null,null,null,0,null,null,null,0,null,null,null,0,null,null,null,0,null,null,null,0,null,null,null,0,null,null,null,0,null,null,null,0,null,null,null,0,null,null,null,0,null,null,null,0,null,null,null,0,null,null,null,0,null,null,null,0]
[null,null,null,0,null,null,null,0,null,null,null,0,null,null,null,0,null,null,null,0,null,null,null,0,null,null,null,0,null,null,null,0,null,null,null,0,null,null,null,0,null,null,null,0,null,null,null,0,null,null,null,0,null,null,null,0,null,null,null,0]
[null,null,null,0,null,null,null,0,null,null,null,0,null,null,null,0,null,null,null,0,null,null,null,0,null,null,null,0,null,null,null,0,null,null,null,0,null,null,null,0,null,null,null,0,null,null,null,0,null,null,null,0,null,null,null,0,null,null,null,0]
[null,null,null,0,null,null,null,0,null,null,null,0,null,null,null,0,null,null,null,0,null,null,null,0,null,null,null,0,null,null,null,0,null,null,null,0,null,null,null,0,null,null,null,0,null,null,null,0,null,null,null,0,null,null,null,0,null,null,null,0]
[null,null,null,0,null,null,null,0,null,null,null,0,null,null,null,0,null,null,null,0,null,null,null,0,null,null,null,0,null,null,null,0,null,null,null,0,null,null,null,0,null,null,null,0,null,null,null,0,null,null,null,0,null,null,null,0,null,null,null,0]
[null,null,null,0,null,null,null,0,null,null,null,0,null,null,null,0,null,null,null,0,null,null,null,0,null,null,null,0,null,null,null,0,null,null,null,0,null,null,null,0,null,null,null,0,null,null,null,0,null,null,null,0,null,null,null,0,null,null,null,0]
[null,null,null,0,null,null,null,0,null,null,null,0,null,null,null,0,null,null,null,0,null,null,null,0,null,null,null,0,null,null,null,0,null,null,null,0,null,null,null,0,null,null,null,0,null,null,null,0,null,null,null,0,null,null,null,0,null,null,null,0]
[null,null,null,0,null,null,null,0,null,null,null,0,null,null,null,0,null,null,null,0,null,null,null,0,null,null,null,0,null,null,null,0,null,null,null,0,null,null,null,0,null,null,null,0,null,null,null,0,null,null,null,0,null,null,null,0,null,null,null,0]
[null,null,null,0,null,null,null,0,null,null,null,0,null,null,null,0,null,null,null,0,null,null,null,0,null,null,null,0,null,null,null,0,null,null,null,0,null,null,null,0,null,null,null,0,null,null,null,0,null,null,null,0,null,null,null,0,null,null,null,0]
[null,null,null,0,null,null,null,0,null,null,null,0,null,null,null,0,null,null,null,0,null,null,null,0,null,null,null,0,null,null,null,0,null,null,null,0,null,null,null,0,null,null,null,0,null,null,null,0,null,null,null,0,null,null,null,0,null,null,null,0]
[null,null,null,0,null,null,null,0,null,null,null,0,null,null,null,0,null,null,null,0,null,null,null,0,null,null,null,0,null,null,null,0,null,null,null,0,null,null,null,0,null,null,null,0,null,null,null,0,null,null,null,0,null,null,null,0,null,null,null,0]
[null,null,null,0,null,null,null,0,null,null,null,0,null,null,null,0,null,null,null,0,null,null,null,0,null,null,null,0,null,null,null,0,null,null,null,0,null,null,null,0,null,null,null,0,null,null,null,0,null,null,null,0,null,null,null,0,null,null,null,0]
[null,null,null,0,null,null,null,0,null,null,null,0,null,null,null,0,null,null,null,0,null,null,null,0,null,null,null,0,null,null,null,0,null,null,null,0,null,null,null,0,null,null,null,0,null,null,null,0,null,null,null,0,null,null,null,0,null,null,null,0]
[null,null,null,0,null,null,null,0,null,null,null,0,null,null,null,0,null,null,null,0,null,null,null,0,null,null,null,0,null,null,null,0,null,null,null,0,null,null,null,0,null,null,null,0,null,null,null,0,null,null,null,0,null,null,null,0,null,null,null,0]
[null,null,null,0,null,null,null,0,null,null,null,0,null,null,null,0,null,null,null,0,null,null,null,0,null,null,null,0,null,null,null,0,null,null,null,0,null,null,null,0,null,null,null,0,null,null,null,0,null,null,null,0,null,null,null,0,null,null,null,0]
[null,null,null,0,null,null,null,0,null,null,null,0,null,null,null,0,null,null,null,0,null,null,null,0,null,null,null,0,null,null,null,0,null,null,null,0,null,null,null,0,null,null,null,0,null,null,null,0,null,null,null,0,null,null,null,0,null,null,null,0]
[null,null,null,0,null,null,null,0,null,null,null,0,null,null,null,0,null,null,null,0,null,null,null,0,null,null,null,0,null,null,null,0,null,null,null,0,null,null,null,0,null,null,null,0,null,null,null,0,null,null,null,0,null,null,null,0,null,null,null,0]
[null,null,null,0,null,null,null,0,null,null,null,0,null,null,null,0,null,null,null,0,null,null,null,0,null,null,null,0,null,null,null,0,null,null,null,0,null,null,null,0,null,null,null,0,null,null,null,0,null,null,null,0,null,null,null,0,null,null,null,0]
[null,null,null,0,null,null,null,0,null,null,null,0,null,null,null,0,null,null,null,0,null,null,null,0,null,null,null,0,null,null,null,0,null,null,null,0,null,null,null,0,null,null,null,0,null,null,null,0,null,null,null,0,null,null,null,0,null,null,null,0]
[null,null,null,{"$f":"IF(B1991-C1991<>0,D1990+B1991-C1991,0)","v":0},null,null,null,{"$f":"IF(F1991-G1991<>0,H1990+F1991-G1991,0)","v":0},null,null,null,{"$f":"IF(J1991-K1991<>0,L1990+J1991-K1991,0)","v":0},null,null,null,{"$f":"IF(N1991-O1991<>0,P1990+N1991-O1991,0)","v":0},null,null,null,{"$f":"IF(R1991-S1991<>0,T1990+R1991-S1991,0)","v":0},null,null,null,{"$f":"IF(V1991-W1991<>0,X1990+V1991-W1991,0)","v":0},null,null,null,{"$f":"IF(Z1991-AA1991<>0,AB1990+Z1991-AA1991,0)","v":0},null,null,null,{"$f":"IF(AD1991-AE1991<>0,AF1990+AD1991-AE1991,0)","v":0},null,null,null,{"$f":"IF(AH1991-AI1991<>0,AJ1990+AH1991-AI1991,0)","v":0},null,null,null,{"$f":"IF(AL1991-AM1991<>0,AN1990+AL1991-AM1991,0)","v":0},null,null,null,{"$f":"IF(AP1991-AQ1991<>0,AR1990+AP1991-AQ1991,0)","v":0},null,null,null,{"$f":"IF(AT1991-AU1991<>0,AV1990+AT1991-AU1991,0)","v":0},null,null,null,{"$f":"IF(AX1991-AY1991<>0,AZ1990+AX1991-AY1991,0)","v":0},null,null,null,{"$f":"IF(BB1991-BC1991<>0,BD1990+BB1991-BC1991,0)","v":0},null,null,null,{"$f":"IF(BF1991-BG1991<>0,BH1990+BF1991-BG1991,0)","v":0}]
[null,null,null,0,null,null,null,0,null,null,null,0,null,null,null,0,null,null,null,0,null,null,null,0,null,null,null,0,null,null,null,0,null,null,null,0,null,null,null,0,null,null,null,0,null,null,null,0,null,null,null,0,null,null,null,0,null,null,null,0]
[null,null,null,0,null,null,null,0,null,null,null,0,null,null,null,0,null,null,null,0,null,null,null,0,null,null,null,0,null,null,null,0,null,null,null,0,null,null,null,0,null,null,null,0,null,null,null,0,null,null,null,0,null,null,null,0,null,null,null,0]
[null,null,null,0,null,null,null,0,null,null,null,0,null,null,null,0,null,null,null,0,null,null,null,0,null,null,null,0,null,null,null,0,null,null,null,0,null,null,null,0,null,null,null,0,null,null,null,0,null,null,null,0,null,null,null,0,null,null,null,0]
[null,null,null,0,null,null,null,0,null,null,null,0,null,null,null,0,null,null,null,0,null,null,null,0,null,null,null,0,null,null,null,0,null,null,null,0,null,null,null,0,null,null,null,0,null,null,null,0,null,null,null,0,null,null,null,0,null,null,null,0]
[null,null,null,0,null,null,null,0,null,null,null,0,null,null,null,0,null,null,null,0,null,null,null,0,null,null,null,0,null,null,null,0,null,null,null,0,null,null,null,0,null,null,null,0,null,null,null,0,null,null,null,0,null,null,null,0,null,null,null,0]
[null,null,null,0,null,null,null,0,null,null,null,0,null,null,null,0,null,null,null,0,null,null,null,0,null,null,null,0,null,null,null,0,null,null,null,0,null,null,null,0,null,null,null,0,null,null,null,0,null,null,null,0,null,null,null,0,null,null,null,0]
[null,null,null,0,null,null,null,0,null,null,null,0,null,null,null,0,null,null,null,0,null,null,null,0,null,null,null,0,null,null,null,0,null,null,null,0,null,null,null,0,null,null,null,0,null,null,null,0,null,null,null,0,null,null,null,0,null,null,null,0]
[null,null,null,0,null,null,null,0,null,null,null,0,null,null,null,0,null,null,null,0,null,null,null,0,null,null,null,0,null,null,null,0,null,null,null,0,null,null,null,0,null,null,null,0,null,null,null,0,null,null,null,0,null,null,null,0,null,null,null,0]
[null,null,null,0,null,null,null,0,null,null,null,0,null,null,null,0,null,null,null,0,null,null,null,0,null,null,null,0,null,null,null,0,null,null,null,0,null,null,null,0,null,null,null,0,null,null,null,0,null,null,null,0,null,null,null,0,null,null,null,0]